{"text_format":"1","workbook":"xlsx","n_sheets":54,"sheets":["Acceuil","Parcelle","Saisie","SYNTHSESE","EXPORT_EXCEL","CN_def","Azote_def","Carbone_def","MO_def","CaO_def","CaCO3_def","pH_def","Granulo_def","CEC_def","Granulo","Feuil7","RFU","Battance","Ratio_Mineraux","Apport_MgO","Reserve_sol","Evolution","Ref_MO","Stock_sol","Bilan_Humique","MO","C-N","CEC","pH","Variation_pH","pH (2)","Chaulage","Chaulage (2)","BDD_Chaulage","PK","Calcul_Seuils_PK","Calcul_PK","BDD_Engrais_PK","Choix_engrais_phosphore","Feuil9","BDD_Potasse","BDD_Phosphore","BDD_Phosphore_JH","BDD_Phosphore_Olsen","BDD_Phosphore_Dyer","Exigence_PK","Feuil6","Feuil1","Ref_tab_graph","BDD_parcelles","Feuil2","Feuil3","Feuil5","Feuil4"],"not_rendered":{"charts":20,"images":78,"macros":1,"external_links":0,"defined_names":1,"comments":0,"pivot_tables":0},"unopened":[],"bounds":{"document_bytes":16777216,"sheet_cells":100000,"rows_first":2000,"rows_last":500,"rows_between":2000,"halvings":0,"cell_chars":16384,"cell_head_chars":4096},"cells_cut":0,"cells_raw":0,"read":"whole","date_system":"1900"}

{"sheet":"Acceuil","index":0,"n_rows":0,"n_cols":0,"rows_kept":0,"cut":false,"hidden":false,"merged":[]}

{"sheet":"Parcelle","index":1,"n_rows":20,"n_cols":2,"rows_kept":20,"cut":false,"hidden":false,"merged":[[20,1,30,3],[19,1,19,3]]}
[]
[]
[]
[]
[]
[]
[]
[]
[null,"NOM DE L'AGRICULTEUR"]
[]
[]
[null,"NOM DE LA PARCELLE"]
[]
[]
[null,"SURFACE (ha)"]
[]
[]
[null,"MODE D'IMPLANTATION"]
[]
[null,"COMMENTAIRES (Alt + Entrée pour passer des lignes)"]

{"sheet":"Saisie","index":2,"n_rows":30,"n_cols":14,"rows_kept":30,"cut":false,"hidden":false,"merged":[]}
[]
[]
[]
[]
[null,null,"Saisie les données issues de votre analyse de sol dans les cases ci-dessous."]
[]
[]
[null,null,null,null,null,null,null,null,null,null,"CEC (meq/100g)"]
[null,null,"Argile (%)",25,null,null,null,null,null,null,"Ca/ CEC (%)"]
[null,null,"Limons fins (%)",30,null,null,null,null,null,null,"K/CEC (%)"]
[null,null,"Limons grossiers (%)",35,null,null,null,null,null,null,"Mg/CEC (%)"]
[null,null,"Sables fins (%)",10,null,null,null,null,null,null,"Na/CEC (%)"]
[null,null,"Sables grossiers (%)",null,null,null,null,null,null,null,"H/CEC (%)"]
[null,null,null,null,null,null,null,null,null,null,"Taux de saturation"]
[]
[]
[null,null,null,"Année N3","Année N2","Année N1"]
[null,null,"pH eau",6.5,6.5,6.4]
[null,null,"pH Kcl",null,null,null,null,null,null,null,null,"Année N3","Année N2","Année N1"]
[null,null,"CaCO3 total %",null,null,null,null,null,null,null,"P2O5 (mg/kg)"]
[null,null,"CaO (mg/kg)",null,null,null,null,null,null,null,"K2O (mg/kg)"]
[null,null,null,null,null,null,null,null,null,null,"MgO (mg/kg)"]
[null,null,null,null,null,null,null,null,null,null,"Na0 (mg/kg)"]
[null,null,null,null,null,null,null,null,null,null,"Zn (mg/kg)"]
[null,null,null,"Année N3","Année N2","Année N1",null,null,null,null,"Mn (mg/kg)"]
[null,null,"MO %",3,3,3,null,null,null,null,"Cu (mg/kg)"]
[null,null,"Carbone %",null,null,null,null,null,null,null,"Fe (mg/kg)"]
[null,null,"Azote total %",null,null,null,null,null,null,null,"B (mg/kg)"]
[null,null,"C/N",null,null,null,null,null,null,null,"S (mg/kg)"]
[null,null,"K2(%)"]

{"sheet":"SYNTHSESE","index":3,"n_rows":341,"n_cols":14,"rows_kept":341,"cut":false,"hidden":false,"merged":[[340,1,347,11],[7,8,7,9]]}
[]
[]
[]
[]
[]
[]
[]
["Nom de l'agriculteur : ",null,{"$f":"Parcelle!C9","v":0},null,null,null,null,"Date :",{"$f":"TODAY()","v":"2022-05-10"}]
[]
[]
[]
["Nom de la parcelle : ",null,{"$f":"Parcelle!C12","v":0},null,"Mode d'implantation :",null,{"$f":"Parcelle!C18","v":0}]
[]
["Surface (ha) :",null,{"$f":"Parcelle!C15","v":0}]
[]
[]
[]
[]
[">> ANALYSE GRANULOMETIQUE",null,null,null,">> ANALYSE CHIMIQUE",null,null,null,null,null,">> MATIERES ORGANIQUES"]
[]
[{"$f":"Saisie!C9","v":"Argile (%)"},{"$f":"Saisie!D9","v":25},null,null,null,{"$f":"Saisie!D17","v":"Année N3"},{"$f":"Saisie!E17","v":"Année N2"},{"$f":"Saisie!F17","v":"Année N1"},null,null,null,{"$f":"Saisie!D25","v":"Année N3"},{"$f":"Saisie!E25","v":"Année N2"},{"$f":"Saisie!F25","v":"Année N1"}]
[{"$f":"Saisie!C10","v":"Limons fins (%)"},{"$f":"Saisie!D10","v":30},null,null,{"$f":"Saisie!C18","v":"pH eau"},{"$f":"Saisie!D18","v":6.5},{"$f":"Saisie!E18","v":6.5},{"$f":"Saisie!F18","v":6.4},null,null,{"$f":"Saisie!C26","v":"MO %"},{"$f":"Saisie!D26","v":3},{"$f":"Saisie!E26","v":3},{"$f":"Saisie!F26","v":3}]
[{"$f":"Saisie!C11","v":"Limons grossiers (%)"},{"$f":"Saisie!D11","v":35},null,null,{"$f":"Saisie!C19","v":"pH Kcl"},{"$f":"Saisie!D19","v":0},{"$f":"Saisie!E19","v":0},{"$f":"Saisie!F19","v":0},null,null,{"$f":"Saisie!C27","v":"Carbone %"},{"$f":"Saisie!D27","v":0},{"$f":"Saisie!E27","v":0},{"$f":"Saisie!F27","v":0}]
[{"$f":"Saisie!C12","v":"Sables fins (%)"},{"$f":"Saisie!D12","v":10},null,null,{"$f":"Saisie!C20","v":"CaCO3 total %"},{"$f":"Saisie!D20","v":0},{"$f":"Saisie!E20","v":0},{"$f":"Saisie!F20","v":0},null,null,{"$f":"Saisie!C28","v":"Azote total %"},{"$f":"Saisie!D28","v":0},{"$f":"Saisie!E28","v":0},{"$f":"Saisie!F28","v":0}]
[{"$f":"Saisie!C13","v":"Sables grossiers (%)"},{"$f":"Saisie!D13","v":0},null,null,{"$f":"Saisie!C21","v":"CaO (mg/kg)"},{"$f":"Saisie!D21","v":0},{"$f":"Saisie!E21","v":0},{"$f":"Saisie!F21","v":0},null,null,{"$f":"Saisie!C29","v":"C/N"},{"$f":"Saisie!D29","v":0},{"$f":"Saisie!E29","v":0},{"$f":"Saisie!F29","v":0}]
[null,null,null,null,null,null,null,null,null,null,{"$f":"Saisie!C30","v":"K2(%)"},{"$f":"Saisie!D30","v":0},{"$f":"Saisie!E30","v":0},{"$f":"Saisie!F30","v":0}]
[]
[">> CEC ET TAUX DE SATURATION",null,null,null,">> ELEMENTS MINERAUX"]
[]
[{"$f":"Saisie!K8","v":"CEC (meq/100g)"},{"$f":"Saisie!L8","v":0},null,null,null,{"$f":"Saisie!L19","v":"Année N3"},{"$f":"Saisie!M19","v":"Année N2"},{"$f":"Saisie!N19","v":"Année N1"}]
[{"$f":"Saisie!K9","v":"Ca/ CEC (%)"},{"$f":"Saisie!L9","v":0},null,null,{"$f":"Saisie!K20","v":"P2O5 (mg/kg)"},{"$f":"Saisie!L20","v":0},{"$f":"Saisie!M20","v":0},{"$f":"Saisie!N20","v":0}]
[{"$f":"Saisie!K10","v":"K/CEC (%)"},{"$f":"Saisie!L10","v":0},null,null,{"$f":"Saisie!K21","v":"K2O (mg/kg)"},{"$f":"Saisie!L21","v":0},{"$f":"Saisie!M21","v":0},{"$f":"Saisie!N21","v":0}]
[{"$f":"Saisie!K11","v":"Mg/CEC (%)"},{"$f":"Saisie!L11","v":0},null,null,{"$f":"Saisie!K22","v":"MgO (mg/kg)"},{"$f":"Saisie!L22","v":0},{"$f":"Saisie!M22","v":0},{"$f":"Saisie!N22","v":0}]
[{"$f":"Saisie!K12","v":"Na/CEC (%)"},{"$f":"Saisie!L12","v":0},null,null,{"$f":"Saisie!K23","v":"Na0 (mg/kg)"},{"$f":"Saisie!L23","v":0},{"$f":"Saisie!M23","v":0},{"$f":"Saisie!N23","v":0}]
[{"$f":"Saisie!K13","v":"H/CEC (%)"},{"$f":"Saisie!L13","v":0},null,null,{"$f":"Saisie!K24","v":"Zn (mg/kg)"},{"$f":"Saisie!L24","v":0},{"$f":"Saisie!M24","v":0},{"$f":"Saisie!N24","v":0}]
[{"$f":"Saisie!K14","v":"Taux de saturation"},{"$f":"Saisie!L14","v":0},null,null,{"$f":"Saisie!K25","v":"Mn (mg/kg)"},{"$f":"Saisie!L25","v":0},{"$f":"Saisie!M25","v":0},{"$f":"Saisie!N25","v":0}]
[null,null,null,null,{"$f":"Saisie!K26","v":"Cu (mg/kg)"},{"$f":"Saisie!L26","v":0},{"$f":"Saisie!M26","v":0},{"$f":"Saisie!N26","v":0}]
[null,null,null,null,{"$f":"Saisie!K27","v":"Fe (mg/kg)"},{"$f":"Saisie!L27","v":0},{"$f":"Saisie!M27","v":0},{"$f":"Saisie!N27","v":0}]
[null,null,null,null,{"$f":"Saisie!K28","v":"B (mg/kg)"},{"$f":"Saisie!L28","v":0},{"$f":"Saisie!M28","v":0},{"$f":"Saisie!N28","v":0}]
[null,null,null,null,{"$f":"Saisie!K29","v":"S (mg/kg)"},{"$f":"Saisie!L29","v":0},{"$f":"Saisie!M29","v":0},{"$f":"Saisie!N29","v":0}]
[]
[]
[]
[]
[]
[]
[]
[]
[]
[]
[]
[]
[]
[]
[]
[]
[]
[]
[]
[]
[]
[]
[]
[]
[]
[]
[]
[]
[]
[]
[]
[]
[]
[]
[]
[]
[]
[]
[]
[]
[]
[]
[]
[]
[]
[]
[]
[]
[]
[]
[]
[]
[]
[]
[]
[]
[]
[]
[]
[]
[]
[]
[]
[]
[]
[]
[]
[]
[]
[]
[]
[]
[]
[]
[]
[]
[]
[]
[]
[]
[]
[]
[]
[]
[]
[]
[]
[]
[]
[]
[]
[]
[]
[]
[]
[]
[]
[]
[]
[]
[]
[]
[]
[]
[]
[]
[]
[]
[]
[]
[]
[]
[]
[]
[]
[]
[]
[]
[]
[]
[]
[]
[]
[]
[]
[]
[]
[]
[]
[]
[]
[]
[]
[]
[]
[]
[]
[]
[]
[]
[]
[]
[]
[]
[]
[]
[]
[]
[]
[]
[]
[]
[]
[]
[]
[]
[]
[]
[]
[]
[]
[]
[]
[]
[]
[]
[]
[]
[]
[]
[]
[]
[]
[]
[]
[]
[]
[]
[]
[]
[]
[]
[]
[]
[]
[]
[]
[]
[]
[]
[]
[]
[]
[]
[]
[]
[]
[]
[]
[]
[]
[]
[]
[]
[]
[]
[]
[]
[]
[]
[]
[]
[]
[]
[]
[]
[]
[]
[]
[]
[]
[]
[]
[]
[]
[]
[]
[]
[]
[]
[]
[]
[]
[]
[]
[]
[]
[]
[]
[]
[]
[]
[]
[]
[]
[]
[]
[]
[]
[]
[]
[]
[]
[]
[]
[]
[]
[]
[]
[]
[]
[]
[]
[]
[]
[]
[]
[]
[]
[]
[]
[]
[]
[]
[]
[]
[]
[]
[]
[]
[]
[]
[]
[]
[]
[]
[]
[]
[]
[]
[]
[]
[]
[]
[]
[]
[]
[]
[]
[]
[null,{"$f":"Parcelle!B21","v":0}]

{"sheet":"EXPORT_EXCEL","index":4,"n_rows":49,"n_cols":6,"rows_kept":49,"cut":false,"hidden":false,"merged":[]}
[]
[]
[]
[]
[]
[null,"Nom",{"$f":"Parcelle!C9","v":0}]
[]
[null,{"$f":"Saisie!C9","v":"Argile (%)"},{"$f":"Saisie!D9","v":25}]
[null,{"$f":"Saisie!C10","v":"Limons fins (%)"},{"$f":"Saisie!D10","v":30}]
[null,{"$f":"Saisie!C11","v":"Limons grossiers (%)"},{"$f":"Saisie!D11","v":35}]
[null,{"$f":"Saisie!C12","v":"Sables fins (%)"},{"$f":"Saisie!D12","v":10}]
[null,{"$f":"Saisie!C13","v":"Sables grossiers (%)"},{"$f":"Saisie!D13","v":0}]
[null,{"$f":"Saisie!K8","v":"CEC (meq/100g)"},{"$f":"Saisie!L8","v":0},null,null,"Tableau à copier dans un fichier Excel puis transférer."]
[null,{"$f":"Saisie!K9","v":"Ca/ CEC (%)"},{"$f":"Saisie!L9","v":0}]
[null,{"$f":"Saisie!K10","v":"K/CEC (%)"},{"$f":"Saisie!L10","v":0}]
[null,{"$f":"Saisie!K11","v":"Mg/CEC (%)"},{"$f":"Saisie!L11","v":0}]
[null,{"$f":"Saisie!K12","v":"Na/CEC (%)"},{"$f":"Saisie!L12","v":0}]
[null,{"$f":"Saisie!K13","v":"H/CEC (%)"},{"$f":"Saisie!L13","v":0}]
[null,{"$f":"Saisie!K14","v":"Taux de saturation"},{"$f":"Saisie!L14","v":0}]
[null,{"$f":"Saisie!C18","v":"pH eau"},{"$f":"Saisie!F18","v":6.4}]
[null,{"$f":"Saisie!C19","v":"pH Kcl"},{"$f":"Saisie!F19","v":0}]
[null,{"$f":"Saisie!C20","v":"CaCO3 total %"},{"$f":"Saisie!F20","v":0}]
[null,{"$f":"Saisie!C21","v":"CaO (mg/kg)"},{"$f":"Saisie!F21","v":0}]
[null,{"$f":"Saisie!C26","v":"MO %"},{"$f":"Saisie!F26","v":3}]
[null,{"$f":"Saisie!C27","v":"Carbone %"},{"$f":"Saisie!F27","v":0}]
[null,{"$f":"Saisie!C28","v":"Azote total %"},{"$f":"Saisie!F28","v":0}]
[null,{"$f":"Saisie!C29","v":"C/N"},{"$f":"Saisie!F29","v":0}]
[null,{"$f":"Saisie!C30","v":"K2(%)"},{"$f":"Saisie!F30","v":0}]
[null,{"$f":"Saisie!K20","v":"P2O5 (mg/kg)"},{"$f":"Saisie!N20","v":0}]
[null,{"$f":"Saisie!K21","v":"K2O (mg/kg)"},{"$f":"Saisie!N21","v":0}]
[null,{"$f":"Saisie!K22","v":"MgO (mg/kg)"},{"$f":"Saisie!N22","v":0}]
[null,{"$f":"Saisie!K23","v":"Na0 (mg/kg)"},{"$f":"Saisie!N23","v":0}]
[null,{"$f":"Saisie!K24","v":"Zn (mg/kg)"},{"$f":"Saisie!N24","v":0}]
[null,{"$f":"Saisie!K25","v":"Mn (mg/kg)"},{"$f":"Saisie!N25","v":0}]
[null,{"$f":"Saisie!K26","v":"Cu (mg/kg)"},{"$f":"Saisie!N26","v":0}]
[null,{"$f":"Saisie!K27","v":"Fe (mg/kg)"},{"$f":"Saisie!N27","v":0}]
[null,{"$f":"Saisie!K28","v":"B (mg/kg)"},{"$f":"Saisie!N28","v":0}]
[null,{"$f":"Saisie!K29","v":"S (mg/kg)"},{"$f":"Saisie!N29","v":0}]
[null,"Indice de battance",{"$f":"Granulo!B21","v":1.2954545454545454}]
[null,"RU",{"$f":"Granulo!E28","v":0}]
[null,"Charge en cailloux",{"$f":"Granulo!E29","v":0}]
[null,"RFU",{"$f":"Granulo!E30","v":0}]
[null,"Rapport MO/Argile (%)",{"$f":"MO!N29","v":12}]
[null,"%MO pour MO/A 17%",{"$f":"MO!P30","v":4.25}]
[null,"Carbone (t/ha)",{"$f":"Stock_sol!P16","v":48.72}]
[null,"Besoins en MO (t/ha)",{"$f":"Stock_sol!P22","v":0}]
[null,"Bilan humique SdC (t/ha)",{"$f":"Bilan_Humique!I96","v":-2.2049999999999996}]
[null,"Balance P SdC (t/ha)",{"$f":"PK!I82","v":0}]
[null,"Balance K SdC (t/ha)",{"$f":"PK!I92","v":0}]

{"sheet":"CN_def","index":5,"n_rows":0,"n_cols":0,"rows_kept":0,"cut":false,"hidden":false,"merged":[]}

{"sheet":"Azote_def","index":6,"n_rows":0,"n_cols":0,"rows_kept":0,"cut":false,"hidden":false,"merged":[]}

{"sheet":"Carbone_def","index":7,"n_rows":0,"n_cols":0,"rows_kept":0,"cut":false,"hidden":false,"merged":[]}

{"sheet":"MO_def","index":8,"n_rows":0,"n_cols":0,"rows_kept":0,"cut":false,"hidden":false,"merged":[]}

{"sheet":"CaO_def","index":9,"n_rows":0,"n_cols":0,"rows_kept":0,"cut":false,"hidden":false,"merged":[]}

{"sheet":"CaCO3_def","index":10,"n_rows":0,"n_cols":0,"rows_kept":0,"cut":false,"hidden":false,"merged":[]}

{"sheet":"pH_def","index":11,"n_rows":0,"n_cols":0,"rows_kept":0,"cut":false,"hidden":false,"merged":[]}

{"sheet":"Granulo_def","index":12,"n_rows":0,"n_cols":0,"rows_kept":0,"cut":false,"hidden":false,"merged":[]}

{"sheet":"CEC_def","index":13,"n_rows":0,"n_cols":0,"rows_kept":0,"cut":false,"hidden":false,"merged":[]}

{"sheet":"Granulo","index":14,"n_rows":31,"n_cols":10,"rows_kept":31,"cut":false,"hidden":false,"merged":[]}
[]
[]
[]
[]
[]
[null,null,"MO (%)",{"$f":"Saisie!F26","v":3}]
[null,null,"Argile (%)",{"$f":"Saisie!D9","v":25}]
[null,null,"Limons fins (%)",{"$f":"Saisie!D10","v":30}]
[null,null,"Limons grossiers (%)",{"$f":"Saisie!D11","v":35}]
[null,null,"Sables fins (%)",{"$f":"Saisie!D12","v":10}]
[null,null,"Sables grossiers (%)",{"$f":"Saisie!D13","v":0}]
[null,null,"Indice de battance",{"$f":"((1.5*D8)+(0.75*D9))/(D7+10*D6)","v":1.2954545454545454}]
[]
[]
[]
[]
[]
[]
[]
[null,"Votre valeur"]
[null,{"$f":"D12","v":1.2954545454545454}]
[]
[]
[]
[]
[]
[null,null,"Profondeur de sol (cm)",null,25,null,"Qualité d'enracinement"]
[null,null,"RU (mm)",null,{"$f":"E27*RFU!F30","v":0},null,true,null,null,{"$f":"IF(G28=TRUE, 2/3, \"\")","v":0.66666666666666663}]
[null,null,"Charge en cailloux (%)",null,0,null,false,null,null,{"$f":"IF(G29=TRUE, 1/2, \"\")","v":""}]
[null,null,"RFU (mm)",null,{"$f":"(E28*J31)- ((E28*J31)*E29%)","v":0},null,false,null,null,{"$f":"IF(G30=TRUE, 1/3, \"\")","v":""}]
[null,null,null,null,null,null,null,null,"Somme",{"$f":"SUM(J28:J30)","v":0.66666666666666663}]

{"sheet":"Feuil7","index":15,"n_rows":0,"n_cols":0,"rows_kept":0,"cut":false,"hidden":false,"merged":[]}

{"sheet":"RFU","index":16,"n_rows":30,"n_cols":6,"rows_kept":30,"cut":false,"hidden":false,"merged":[]}
[]
[null,{"$f":"Granulo!C7","v":"Argile (%)"},{"$f":"Saisie!D9","v":25}]
[null,{"$f":"Granulo!C8","v":"Limons fins (%)"},{"$f":"Granulo!D8","v":30}]
[null,{"$f":"Granulo!C9","v":"Limons grossiers (%)"},{"$f":"Granulo!D9","v":35}]
[null,"Limon",{"$f":"SUM(C3:C4)","v":65}]
[]
[]
[]
[]
[]
[]
[null,null,null,null,null,"RETENU"]
[1,{"$f":"AND(C2>60)","v":false},1.2,"Terres argileuses lourdes",null,{"$f":"IF(B13=TRUE, C13, \"\")","v":""}]
[2,{"$f":"AND(C2<60, C2>40)","v":false},1.85,"Terres argileuses",null,{"$f":"IF(B14=TRUE, C14, \"\")","v":""}]
[3,{"$f":"AND(C5<10, C2>25, C2<40)","v":false},1.7,"argiles sableuses",null,""]
[4,{"$f":"AND(C5>10, C5<30, C2>25, C2<40)","v":false},1.8,"Argiles sablo limoneuses",null,""]
[5,{"$f":"AND(C5<60, C5>30, C2<40, C2>25)","v":false},1.8,"argile limono sableuses",null,""]
[6,{"$f":"AND(C5>60, C2>25, C2<40)","v":false},1.9,"Argile limoneuse",null,""]
[7,{"$f":"AND(C5<30, C2>12.5, C2<25)","v":false},1.7,"Terres argilo sableuse",null,""]
[8,{"$f":"AND(C5>30, C5<60, C2>12.5, C2<25)","v":false},1.8,"Terre argilo limono sableuse",null,""]
[9,{"$f":"AND(C5>60, C2>12.5, C2<25)","v":false},2,"Terre argilo limoneuse",null,""]
[10,{"$f":"AND(C5<10, C2>5, C2<12.5)","v":false},1.4,"Terres sablo argileuse",null,""]
[11,{"$f":"AND(C5>10, C5<30, C2>5, C2<12.5)","v":false},1.5,"Terres sablo limono argileuse",null,""]
[12,{"$f":"AND(C5>30, C5<60, C2>5, C2<12.5)","v":false},1.65,"Terres limono sablo argileuse",null,""]
[13,{"$f":"AND(C5>60, C2>5, C2<12.5)","v":false},2,"Terre limono argileuse",null,""]
[14,{"$f":"AND(C5<10, C2<5)","v":false},0.7,"Terre sableuse",null,""]
[15,{"$f":"AND(C5>10, C5<30, C2<5)","v":false},1,"Terre sablo limoneuse",null,""]
[16,{"$f":"AND(C5>30, C5<60, C2<5)","v":false},1.65,"Terre limono sableuse",null,""]
[17,{"$f":"AND(C5>60, C2<5)","v":false},1.8,"Terre limoneuse",null,""]
[null,null,null,null,"SOMME",{"$f":"SUM(F13:F29)","v":0}]

{"sheet":"Battance","index":17,"n_rows":0,"n_cols":0,"rows_kept":0,"cut":false,"hidden":false,"merged":[]}

{"sheet":"Ratio_Mineraux","index":18,"n_rows":68,"n_cols":14,"rows_kept":68,"cut":false,"hidden":false,"merged":[]}
[]
[]
[]
[]
[]
[null,null,null,null,null,null,"Fe / Mn","Votre valeur","Valeur recherchée",null,null,"Zinc","Votre valeur",{"$f":"Saisie!N24","v":0}]
[null,null,null,null,null,null,"Fer",{"$f":"J7/J8","v":{"$error":"#DIV/0!"}},2,{"$f":"Saisie!N27","v":0}]
[null,null,null,null,null,null,"Manganèse",{"$f":"J8/J8","v":{"$error":"#DIV/0!"}},1,{"$f":"Saisie!N25","v":0}]
[]
[null,null,null,null,null,null,"Carbone / Azote / Soufre","Votre valeur","Valeur recherchée",null,null,"Manganèse","Votre valeur",{"$f":"Saisie!N25","v":0}]
[null,null,null,null,null,null,"Carbone",{"$f":"J11/J13","v":{"$error":"#DIV/0!"}},100,{"$f":"Saisie!F27","v":0}]
[null,null,null,null,null,null,"Azote",{"$f":"J12/J13","v":{"$error":"#DIV/0!"}},10,{"$f":"Saisie!F28","v":0}]
[null,null,null,null,null,null,"Soufre",{"$f":"J13/J13","v":{"$error":"#DIV/0!"}},1,{"$f":"Saisie!N29","v":0}]
[]
[null,null,null,null,null,null,"Carbone / Phosphore","Votre valeur","Valeur recherchée"]
[null,null,null,null,null,null,"Carbone",{"$f":"J16/J17","v":{"$error":"#DIV/0!"}},2,{"$f":"Saisie!F27","v":0}]
[null,null,null,null,null,null,"Phosphore",{"$f":"J17/J17","v":{"$error":"#DIV/0!"}},1,{"$f":"Saisie!N20","v":0}]
[]
[null,null,"P2O5 / S","Votre valeur","Valeur recherchée",{"$f":"Saisie!N29","v":0},"Cu EDTA / MO","Votre valeur",{"$f":"Saisie!$N$26/Saisie!$F$26","v":0}]
[null,null,"Soufre",{"$f":"F20/F20","v":{"$error":"#DIV/0!"}},1,{"$f":"Saisie!N29","v":0}]
[null,null,"Phosphore",{"$f":"F21/F20","v":{"$error":"#DIV/0!"}},1,{"$f":"Saisie!N20","v":0},null,null,null,null,null,null,false]
[]
[null,null,"P2O5 / Zn","Votre valeur","Valeur recherchée",{"$f":"Saisie!N20","v":0},"Bore","Votre valeur",{"$f":"Saisie!N28","v":0}]
[null,null,"Phosphore",{"$f":"F24/F25","v":{"$error":"#DIV/0!"}},10,{"$f":"Saisie!N24","v":0}]
[null,null,"Zinc",{"$f":"F25/F25","v":{"$error":"#DIV/0!"}},1,{"$f":"Saisie!N24","v":0}]
[null,null,null,null,null,{"$f":"Saisie!N21","v":0}]
[null,null,"Potassium",{"$f":"IF(F26>F27, \"supérieur\", \"inférieur\")","v":"inférieur"},"Sodium",{"$f":"Saisie!N23","v":0}]
[null,null,null,"Objectif : Potassium > Sodium"]
[]
[]
[]
[]
[]
[]
[]
[]
[]
[]
[]
[]
[]
[]
[]
[]
[]
[]
[]
[]
[]
[]
[]
[]
[]
[]
[]
[]
[]
[]
[]
[]
[]
[]
[]
[]
[]
["Joret-Hebert"]
["Olsen"]
["Dyer"]

{"sheet":"Apport_MgO","index":19,"n_rows":49,"n_cols":20,"rows_kept":49,"cut":false,"hidden":false,"merged":[]}
[]
[]
[]
[]
[]
[]
[]
[]
[]
[null,null,"CaO/MgO","Votre valeur","Valeur recherchée"]
[null,null,"Calcium",{"$f":"F11/F12","v":{"$error":"#DIV/0!"}},"5 (sol léger) - 7 (sol lourd)",{"$f":"Saisie!F21","v":0}]
[null,null,"Magnésium",{"$f":"F12/F12","v":{"$error":"#DIV/0!"}},1,{"$f":"Saisie!N22","v":0}]
[]
[null,null,"K2O / MgO","Votre valeur","Valeur recherchée"]
[null,null,null,{"$f":"Saisie!N21/Saisie!N22","v":{"$error":"#DIV/0!"}},2,{"$f":"Saisie!N23","v":0}]
[null,null,"Objectif MgO/CEC (%)\nSe reporter à l'onglet CEC",6,null,{"$f":"Saisie!N22","v":0}]
[null,null,"Besoin en MgO (kg/ha)",{"$f":"Saisie!L8*(D16-Saisie!L11)*(0.2*Stock_sol!P9)/100","v":0},null,null,null,null,null,null,null,null,null,null,null,null,null,null,null,{"$f":"IF(#REF!=TRUE, 1, 0)","v":{"$error":"#REF!"}}]
[]
[]
[]
[null,null,null,null,null,null,null,null,null,"Votre valeur (ppm)"]
[null,null,null,null,null,null,null,null,"Magnésium",{"$f":"Saisie!$N$22","v":0}]
[]
[]
[]
[]
[]
[]
[]
[]
[]
[]
[null,null,null,null,null,"Ecart",{"$f":"IF(#REF!=\"\", \"\", IF(H17=\"\", G17-#REF!, H17-#REF!))","v":{"$error":"#REF!"}},null,{"$f":"IF(#REF!>=6.5, 6, IF(#REF!=\"\", \"\", IF(#REF!=$C$35, 1, IF(#REF!=$C$36, 2, IF(#REF!<5.5, 3, IF(Apport_MgO!#REF!<6, 4, IF(#REF!<6.5, 5, 6)))))))","v":{"$error":"#REF!"}}]
[null,null,null,null,null,null,{"$f":"IF(#REF!=\"\", \"\", IF(H18=\"\", G18-#REF!, H18-#REF!))","v":{"$error":"#REF!"}},null,{"$f":"IF(#REF!>=6.5, 6, IF(#REF!=\"\", \"\", IF(#REF!=$C$35, 1, IF(#REF!=$C$36, 2, IF(#REF!<5.5, 3, IF(Apport_MgO!#REF!<6, 4, IF(#REF!<6.5, 5, 6)))))))","v":{"$error":"#REF!"}}]
[null,null,"Impasse",null,null,null,{"$f":"IF(K21=\"\", \"\", IF(H19=\"\", M16-L21, H19-L21))","v":""},null,{"$f":"IF(L21>=6.5, 6, IF(K21=\"\", \"\", IF(K21=$C$35, 1, IF(K21=$C$36, 2, IF(L21<5.5, 3, IF(Apport_MgO!L21<6, 4, IF(L21<6.5, 5, 6)))))))","v":""}]
[null,null,"Entretien",null,null,null,{"$f":"IF(K22=\"\", \"\", IF(H20=\"\", M17-L22, H20-L22))","v":""},null,{"$f":"IF(L22>=6.5, 6, IF(K22=\"\", \"\", IF(K22=$C$35, 1, IF(K22=$C$36, 2, IF(L22<5.5, 3, IF(Apport_MgO!L22<6, 4, IF(L22<6.5, 5, 6)))))))","v":""}]
[null,null,"Redressement",null,null,null,{"$f":"IF(K23=\"\", \"\", IF(H21=\"\", M18-L23, H21-L23))","v":""},null,{"$f":"IF(L23>=6.5, 6, IF(K23=\"\", \"\", IF(K23=$C$35, 1, IF(K23=$C$36, 2, IF(L23<5.5, 3, IF(Apport_MgO!L23<6, 4, IF(L23<6.5, 5, 6)))))))","v":""}]
[null,null,null,null,null,null,{"$f":"IF(K19=\"\", \"\", IF(H22=\"\", M19-L19, H22-L19))","v":""},null,{"$f":"IF(L19>=6.5, 6, IF(K19=\"\", \"\", IF(K19=$C$35, 1, IF(K19=$C$36, 2, IF(L19<5.5, 3, IF(Apport_MgO!L19<6, 4, IF(L19<6.5, 5, 6)))))))","v":""}]
[null,null,null,null,null,null,{"$f":"IF(E21=\"\", \"\", IF(H23=\"\", G21-F21, H23-F21))","v":""},null,{"$f":"IF(F21>=6.5, 6, IF(E21=\"\", \"\", IF(E21=$C$35, 1, IF(E21=$C$36, 2, IF(F21<5.5, 3, IF(Apport_MgO!F21<6, 4, IF(F21<6.5, 5, 6)))))))","v":""}]
[null,null,null,null,null,null,{"$f":"IF(E22=\"\", \"\", IF(H24=\"\", G22-F22, H24-F22))","v":""},null,{"$f":"IF(F22>=6.5, 6, IF(E22=\"\", \"\", IF(E22=$C$35, 1, IF(E22=$C$36, 2, IF(F22<5.5, 3, IF(Apport_MgO!F22<6, 4, IF(F22<6.5, 5, 6)))))))","v":""}]
[null,null,null,null,null,null,{"$f":"IF(E23=\"\", \"\", IF(H25=\"\", G23-F23, H25-F23))","v":""},null,{"$f":"IF(F23>=6.5, 6, IF(E23=\"\", \"\", IF(E23=$C$35, 1, IF(E23=$C$36, 2, IF(F23<5.5, 3, IF(Apport_MgO!F23<6, 4, IF(F23<6.5, 5, 6)))))))","v":""}]
[null,null,null,null,null,null,{"$f":"IF(E24=\"\", \"\", IF(H26=\"\", G24-F24, H26-F24))","v":""},null,{"$f":"IF(F24>=6.5, 6, IF(E24=\"\", \"\", IF(E24=$C$35, 1, IF(E24=$C$36, 2, IF(F24<5.5, 3, IF(Apport_MgO!F24<6, 4, IF(F24<6.5, 5, 6)))))))","v":""}]
[null,null,1,2,3,4,5,6,7,8,9,10]
[null,1,0,0,0,0,0,0,0,0,0,0]
[null,2,{"$f":"(20*Saisie!$L$8)+200","v":200},{"$f":"(20*Saisie!$L$8)+200","v":200},{"$f":"(20*Saisie!$L$8)+200","v":200},{"$f":"(20*Saisie!$L$8)+200","v":200},{"$f":"(20*Saisie!$L$8)+200","v":200},{"$f":"(20*Saisie!$L$8)+200","v":200},{"$f":"(20*Saisie!$L$8)+200","v":200},{"$f":"(20*Saisie!$L$8)+200","v":200},{"$f":"(20*Saisie!$L$8)+200","v":200},{"$f":"(20*Saisie!$L$8)+200","v":200}]
[null,3,{"$f":"(12*($G$33*10)*Saisie!$L$8)+400","v":{"$error":"#REF!"}},{"$f":"(12*($G$34*10)*Saisie!$L$8)+400","v":{"$error":"#REF!"}},{"$f":"(12*($G$35*10)*Saisie!$L$8)+400","v":{"$error":"#VALUE!"}},{"$f":"(12*($G$36*10)*Saisie!$L$8)+400","v":{"$error":"#VALUE!"}},{"$f":"(12*($G$37*10)*Saisie!$L$8)+400","v":{"$error":"#VALUE!"}},{"$f":"(12*($G$38*10)*Saisie!$L$8)+400","v":{"$error":"#VALUE!"}},{"$f":"(12*($G$39*10)*Saisie!$L$8)+400","v":{"$error":"#VALUE!"}},{"$f":"(12*($G$40*10)*Saisie!$L$8)+400","v":{"$error":"#VALUE!"}},{"$f":"(12*($G$41*10)*Saisie!$L$8)+400","v":{"$error":"#VALUE!"}},{"$f":"(12*($G$42*10)*Saisie!$L$8)+400","v":{"$error":"#VALUE!"}}]
[null,4,{"$f":"(16*($G$33*10)*Saisie!$L$8)+500","v":{"$error":"#REF!"}},{"$f":"(16*($G$34*10)*Saisie!$L$8)+500","v":{"$error":"#REF!"}},{"$f":"(16*($G$35*10)*Saisie!$L$8)+500","v":{"$error":"#VALUE!"}},{"$f":"(16*($G$36*10)*Saisie!$L$8)+500","v":{"$error":"#VALUE!"}},{"$f":"(16*($G$37*10)*Saisie!$L$8)+500","v":{"$error":"#VALUE!"}},{"$f":"(16*($G$38*10)*Saisie!$L$8)+500","v":{"$error":"#VALUE!"}},{"$f":"(16*($G$39*10)*Saisie!$L$8)+500","v":{"$error":"#VALUE!"}},{"$f":"(16*($G$40*10)*Saisie!$L$8)+500","v":{"$error":"#VALUE!"}},{"$f":"(16*($G$41*10)*Saisie!$L$8)+500","v":{"$error":"#VALUE!"}},{"$f":"(16*($G$42*10)*Saisie!$L$8)+500","v":{"$error":"#VALUE!"}}]
[null,5,{"$f":"(20*($G$33*10)*Saisie!$L$8)+600","v":{"$error":"#REF!"}},{"$f":"(20*($G$34*10)*Saisie!$L$8)+600","v":{"$error":"#REF!"}},{"$f":"(20*($G$35*10)*Saisie!$L$8)+600","v":{"$error":"#VALUE!"}},{"$f":"(20*($G$36*10)*Saisie!$L$8)+600","v":{"$error":"#VALUE!"}},{"$f":"(20*($G$37*10)*Saisie!$L$8)+600","v":{"$error":"#VALUE!"}},{"$f":"(20*($G$38*10)*Saisie!$L$8)+600","v":{"$error":"#VALUE!"}},{"$f":"(20*($G$39*10)*Saisie!$L$8)+600","v":{"$error":"#VALUE!"}},{"$f":"(20*($G$40*10)*Saisie!$L$8)+600","v":{"$error":"#VALUE!"}},{"$f":"(20*($G$41*10)*Saisie!$L$8)+600","v":{"$error":"#VALUE!"}},{"$f":"(20*($G$42*10)*Saisie!$L$8)+600","v":{"$error":"#VALUE!"}}]
[null,6,{"$f":"(24*($G$33*10)*Saisie!$L$8)+700","v":{"$error":"#REF!"}},{"$f":"(24*($G$34*10)*Saisie!$L$8)+700","v":{"$error":"#REF!"}},{"$f":"(24*($G$35*10)*Saisie!$L$8)+700","v":{"$error":"#VALUE!"}},{"$f":"(24*($G$36*10)*Saisie!$L$8)+700","v":{"$error":"#VALUE!"}},{"$f":"(24*($G$37*10)*Saisie!$L$8)+700","v":{"$error":"#VALUE!"}},{"$f":"(24*($G$38*10)*Saisie!$L$8)+700","v":{"$error":"#VALUE!"}},{"$f":"(24*($G$39*10)*Saisie!$L$8)+700","v":{"$error":"#VALUE!"}},{"$f":"(24*($G$40*10)*Saisie!$L$8)+700","v":{"$error":"#VALUE!"}},{"$f":"(24*($G$41*10)*Saisie!$L$8)+700","v":{"$error":"#VALUE!"}},{"$f":"(24*($G$42*10)*Saisie!$L$8)+700","v":{"$error":"#VALUE!"}}]

{"sheet":"Reserve_sol","index":20,"n_rows":18,"n_cols":6,"rows_kept":18,"cut":false,"hidden":false,"merged":[]}
[]
[]
[]
[]
["Teneur en MO",0.05,null,null,null,122]
[null,null,null,null,null,1.5]
["% cailloux",100]
["profondeur de travail du sol",20,null,null,null,1831]
["densité apparente",1.5,null,null,null,{"$f":"F5*F6%*1000","v":1829.9999999999998}]
[]
["Poids de terre fine (t/ha)",{"$f":"B7*B8*B9","v":3000}]
[]
["Qté MO",{"$f":"B11*B5","v":150}]
["Qté carbone",{"$f":"B13/2","v":75}]
[]
["MOV",{"$f":"B13*2%","v":3}]
["MOF"]
["HUMUS",{"$f":"B13*95%","v":142.5}]

{"sheet":"Evolution","index":21,"n_rows":0,"n_cols":0,"rows_kept":0,"cut":false,"hidden":false,"merged":[]}

{"sheet":"Ref_MO","index":22,"n_rows":0,"n_cols":0,"rows_kept":0,"cut":false,"hidden":false,"merged":[]}

{"sheet":"Stock_sol","index":23,"n_rows":63,"n_cols":16,"rows_kept":63,"cut":false,"hidden":false,"merged":[]}
[]
[]
[]
[]
[]
[null,null,null,null,null,null,null,null,null,null,null,null,null,"Profondeur prélevée (cm)",null,25]
[null,null,null,null,null,null,null,null,null,null,null,null,null,"Densité apprente",null,1.4]
[null,null,null,null,null,null,null,null,null,null,null,null,null,"Terre fine (%)",null,80]
[null,null,null,null,null,null,null,null,null,null,null,null,null,"Poids terre fine (t/ha)",null,{"$f":"P6*P7*P8","v":2800}]
[]
[null,null,null,null,null,null,null,null,null,null,null,null,null,"Teneur en MO (%)",null,{"$f":"Saisie!F26","v":3}]
[]
[]
[null,null,null,null,null,null,null,null,null,null,null,null,null,"Quantité d'humus (t/ha)",null,{"$f":"D36","v":84}]
[]
[null,null,null,null,null,null,null,null,null,null,null,null,null,"Quantité de carbone (t/ha)",null,{"$f":"D37","v":48.72}]
[]
[]
[]
[]
[null,null,null,null,null,null,null,null,"En kg/ha",null,null,"En kg/ha"]
[null,null,null,null,null,null,null,null,{"$f":"IF(Saisie!F21<>0,(Saisie!F21*Stock_sol!P9)/1000, \"\")","v":""},null,null,{"$f":"IF(Saisie!F28<>0, (Saisie!F28*Stock_sol!P9)*10, \"\")","v":""}]
[]
[null,null,null,"En t/ha",null,null,null,null,"En t/ha",null,null,{"$f":"IF(Saisie!N20<>0, (Saisie!N20*Stock_sol!P9)/1000, \"\")","v":""}]
[null,null,null,{"$f":"D39","v":4.2},null,null,null,null,{"$f":"P14","v":84}]
[null,null,null,null,null,null,null,null,null,null,null,{"$f":"IF(Saisie!N21<>0, (Saisie!N21*Stock_sol!P9)/1000, \"\")","v":""}]
[]
[null,null,null,null,null,"En t/ha",null,null,null,null,null,{"$f":"IF(Saisie!N22<>0, (Saisie!N22*Stock_sol!P9)/1000, \"\")","v":""}]
[null,null,null,null,null,{"$f":"D40","v":8.4}]
[]
[]
[]
[]
[]
[]
[null,null,"Quantité de MO (t/ha)",{"$f":"P9*(P11%)","v":84},null,null,null,"Terre fine (kg)",{"$f":"P9*1000","v":2800000}]
[null,null,"Teneur en carbone (t/ha)",{"$f":"D36*58%","v":48.72}]
[]
[null,null,"MOV",{"$f":"D36*5%","v":4.2}]
[null,null,"MOF",{"$f":"D36*10%","v":8.4}]
[null,null,"Humus",{"$f":"D36*85%","v":71.399999999999991}]
[]
[]
[]
[null,null,null,"K1","%MS"]
[null,null,"Fumier bien décomposé",0.5,20]
[null,null,"Fumier moyennement décomposé",0.4,22]
[null,null,"Fumier pailleux",0.25,25]
[null,null,"Paille",0.15,85]
[null,null,"Boue STEP",0.2,20]
[null,null,"Lisier de bovin",0.2,7]
[null,null,"Engrais vert jeune",0.15,10]
[]
[null,null,null,"K2"]
[null,null,null,0]
[null,null,"Sable neutre",2]
[null,null,"Sable acide",1]
[null,null,"Sable calcaire",1.7]
[null,null,"Limon moyen",1.6]
[null,null,"Limon argileux",1.3]
[null,null,"Limon calcaire",0.9]
[null,null,"Argileux",1]
[null,null,"Argilo-calcaire",0.7]

{"sheet":"Bilan_Humique","index":24,"n_rows":98,"n_cols":17,"rows_kept":98,"cut":false,"hidden":false,"merged":[]}
[]
[]
[]
[]
[]
[null,null,null,"ANNEE 1","ANNEE 2","ANNEE 3","ANNEE 4","ANNEE 5",null,null,null,null,null,"Profondeur prélevée (cm)",null,15]
[null,null,"CULTURES",1,1,1,1,1,null,null,null,null,null,"Densité apprente",null,1.4]
[null,null,"Rendement (t/ha)",null,null,null,null,null,null,null,null,null,null,"Terre fine (%)",null,100]
[null,null,null,null,null,null,null,null,null,null,null,null,null,"Poids terre fine (t/ha)",null,{"$f":"P6*P7*P8","v":2100}]
[null,null,"RESTITUTIONS AU SOL"]
[null,null,"Paille (t/ha)",{"$f":"IF(D8=\"\", \"\", D8*INDEX($C$67:$D$77,D7,2))","v":""},{"$f":"IF(E8=\"\", \"\", E8*INDEX($C$67:$D$77,E7,2))","v":""},{"$f":"IF(F8=\"\", \"\", F8*INDEX($C$67:$D$77,F7,2))","v":""},{"$f":"IF(G8=\"\", \"\", G8*INDEX($C$67:$D$77,G7,2))","v":""},{"$f":"IF(H8=\"\", \"\", H8*INDEX($C$67:$D$77,H7,2))","v":""},null,null,null,null,null,"Teneur en MO (%)",null,{"$f":"Saisie!F26","v":3}]
[null,null,null,false,false,false,false,false]
[null,null,"Racines (t/ha)",{"$f":"IF(D11=\"\", \"\",IF(D7=9,D11/3, D11))","v":""},{"$f":"IF(E11=\"\", \"\",IF(E7=9,E11/3, E11))","v":""},"","","",null,null,null,null,null,"Quantité d'humus (t/ha)",null,{"$f":"D36","v":63}]
[null,null,"Couverts (t MV/ha)"]
[null,null,null,{"$f":"IF(D11=\"\",0, IF(D12=TRUE, 0, D11))","v":0},{"$f":"IF(E11=\"\",0, IF(E12=TRUE, 0, E11))","v":0},{"$f":"IF(F11=\"\",0, IF(F12=TRUE, 0, F11))","v":0},{"$f":"IF(G11=\"\",0, IF(G12=TRUE, 0, G11))","v":0},{"$f":"IF(H11=\"\",0, IF(H12=TRUE, 0, H11))","v":0},null,null,null,null,null,"Quantité de carbone (t/ha)",null,{"$f":"D37","v":36.54}]
[null,null,"APPORTS AU SOL - Indiquer les quantités en t/ha"]
[null,null,3,null,null,null,null,null,null,null,null,null,null,"Coefficient K2 (%)"]
[null,null,13,null,null,null,null,null,null,null,null,null,null,9,null,{"$f":"IF(Saisie!F30>0, Saisie!F30, IF(N18=1, \"\", INDEX(Stock_sol!D55:D63,N18,1)))","v":0.7}]
[null,null,1,null,null,null,null,null,null,null,null,null,null,"Si vous avez rentré une valeur dans \"Saisie\", ne pas modifier."]
[null,null,13]
[null,null,null,null,null,null,null,null,null,null,null,null,null,null,"Besoins en MO (t/ha/an)",null,{"$f":"IF(N18=1, \"\", P13*P18%)","v":0.44099999999999995}]
[]
[null,null,null,null,null,null,null,null,null,null,null,null,null,null,"Type d'amendements organiques"]
[null,null,null,null,null,null,null,null,null,null,null,null,null,3]
[]
[null,null,null,null,null,null,null,null,null,null,null,null,null,null,"Quantité pour maintenir le taux de MO"]
[null,null,null,null,null,null,null,null,null,null,null,null,null,null,{"$f":"IF(N24=1, \"\", Q21/INDEX(Stock_sol!C45:E52,N24,2)/INDEX(Stock_sol!C45:E52,N24,3)*100)","v":5.0113636363636349},"t /ha/an"]
[]
[]
[]
[]
[]
[]
[]
[]
[null,null,"Quantité de MO (t/ha)",{"$f":"P9*(P11%)","v":63},null,null,null,"Terre fine (kg)",{"$f":"P9*1000","v":2100000}]
[null,null,"Teneur en carbone (t/ha)",{"$f":"D36*58%","v":36.54}]
[]
[null,null,"MOV",{"$f":"D36*5%","v":3.1500000000000004}]
[null,null,"MOF",{"$f":"D36*10%","v":6.3000000000000007}]
[null,null,"Humus",{"$f":"D36*85%","v":53.55}]
[]
[]
[null,null,null,"K1","%MS"]
[]
[null,null,"Fumier bien décomposé",0.5,20]
[null,null,"Fumier moyennement décomposé",0.4,22]
[null,null,"Fumier pailleux",0.25,25]
[null,null,"Paille",0.15,85]
[null,null,"Végétaux ligneux",0.3,30]
[null,null,"Feuilles et collets de betteraves",0.25,20]
[null,null,"Luzerne (Feuilles et tiges)",0.25,20]
[null,null,"Tiges de maïs",0.2,85]
[null,null,"Racines de végétaux annuels",0.15,85]
[null,null,"Boue STEP",0.2,20]
[null,null,"Lisier de bovin",0.2,7]
[]
[]
[]
[null,null,null,"K2"]
[null,null,"<10% argile",2]
[null,null,"10 à 15% d'argile",1.75]
[null,null,"15 à 25% d'argile",1.5]
[null,null,"25 à 30% d'argile",1.25]
[null,null,">30% d'argile",1]
[]
[null,null,null,"Indice de récolte","% de racines/Paille"]
[null,null,"Blé",0.5,0.5]
[null,null,"Orge",0.5,0.5]
[null,null,"Triticale",0.7,0.5]
[null,null,"Seigle",1,0.5]
[null,null,"Colza",1.3,0.5]
[null,null,"Maïs grain / sorgho",0.45,0.5]
[null,null,"Protéagineux / Tournesol",0.4,0.5]
[null,null,"Pommes de terre",0.05,0.5]
[null,null,"Fourrage",0.8,0.5]
[null,null,"Betterave",0.5,0.5]
[]
[null,null,"PERTES",{"$f":"Q21","v":0.44099999999999995},{"$f":"Q21","v":0.44099999999999995},{"$f":"Q21","v":0.44099999999999995},{"$f":"Q21","v":0.44099999999999995},{"$f":"Q21","v":0.44099999999999995}]
[null,null,"Fournitures au sol",null,null,null,null,null,{"$f":"AVERAGE(D80:H80)","v":{"$error":"#DIV/0!"}}]
[null,null,null,null,null,null,null,null,{"$error":"#DIV/0!"}]
[null,null,{"$f":"C17","v":3},{"$f":"IF(D17=\"\", \"\", (D17*INDEX($C$45:$E$57,$C$17,3))*INDEX($C$45:$E$57,$C$17,2)/100)","v":""},{"$f":"IF(E17=\"\", \"\", (E17*INDEX($C$45:$E$57,$C$17,3))*INDEX($C$45:$E$57,$C$17,2)/100)","v":""},{"$f":"IF(F17=\"\", \"\", (F17*INDEX($C$45:$E$57,$C$17,3))*INDEX($C$45:$E$57,$C$17,2)/100)","v":""},{"$f":"IF(G17=\"\", \"\", (G17*INDEX($C$45:$E$57,$C$17,3))*INDEX($C$45:$E$57,$C$17,2)/100)","v":""},{"$f":"IF(H17=\"\", \"\", (H17*INDEX($C$45:$E$57,$C$17,3))*INDEX($C$45:$E$57,$C$17,2)/100)","v":""},{"$error":"#DIV/0!"}]
[null,null,{"$f":"C18","v":13},{"$f":"IF(D18=\"\", \"\", (D18*INDEX($C$45:$E$57,$C$18,3))*INDEX($C$45:$E$57,$C$18,2)/100)","v":""},{"$f":"IF(E18=\"\", \"\", (E18*INDEX($C$45:$E$57,$C$18,3))*INDEX($C$45:$E$57,$C$18,2)/100)","v":""},{"$f":"IF(F18=\"\", \"\", (F18*INDEX($C$45:$E$57,$C$18,3))*INDEX($C$45:$E$57,$C$18,2)/100)","v":""},{"$f":"IF(G18=\"\", \"\", (G18*INDEX($C$45:$E$57,$C$18,3))*INDEX($C$45:$E$57,$C$18,2)/100)","v":""},{"$f":"IF(H18=\"\", \"\", (H18*INDEX($C$45:$E$57,$C$18,3))*INDEX($C$45:$E$57,$C$18,2)/100)","v":""},{"$error":"#DIV/0!"}]
[null,null,{"$f":"C19","v":1},{"$f":"IF(D19=\"\", \"\", (D19*INDEX($C$45:$E$57,$C$19,3))*INDEX($C$45:$E$57,$C$19,2)/100)","v":""},{"$f":"IF(E19=\"\", \"\", (E19*INDEX($C$45:$E$57,$C$19,3))*INDEX($C$45:$E$57,$C$19,2)/100)","v":""},{"$f":"IF(F19=\"\", \"\", (F19*INDEX($C$45:$E$57,$C$19,3))*INDEX($C$45:$E$57,$C$19,2)/100)","v":""},{"$f":"IF(G19=\"\", \"\", (G19*INDEX($C$45:$E$57,$C$19,3))*INDEX($C$45:$E$57,$C$19,2)/100)","v":""},{"$f":"IF(H19=\"\", \"\", (H19*INDEX($C$45:$E$57,$C$19,3))*INDEX($C$45:$E$57,$C$19,2)/100)","v":""},{"$error":"#DIV/0!"}]
[null,null,{"$f":"C20","v":13},{"$f":"IF(D20=\"\", \"\", (D20*INDEX($C$45:$E$57,$C$20,3))*INDEX($C$45:$E$57,$C$20,2)/100)","v":""},{"$f":"IF(E20=\"\", \"\", (E20*INDEX($C$45:$E$57,$C$20,3))*INDEX($C$45:$E$57,$C$20,2)/100)","v":""},{"$f":"IF(F20=\"\", \"\", (F20*INDEX($C$45:$E$57,$C$20,3))*INDEX($C$45:$E$57,$C$20,2)/100)","v":""},{"$f":"IF(G20=\"\", \"\", (G20*INDEX($C$45:$E$57,$C$20,3))*INDEX($C$45:$E$57,$C$20,2)/100)","v":""},{"$f":"IF(H20=\"\", \"\", (H20*INDEX($C$45:$E$57,$C$20,3))*INDEX($C$45:$E$57,$C$20,2)/100)","v":""},{"$error":"#DIV/0!"}]
[null,null,"SOMME",{"$f":"SUM(D82:D85)","v":0},{"$f":"SUM(E82:E85)","v":0},{"$f":"SUM(F82:F85)","v":0},{"$f":"SUM(G82:G85)","v":0},{"$f":"SUM(H82:H85)","v":0},0]
[null,null,null,null,null,null,null,null,{"$error":"#DIV/0!"}]
[null,null,"RESTITUTION AU SOL",null,null,null,null,null,{"$error":"#DIV/0!"}]
[null,null,"Paille",{"$f":"IF(D15<>0, D11*0.15*0.85, 0)","v":0},{"$f":"IF(E15<>0, E11*0.15*0.85, 0)","v":0},0,0,0,0]
[null,null,"Racines",{"$f":"IF(D13=\"\", 0, D13*0.15*0.85)","v":0},{"$f":"IF(E13=\"\", 0, E13*0.15*0.85)","v":0},0,0,0,0]
[null,null,"Couverts végétaux",{"$f":"IF(D14=\"\", 0, D14*0.15*0.1)+IF(D14=\"\", 0, D14*0.15*0.85)","v":0},{"$f":"IF(E14=\"\", 0, E14*0.15*0.1)+IF(E14=\"\", 0, E14*0.15*0.85)","v":0},0,0,0,0]
[null,null,"SOMME",{"$f":"SUM(D89:D91)","v":0},{"$f":"SUM(E89:E91)","v":0},{"$f":"SUM(F89:F91)","v":0},{"$f":"SUM(G89:G91)","v":0},{"$f":"SUM(H89:H91)","v":0},0]
[]
[null,null," APPORTS",{"$f":"D92+D86","v":0},{"$f":"E92+E86","v":0},{"$f":"F92+F86","v":0},{"$f":"G92+G86","v":0},{"$f":"H92+H86","v":0}]
[null,null,null,null,null,null,null,null,{"$error":"#DIV/0!"}]
[null,null,"BILAN",{"$f":"(D92+D86)-D79","v":-0.44099999999999995},{"$f":"(E92+E86)-E79","v":-0.44099999999999995},{"$f":"(F92+F86)-F79","v":-0.44099999999999995},{"$f":"(G92+G86)-G79","v":-0.44099999999999995},{"$f":"(H92+H86)-H79","v":-0.44099999999999995},{"$f":"SUM(D96:H96)","v":-2.2049999999999996}]
[]
[null,null,"Cultures",{"$f":"INDEX($C$67:$D$77,D7,1)","v":0},{"$f":"INDEX($C$67:$D$77,E7,1)","v":0},{"$f":"INDEX($C$67:$D$77,F7,1)","v":0},{"$f":"INDEX($C$67:$D$77,G7,1)","v":0},{"$f":"INDEX($C$67:$D$77,H7,1)","v":0},"CUMUL"]

{"sheet":"MO","index":25,"n_rows":30,"n_cols":16,"rows_kept":30,"cut":false,"hidden":false,"merged":[]}
[]
[]
[]
[]
[]
[null,null,"MO (%)",{"$f":"Saisie!F26","v":3}]
[null,null,"Argile (%)",{"$f":"Saisie!D9","v":25}]
[null,null,"Limons fins (%)",{"$f":"Saisie!D10","v":30}]
[null,null,"Limons grossiers (%)",{"$f":"Saisie!D11","v":35}]
[null,null,"Sables fins (%)",{"$f":"Saisie!D12","v":10}]
[null,null,"Sables grossiers (%)",{"$f":"Saisie!D13","v":0}]
[null,null,"CEC (meq/100g)",{"$f":"Saisie!L8","v":0}]
[]
[]
[]
[]
[]
[]
[]
[]
[]
[]
[]
[]
[]
[]
[]
[]
[null,null,null,null,null,null,null,null,null,null,null,null,"Votre valeur :",{"$f":"Ref_tab_graph!E23","v":12}]
[null,null,null,null,null,null,null,null,null,null,null,null,"% de MO pour avoir un ratio de 17 :",null,null,{"$f":"D7*0.17","v":4.25}]

{"sheet":"C-N","index":26,"n_rows":9,"n_cols":4,"rows_kept":9,"cut":false,"hidden":false,"merged":[]}
[]
[]
[]
[]
[]
[]
[null,null,{"$f":"Saisie!C29","v":"C/N"},{"$f":"Saisie!F29","v":0}]
[null,null,{"$f":"Saisie!C18","v":"pH eau"},{"$f":"Saisie!F18","v":6.4}]
[null,null,{"$f":"Saisie!C26","v":"MO %"},{"$f":"Saisie!F26","v":3}]

{"sheet":"CEC","index":27,"n_rows":50,"n_cols":5,"rows_kept":50,"cut":false,"hidden":false,"merged":[]}
[]
[]
[]
[]
[]
[null,null,{"$f":"Saisie!K8","v":"CEC (meq/100g)"},{"$f":"Saisie!L8","v":0}]
[null,null,{"$f":"Saisie!K9","v":"Ca/ CEC (%)"},{"$f":"Saisie!L9","v":0}]
[null,null,{"$f":"Saisie!K10","v":"K/CEC (%)"},{"$f":"Saisie!L10","v":0}]
[null,null,{"$f":"Saisie!K11","v":"Mg/CEC (%)"},{"$f":"Saisie!L11","v":0}]
[null,null,{"$f":"Saisie!K12","v":"Na/CEC (%)"},{"$f":"Saisie!L12","v":0}]
[null,null,{"$f":"Saisie!K13","v":"H/CEC (%)"},{"$f":"Saisie!L13","v":0}]
[null,null,{"$f":"Saisie!K14","v":"Taux de saturation"},{"$f":"Saisie!L14","v":0}]
[]
[]
[]
[]
[]
[]
[]
[]
[]
[]
[]
[]
[]
[]
[]
[]
[]
[]
[]
[]
[]
[]
[]
[]
[]
[]
[]
[]
[]
[]
[]
[]
[null,null,"Saturation CEC","Parcelle","Optimum (d'après KINSEY)"]
[null,null,"Calcium",{"$f":"D7","v":0},68]
[null,null,"Magnesium",{"$f":"D9","v":0},12]
[null,null,"Potassium",{"$f":"D8","v":0},4]
[null,null,"Sodium",{"$f":"D10","v":0},1.5]
[null,null,"Hydrogène",{"$f":"D11","v":0},10]

{"sheet":"pH","index":28,"n_rows":9,"n_cols":10,"rows_kept":9,"cut":false,"hidden":false,"merged":[]}
[]
[]
[]
[]
[]
[null,null,{"$f":"Saisie!C18","v":"pH eau"},{"$f":"Saisie!F18","v":6.4},{"$f":"IF(D6<8, D6, 8)","v":6.4}]
[null,null,{"$f":"Saisie!C19","v":"pH Kcl"},{"$f":"Saisie!F19","v":0},null,null,null,null,{"$f":"E6-D7","v":6.4},"point(s)"]
[null,null,{"$f":"Saisie!C20","v":"CaCO3 total %"},{"$f":"Saisie!F20","v":0},null,null,null,null,{"$f":"IF(E6>6.5,\"\",IF(I7<0.5,\"Amendement à prévoir à moyen terme\",IF(I7<1,\"Amendement à prévoir à court terme\",IF(I7>1,\"Amendement à prévoir rapidement\",0))))","v":"Amendement à prévoir rapidement"}]
[null,null,{"$f":"Saisie!C21","v":"CaO (mg/kg)"},{"$f":"Saisie!F21","v":0},null,null,null,null,{"$f":"IF(D8>10,\"Teneur en CaCO3 > 10% -> Pas de chaulage à prévoir\", \"Teneur en CaCO3 < 10% -> Chaulage à surveiller\")","v":"Teneur en CaCO3 < 10% -> Chaulage à surveiller"}]

{"sheet":"Variation_pH","index":29,"n_rows":0,"n_cols":0,"rows_kept":0,"cut":false,"hidden":false,"merged":[]}

{"sheet":"pH (2)","index":30,"n_rows":9,"n_cols":10,"rows_kept":9,"cut":false,"hidden":false,"merged":[]}
[]
[]
[]
[]
[]
[null,null,{"$f":"Saisie!C18","v":"pH eau"},{"$f":"Saisie!F18","v":6.4}]
[null,null,{"$f":"Saisie!C19","v":"pH Kcl"},{"$f":"Saisie!F19","v":0},null,null,null,null,{"$f":"D6-D7","v":6.4},"point(s)"]
[null,null,{"$f":"Saisie!C20","v":"CaCO3 total %"},{"$f":"Saisie!F20","v":0},null,null,null,null,{"$f":"IF(D6>6.5,\"\",IF(I7<0.5,\"Amendement à prévoir à moyen terme\",IF(I7<1,\"Amendement à prévoir à court terme\",IF(I7>1,\"Amendement à prévoir rapidement\",0))))","v":"Amendement à prévoir rapidement"}]
[null,null,{"$f":"Saisie!C21","v":"CaO (mg/kg)"},{"$f":"Saisie!F21","v":0}]

{"sheet":"Chaulage","index":31,"n_rows":30,"n_cols":23,"rows_kept":30,"cut":false,"hidden":false,"merged":[]}
[]
[]
[]
[]
[]
[]
[null,null,{"$f":"Saisie!C18","v":"pH eau"},{"$f":"Saisie!F18","v":6.4}]
[null,null,{"$f":"Saisie!C19","v":"pH Kcl"},{"$f":"Saisie!F19","v":0}]
[null,null,{"$f":"Saisie!C20","v":"CaCO3 total %"},{"$f":"Saisie!F20","v":0}]
[null,null,{"$f":"Saisie!C21","v":"CaO (mg/kg)"},{"$f":"Saisie!F21","v":0}]
[null,null,null,null,null,null,null,null,"Année","Culture","pH","pH","Besoins en","Type d'amendement","Quantité"]
[null,null,null,null,null,null,null,null,null,null,"actuel","souhaité","CaO (kg/ha)",null,"(kg/ha)"]
[null,null,null,null,null,null,null,null,null,null,5.3,5.8]
[]
[null,null,"Type de culture","Oléoprotéagineux"]
[]
[null,null,"pH actuel",{"$f":"D7","v":6.4}]
[]
[null,null,"Conseil",{"$f":"INDEX(Feuil1!A19:G26,Feuil1!E1,Feuil1!E12)","v":"Entretien"}]
[]
[]
[]
[]
[null,null,"CEC (meq/100g)",{"$f":"Saisie!L8","v":0}]
[]
[null,null,"Quantité CaO/ha",{"$f":"IF(D19=\"Entretien\", INDEX(Feuil1!B31:U31,1,D24), \"\")","v":220},240,260,280,300,320,340,360,380,400,420,440,460,480,500,520,540,560,580,600]
[]
[null,null,"Type de produit",null,"VN",{"$f":"INDEX(Feuil1!B49:B59,Feuil1!A60,1)","v":{"$error":"#VALUE!"}}]
[]
[null,null,null,"Quantité à apporter",{"$f":"IF(D28>0, D26/(F28/100), \"\")","v":""},"t/ha"]

{"sheet":"Chaulage (2)","index":32,"n_rows":49,"n_cols":21,"rows_kept":49,"cut":false,"hidden":false,"merged":[]}
[]
[]
[]
[]
[]
[null,null,{"$f":"Saisie!C18","v":"pH eau"},{"$f":"Saisie!F18","v":6.4},null,"Type d'amendement basique recommandé (consulter base de données pour le choix)"]
[null,null,{"$f":"Saisie!C19","v":"pH Kcl"},{"$f":"Saisie!F19","v":0},null,{"$f":"IF(D6>=6.5, \"Pas d'intervention à prévoir\", IF(D6<5.5, \"Action rapide\", IF(D6<6, \"Action moyenne à rapide\", IF(D6<6.5, \"Action moyenne à lente\", \"Action moyenne à lente\"))))","v":"Action moyenne à lente"}]
[null,null,{"$f":"Saisie!C20","v":"CaCO3 total %"},{"$f":"Saisie!F20","v":0}]
[null,null,{"$f":"Saisie!C21","v":"CaO (mg/kg)"},{"$f":"Saisie!F21","v":0}]
[]
[]
[]
[]
[]
[]
[null,null,"Année","CULTURE","CONSEIL","pH actuel","pH conseillé à la rotation","pH souhaité","Besoins en CaO (kg/ha)","Apport réalisé","Type d'amendement","Quantité (kg/ha)","Vitesse d'action","Commentaires",null,null,null,null,null,null,"Qté MgO (kg/ha)"]
[null,1,null,6,{"$f":"IF(D17=1, \"\", INDEX(Feuil1!$B$19:$G$26,Feuil1!E1,Feuil1!$E$12))","v":"Impasse"},{"$f":"D6","v":6.4},{"$f":"IF(D17=1, \"\", INDEX(Feuil1!$A$54:$B$61,D17,2))","v":6},null,{"$f":"IF(D17=1,\"\",INDEX($C$44:$L$49,I33,B17))","v":0},false,1,{"$f":"IF(J17=FALSE, \"\", I17/((INDEX(BDD_Chaulage!$B$11:$F$24,K17,4)/100)))","v":""},{"$f":"IF(J17=FALSE, \"\", INDEX(BDD_Chaulage!$B$11:$F$24,K17,5))","v":""},{"$f":"IF(E17=\"\", \"\", IF(G33>0.5, \"Augmentation > 0.5 point\", \"\"))","v":""},null,null,null,null,null,{"$f":"IF(J17=TRUE, 1, 0)","v":0},{"$f":"IF(K17=1,0, L17*INDEX(BDD_Chaulage!$C$11:$D$24,K17,2)/100)","v":0}]
[null,2,null,1,{"$f":"IF(D18=1, \"\", INDEX(Feuil1!$B$19:$G$26,Feuil1!E2,Feuil1!$E$12))","v":""},null,{"$f":"IF(D18=1, \"\", INDEX(Feuil1!$A$54:$B$61,D18,2))","v":""},null,{"$f":"IF(F18=\"\",\"\",INDEX($C$44:$L$49,I34,B18))","v":""},false,1,{"$f":"IF(J18=FALSE, \"\", I18/((INDEX(BDD_Chaulage!$B$11:$F$24,K18,4)/100)))","v":""},{"$f":"IF(J18=FALSE, \"\", INDEX(BDD_Chaulage!$B$11:$F$24,K18,5))","v":""},{"$f":"IF(F18=\"\", \"\", IF(G34>0.5, \"Augmentation > 0.5 point\", \"\"))","v":""},null,null,null,null,null,null,{"$f":"IF(K18=1,0, L18*INDEX(BDD_Chaulage!$C$11:$D$24,K18,2)/100)","v":0}]
[null,3,null,1,{"$f":"IF(D19=1, \"\", INDEX(Feuil1!$B$19:$G$26,Feuil1!E3,Feuil1!$E$12))","v":""},null,{"$f":"IF(D19=1, \"\", INDEX(Feuil1!$A$54:$B$61,D19,2))","v":""},null,{"$f":"IF(F19=\"\",\"\",INDEX($C$44:$L$49,I35,B19))","v":""},false,1,{"$f":"IF(J19=FALSE, \"\", I19/((INDEX(BDD_Chaulage!$B$11:$F$24,K19,4)/100)))","v":""},{"$f":"IF(J19=FALSE, \"\", INDEX(BDD_Chaulage!$B$11:$F$24,K19,5))","v":""},"",null,null,null,null,null,null,{"$f":"IF(K19=1,0, L19*INDEX(BDD_Chaulage!$C$11:$D$24,K19,2)/100)","v":0}]
[null,4,null,1,{"$f":"IF(D20=1, \"\", INDEX(Feuil1!$B$19:$G$26,Feuil1!E4,Feuil1!$E$12))","v":""},null,{"$f":"IF(D20=1, \"\", INDEX(Feuil1!$A$54:$B$61,D20,2))","v":""},null,{"$f":"IF(F20=\"\",\"\",INDEX($C$44:$L$49,I36,B20))","v":""},false,1,{"$f":"IF(J20=FALSE, \"\", I20/((INDEX(BDD_Chaulage!$B$11:$F$24,K20,4)/100)))","v":""},{"$f":"IF(J20=FALSE, \"\", INDEX(BDD_Chaulage!$B$11:$F$24,K20,5))","v":""},"",null,null,null,null,null,null,{"$f":"IF(K20=1,0, L20*INDEX(BDD_Chaulage!$C$11:$D$24,K20,2)/100)","v":0}]
[null,5,null,1,{"$f":"IF(D21=1, \"\", INDEX(Feuil1!$B$19:$G$26,Feuil1!E5,Feuil1!$E$12))","v":""},null,{"$f":"IF(D21=1, \"\", INDEX(Feuil1!$A$54:$B$61,D21,2))","v":""},null,{"$f":"IF(F21=\"\",\"\",INDEX($C$44:$L$49,I37,B21))","v":""},false,1,{"$f":"IF(J21=FALSE, \"\", I21/((INDEX(BDD_Chaulage!$B$11:$F$24,K21,4)/100)))","v":""},{"$f":"IF(J21=FALSE, \"\", INDEX(BDD_Chaulage!$B$11:$F$24,K21,5))","v":""},"",null,null,null,null,null,null,{"$f":"IF(K21=1,0, L21*INDEX(BDD_Chaulage!$C$11:$D$24,K21,2)/100)","v":0}]
[null,6,null,1,{"$f":"IF(D22=1, \"\", INDEX(Feuil1!$B$19:$G$26,Feuil1!E6,Feuil1!$E$12))","v":""},null,{"$f":"IF(D22=1, \"\", INDEX(Feuil1!$A$54:$B$61,D22,2))","v":""},null,{"$f":"IF(F22=\"\",\"\",INDEX($C$44:$L$49,I38,B22))","v":""},null,1,{"$f":"IF(J22=FALSE, \"\", I22/((INDEX(BDD_Chaulage!$B$11:$F$24,K22,4)/100)))","v":""},{"$f":"IF(J22=FALSE, \"\", INDEX(BDD_Chaulage!$B$11:$F$24,K22,5))","v":""},"",null,null,null,null,null,null,{"$f":"IF(K22=1,0, L22*INDEX(BDD_Chaulage!$C$11:$D$24,K22,2)/100)","v":0}]
[null,7,null,1,{"$f":"IF(D23=1, \"\", INDEX(Feuil1!$B$19:$G$26,Feuil1!E7,Feuil1!$E$12))","v":""},null,{"$f":"IF(D23=1, \"\", INDEX(Feuil1!$A$54:$B$61,D23,2))","v":""},null,{"$f":"IF(F23=\"\",\"\",INDEX($C$44:$L$49,I39,B23))","v":""},false,1,{"$f":"IF(J23=FALSE, \"\", I23/((INDEX(BDD_Chaulage!$B$11:$F$24,K23,4)/100)))","v":""},{"$f":"IF(J23=FALSE, \"\", INDEX(BDD_Chaulage!$B$11:$F$24,K23,5))","v":""},"",null,null,null,null,null,null,{"$f":"IF(K23=1,0, L23*INDEX(BDD_Chaulage!$C$11:$D$24,K23,2)/100)","v":0}]
[null,8,null,1,{"$f":"IF(D24=1, \"\", INDEX(Feuil1!$B$19:$G$26,Feuil1!E8,Feuil1!$E$12))","v":""},null,{"$f":"IF(D24=1, \"\", INDEX(Feuil1!$A$54:$B$61,D24,2))","v":""},null,{"$f":"IF(F24=\"\",\"\",INDEX($C$44:$L$49,I40,B24))","v":""},null,1,{"$f":"IF(F24=FALSE, \"\", I24/((INDEX(BDD_Chaulage!$B$11:$F$24,K24,4)/100)))","v":""},{"$f":"IF(J24=FALSE, \"\", INDEX(BDD_Chaulage!$B$11:$F$24,K24,5))","v":""},"",null,null,null,null,null,null,{"$f":"IF(K24=1,0, L24*INDEX(BDD_Chaulage!$C$11:$D$24,K24,2)/100)","v":0}]
[null,9,null,1,{"$f":"IF(D25=1, \"\", INDEX(Feuil1!$B$19:$G$26,Feuil1!E9,Feuil1!$E$12))","v":""},null,{"$f":"IF(D25=1, \"\", INDEX(Feuil1!$A$54:$B$61,D25,2))","v":""},null,{"$f":"IF(F25=\"\",\"\",INDEX($C$44:$L$49,I41,B25))","v":""},null,1,{"$f":"IF(J25=FALSE, \"\", I25/((INDEX(BDD_Chaulage!$B$11:$F$24,K25,4)/100)))","v":""},{"$f":"IF(J25=FALSE, \"\", INDEX(BDD_Chaulage!$B$11:$F$24,K25,5))","v":""},"",null,null,null,null,null,null,{"$f":"IF(K25=1,0, L25*INDEX(BDD_Chaulage!$C$11:$D$24,K25,2)/100)","v":0}]
[null,10,null,1,{"$f":"IF(D26=1, \"\", INDEX(Feuil1!$B$19:$G$26,Feuil1!E10,Feuil1!$E$12))","v":""},null,{"$f":"IF(D26=1, \"\", INDEX(Feuil1!$A$54:$B$61,D26,2))","v":""},null,{"$f":"IF(F26=\"\",\"\",INDEX($C$44:$L$49,I42,B26))","v":""},false,1,{"$f":"IF(J26=FALSE, \"\", I26/((INDEX(BDD_Chaulage!$B$11:$F$24,K26,4)/100)))","v":""},{"$f":"IF(J26=FALSE, \"\", INDEX(BDD_Chaulage!$B$11:$F$24,K26,5))","v":""},"",null,null,null,null,null,null,{"$f":"IF(K26=1,0, L26*INDEX(BDD_Chaulage!$C$11:$D$24,K26,2)/100)","v":0}]
[null,null,null,null,null,null,null,null,null,null,null,null,null,null,null,null,null,null,null,"Somme",{"$f":"SUM(U17:U26)","v":0}]
[]
[]
[]
[]
[]
[null,null,null,null,null,"Ecart",{"$f":"IF(E17=\"\", \"\", IF(H17=\"\", G17-F17, H17-F17))","v":-0.40000000000000036},null,{"$f":"IF(F17>=6.5, 6, IF(E17=\"\", \"\", IF(E17=$C$35, 1, IF(E17=$C$36, 2, IF(F17<5.5, 3, IF('Chaulage (2)'!F17<6, 4, IF(F17<6.5, 5, 6)))))))","v":1}]
[null,null,null,null,null,null,{"$f":"IF(E18=\"\", \"\", IF(H18=\"\", G18-F18, H18-F18))","v":""},null,{"$f":"IF(F18>=6.5, 6, IF(E18=\"\", \"\", IF(E18=$C$35, 1, IF(E18=$C$36, 2, IF(F18<5.5, 3, IF('Chaulage (2)'!F18<6, 4, IF(F18<6.5, 5, 6)))))))","v":""}]
[null,null,"Impasse",null,null,null,"",null,{"$f":"IF(F19>=6.5, 6, IF(E19=\"\", \"\", IF(E19=$C$35, 1, IF(E19=$C$36, 2, IF(F19<5.5, 3, IF('Chaulage (2)'!F19<6, 4, IF(F19<6.5, 5, 6)))))))","v":""}]
[null,null,"Entretien",null,null,null,"",null,{"$f":"IF(F20>=6.5, 6, IF(E20=\"\", \"\", IF(E20=$C$35, 1, IF(E20=$C$36, 2, IF(F20<5.5, 3, IF('Chaulage (2)'!F20<6, 4, IF(F20<6.5, 5, 6)))))))","v":""}]
[null,null,"Redressement",null,null,null,"",null,{"$f":"IF(F21>=6.5, 6, IF(E21=\"\", \"\", IF(E21=$C$35, 1, IF(E21=$C$36, 2, IF(F21<5.5, 3, IF('Chaulage (2)'!F21<6, 4, IF(F21<6.5, 5, 6)))))))","v":""}]
[null,null,null,null,null,null,"",null,{"$f":"IF(F22>=6.5, 6, IF(E22=\"\", \"\", IF(E22=$C$35, 1, IF(E22=$C$36, 2, IF(F22<5.5, 3, IF('Chaulage (2)'!F22<6, 4, IF(F22<6.5, 5, 6)))))))","v":""}]
[null,null,null,null,null,null,"",null,{"$f":"IF(F23>=6.5, 6, IF(E23=\"\", \"\", IF(E23=$C$35, 1, IF(E23=$C$36, 2, IF(F23<5.5, 3, IF('Chaulage (2)'!F23<6, 4, IF(F23<6.5, 5, 6)))))))","v":""}]
[null,null,null,null,null,null,"",null,{"$f":"IF(F24>=6.5, 6, IF(E24=\"\", \"\", IF(E24=$C$35, 1, IF(E24=$C$36, 2, IF(F24<5.5, 3, IF('Chaulage (2)'!F24<6, 4, IF(F24<6.5, 5, 6)))))))","v":""}]
[null,null,null,null,null,null,"",null,{"$f":"IF(F25>=6.5, 6, IF(E25=\"\", \"\", IF(E25=$C$35, 1, IF(E25=$C$36, 2, IF(F25<5.5, 3, IF('Chaulage (2)'!F25<6, 4, IF(F25<6.5, 5, 6)))))))","v":""}]
[null,null,null,null,null,null,"",null,{"$f":"IF(F26>=6.5, 6, IF(E26=\"\", \"\", IF(E26=$C$35, 1, IF(E26=$C$36, 2, IF(F26<5.5, 3, IF('Chaulage (2)'!F26<6, 4, IF(F26<6.5, 5, 6)))))))","v":""}]
[null,null,1,2,3,4,5,6,7,8,9,10]
[null,1,0,0,0,0,0,0,0,0,0,0]
[null,2,{"$f":"(20*Saisie!$L$8)+200","v":200},{"$f":"(20*Saisie!$L$8)+200","v":200},{"$f":"(20*Saisie!$L$8)+200","v":200},{"$f":"(20*Saisie!$L$8)+200","v":200},{"$f":"(20*Saisie!$L$8)+200","v":200},{"$f":"(20*Saisie!$L$8)+200","v":200},{"$f":"(20*Saisie!$L$8)+200","v":200},{"$f":"(20*Saisie!$L$8)+200","v":200},{"$f":"(20*Saisie!$L$8)+200","v":200},{"$f":"(20*Saisie!$L$8)+200","v":200}]
[null,3,{"$f":"(12*($G$33*10)*Saisie!$L$8)+400","v":400},{"$f":"(12*($G$34*10)*Saisie!$L$8)+400","v":{"$error":"#VALUE!"}},{"$f":"(12*($G$35*10)*Saisie!$L$8)+400","v":{"$error":"#VALUE!"}},{"$f":"(12*($G$36*10)*Saisie!$L$8)+400","v":{"$error":"#VALUE!"}},{"$f":"(12*($G$37*10)*Saisie!$L$8)+400","v":{"$error":"#VALUE!"}},{"$f":"(12*($G$38*10)*Saisie!$L$8)+400","v":{"$error":"#VALUE!"}},{"$f":"(12*($G$39*10)*Saisie!$L$8)+400","v":{"$error":"#VALUE!"}},{"$f":"(12*($G$40*10)*Saisie!$L$8)+400","v":{"$error":"#VALUE!"}},{"$f":"(12*($G$41*10)*Saisie!$L$8)+400","v":{"$error":"#VALUE!"}},{"$f":"(12*($G$42*10)*Saisie!$L$8)+400","v":{"$error":"#VALUE!"}}]
[null,4,{"$f":"(16*($G$33*10)*Saisie!$L$8)+500","v":500},{"$f":"(16*($G$34*10)*Saisie!$L$8)+500","v":{"$error":"#VALUE!"}},{"$f":"(16*($G$35*10)*Saisie!$L$8)+500","v":{"$error":"#VALUE!"}},{"$f":"(16*($G$36*10)*Saisie!$L$8)+500","v":{"$error":"#VALUE!"}},{"$f":"(16*($G$37*10)*Saisie!$L$8)+500","v":{"$error":"#VALUE!"}},{"$f":"(16*($G$38*10)*Saisie!$L$8)+500","v":{"$error":"#VALUE!"}},{"$f":"(16*($G$39*10)*Saisie!$L$8)+500","v":{"$error":"#VALUE!"}},{"$f":"(16*($G$40*10)*Saisie!$L$8)+500","v":{"$error":"#VALUE!"}},{"$f":"(16*($G$41*10)*Saisie!$L$8)+500","v":{"$error":"#VALUE!"}},{"$f":"(16*($G$42*10)*Saisie!$L$8)+500","v":{"$error":"#VALUE!"}}]
[null,5,{"$f":"(20*($G$33*10)*Saisie!$L$8)+600","v":600},{"$f":"(20*($G$34*10)*Saisie!$L$8)+600","v":{"$error":"#VALUE!"}},{"$f":"(20*($G$35*10)*Saisie!$L$8)+600","v":{"$error":"#VALUE!"}},{"$f":"(20*($G$36*10)*Saisie!$L$8)+600","v":{"$error":"#VALUE!"}},{"$f":"(20*($G$37*10)*Saisie!$L$8)+600","v":{"$error":"#VALUE!"}},{"$f":"(20*($G$38*10)*Saisie!$L$8)+600","v":{"$error":"#VALUE!"}},{"$f":"(20*($G$39*10)*Saisie!$L$8)+600","v":{"$error":"#VALUE!"}},{"$f":"(20*($G$40*10)*Saisie!$L$8)+600","v":{"$error":"#VALUE!"}},{"$f":"(20*($G$41*10)*Saisie!$L$8)+600","v":{"$error":"#VALUE!"}},{"$f":"(20*($G$42*10)*Saisie!$L$8)+600","v":{"$error":"#VALUE!"}}]
[null,6,{"$f":"(24*($G$33*10)*Saisie!$L$8)+700","v":700},{"$f":"(24*($G$34*10)*Saisie!$L$8)+700","v":{"$error":"#VALUE!"}},{"$f":"(24*($G$35*10)*Saisie!$L$8)+700","v":{"$error":"#VALUE!"}},{"$f":"(24*($G$36*10)*Saisie!$L$8)+700","v":{"$error":"#VALUE!"}},{"$f":"(24*($G$37*10)*Saisie!$L$8)+700","v":{"$error":"#VALUE!"}},{"$f":"(24*($G$38*10)*Saisie!$L$8)+700","v":{"$error":"#VALUE!"}},{"$f":"(24*($G$39*10)*Saisie!$L$8)+700","v":{"$error":"#VALUE!"}},{"$f":"(24*($G$40*10)*Saisie!$L$8)+700","v":{"$error":"#VALUE!"}},{"$f":"(24*($G$41*10)*Saisie!$L$8)+700","v":{"$error":"#VALUE!"}},{"$f":"(24*($G$42*10)*Saisie!$L$8)+700","v":{"$error":"#VALUE!"}}]

{"sheet":"BDD_Chaulage","index":33,"n_rows":24,"n_cols":6,"rows_kept":24,"cut":false,"hidden":false,"merged":[]}
[]
[]
[null,"LES AMENDEMENTS CALCIQUES ET MAGNESIENS"]
[]
[]
[]
[]
[]
[]
[null,"Type de produit","% CaO","%MgO","VN %","Vitesse d'action"]
[]
[null,"Amendement sidérurgique",41,4,{"$f":"C12+(1.4*D12)","v":46.6},"Rapide"]
[null,"Calcaire broyé",53,2,55.8,"Moyenne"]
[null,"Calcaire pulvérisé",53,2,55.8,"Rapide"]
[null,"Chaux magnésienne",49,31,92.4,"Rapide"]
[null,"Chaux vive",92,0,92,"Rapide"]
[null,"Dolomie broyée",33,19,59.599999999999994,"Lente"]
[null,"Dolomie pulvérisée",33,19,59.599999999999994,"Moyenne"]
[null,"Marne Blanche ou Carbonate de Calcium",51.1,0.4,51.660000000000004,"Lente"]
[null,"Scories Thomas",41,3,45.2,"Rapide"]
[null,null,null,null,0]
[null,null,null,null,0]
[null,null,null,null,0]
[null,null,null,null,0]

{"sheet":"PK","index":34,"n_rows":172,"n_cols":24,"rows_kept":172,"cut":false,"hidden":false,"merged":[[17,2,17,7]]}
[]
[]
[null,null,null,null,null,null,null,null,"Situation de votre parcelle"]
[null,null,null,null,null,null,null,null,1,null,null,null,null,null,null,null,null,null,null,null,null,null,null,"Code"]
[null,null,{"$f":"Saisie!K20","v":"P2O5 (mg/kg)"},{"$f":"Saisie!N20","v":0},2,null,"Région",3,"Phosphore",{"$f":"IF($E$63=1, \"X\", \" \")","v":" "},{"$f":"IF($E$63=2, \"X\", \" \")","v":" "},{"$f":"IF($E$63=3, \"X\", \" \")","v":" "},{"$f":"IF($E$63=4, \"X\", \" \")","v":" "},{"$f":"IF($E$63=5, \"X\", \" \")","v":" "},{"$f":"IF($E$63=6, \"X\", \" \")","v":" "},{"$f":"IF($E$63=7, \"X\", \" \")","v":" "},null,null,null,null,{"$f":"U6-1","v":2},"Concatener",{"$f":"CONCATENATE(U5,U7)","v":"21"},{"$f":"VLOOKUP(W6, BDD_Phosphore!K4:L90, 2)","v":5}]
[null,null,{"$f":"Saisie!K21","v":"K2O (mg/kg)"},{"$f":"Saisie!N21","v":0},null,null,null,null,"Potasse",{"$f":"IF($E$64=1, \"X\", \" \")","v":" "},{"$f":"IF($E$64=2, \"X\", \" \")","v":" "},{"$f":"IF($E$64=3, \"X\", \" \")","v":" "},{"$f":"IF($E$64=4, \"X\", \" \")","v":" "},{"$f":"IF($E$64=5, \"X\", \" \")","v":" "},{"$f":"IF($E$64=6, \"X\", \" \")","v":" "},{"$f":"IF($E$64=7, \"X\", \" \")","v":" "},null,null,null,null,{"$f":"H5","v":3},"Region",{"$f":"INDEX(U11:V172,W5,2)","v":21}]
[null,null,null,null,null,null,"Type de sol",1,null,null,null,null,null,null,null,null,null,null,null,null,{"$f":"H7","v":1},"Type sol"]
[]
[null,null,"CULTURES",1,1,1,1,1]
[null,null,"Objectif de rendement (q - cultures ou t/ha -fourrage)"]
[null,null,"P2O5",{"$f":"IF(D9=1, \"\", INDEX(Feuil9!$A$9:$G$48,D9,6))","v":""},{"$f":"IF(E9=1, \"\", INDEX(Feuil9!$A$9:$G$48,E9,6))","v":""},{"$f":"IF(F9=1, \"\", INDEX(Feuil9!$A$9:$G$48,F9,6))","v":""},{"$f":"IF(G9=1, \"\", INDEX(Feuil9!$A$9:$G$48,G9,6))","v":""},{"$f":"IF(H9=1, \"\", INDEX(Feuil9!$A$9:$G$48,H9,6))","v":""},null,null,null,null,null,null,null,null,null,null,null,null,1,1]
[null,null,"K2O",{"$f":"IF(D9=1, \"\", INDEX(Feuil9!$A$9:$G$48,D9,7))","v":""},{"$f":"IF(E9=1, \"\", INDEX(Feuil9!$A$9:$G$48,E9,7))","v":""},{"$f":"IF(F9=1, \"\", INDEX(Feuil9!$A$9:$G$48,F9,7))","v":""},{"$f":"IF(G9=1, \"\", INDEX(Feuil9!$A$9:$G$48,G9,7))","v":""},{"$f":"IF(H9=1, \"\", INDEX(Feuil9!$A$9:$G$48,H9,7))","v":""},null,null,null,null,null,null,null,null,null,null,null,null,2,2]
[null,null,"Devenir des résidus",2,1,2,1,1,null,null,null,null,null,null,null,null,null,null,null,null,3,3]
[null,null,"Rendement paille (t/ha)",null,null,null,null,null,null,null,null,null,null,null,null,null,null,null,null,null,4,4]
[null,null,"Nombre d'années sans apport",1,1,1,1,1,null,null,null,null,null,null,null,null,null,null,null,null,5,5]
[null,null,"P2O5",{"$f":"IF(D9=1, 0, IF(D13=1, (D27*D38), (D27*D38)+D29))","v":0},{"$f":"IF(E9=1, 0, IF(D13=1, (E27*E38), (E27*E38)+D28))","v":0},{"$f":"IF(F9=1, 0, IF(E13=1, (F27*F38), (F27*F38)+E29))","v":0},{"$f":"IF(G9=1, 0, IF(F13=1, (G27*G38), (G27*G38)+F29))","v":0},{"$f":"IF(H9=1,0, IF(G13=1, (H27*H38), (H27*H38)+G29))","v":0},null,null,null,null,null,null,null,null,null,null,null,null,6,6]
[null,null,"K2O",{"$f":"IF(D9=1, 0, IF(D13=1, (D53*D52), (D53*D52)+D55))","v":0},{"$f":"IF(E9=1, 0, IF(D13=1, (E53*E52), (E53*E52)+D55))","v":0},{"$f":"IF(F9=1, 0, IF(E13=1, (F53*F52), (F53*F52)+E55))","v":0},{"$f":"IF(G9=1, 0, IF(F13=1, (G53*G52), (G53*G52)+F55))","v":0},{"$f":"IF(H9=1, 0, IF(G13=1, (H53*H52), (H53*H52)+G55))","v":0},null,null,null,null,null,null,null,null,null,null,null,null,7,7]
[null,null,"PLAN D'UTILISATION DES ENGRAIS MINERAUX OU ORGANIQUES (en t/ha)",null,null,null,null,null,null,null,null,null,null,null,null,null,null,null,null,{"$f":"IF(J18=TRUE, 1, 0)","v":0},8,8]
[null,null,3,null,null,null,null,null,null,null,null,null,null,null,null,null,null,null,null,null,9,9]
[null,null,25,null,null,null,null,null,null,null,null,null,null,null,null,null,null,null,null,null,10,10]
[null,null,24,null,null,null,null,null,null,null,null,null,null,null,null,null,null,null,null,null,11,11]
[null,null,1,null,null,null,null,null,null,null,null,null,null,null,null,null,null,null,null,null,12,12]
[null,null,1,null,null,null,null,null,true,null,null,null,false,null,null,null,null,null,null,null,13,13]
[null,null,null,null,null,null,null,null,null,null,null,null,null,null,null,null,null,null,null,null,14,14]
[null,null,null,null,null,null,null,null,null,null,null,null,null,null,null,null,null,null,null,null,15,15]
[null,null,"Phosphore",null,null,null,null,null,null,null,null,null,null,null,null,null,null,null,null,null,16,16]
[null,null,"Exportation grain",{"$f":"D10*INDEX(Feuil9!$A$9:$E$48,D9,2)","v":0},{"$f":"E10*INDEX(Feuil9!$A$9:$E$48,E9,2)","v":0},{"$f":"F10*INDEX(Feuil9!$A$9:$E$48,F9,2)","v":0},{"$f":"G10*INDEX(Feuil9!$A$9:$E$48,G9,2)","v":0},{"$f":"H10*INDEX(Feuil9!$A$9:$E$48,H9,2)","v":0},null,null,null,null,null,null,null,null,null,null,null,null,17,17]
[null,null,"Exportation paille",{"$f":"D14*INDEX(Feuil9!$A$9:$E$48,D9,3)","v":0},{"$f":"E14*INDEX(Feuil9!$A$9:$E$48,E9,3)","v":0},{"$f":"F14*INDEX(Feuil9!$A$9:$E$48,F9,3)","v":0},{"$f":"G14*INDEX(Feuil9!$A$9:$E$48,G9,3)","v":0},{"$f":"H14*INDEX(Feuil9!$A$9:$E$48,H9,3)","v":0},null,null,null,null,null,null,null,null,null,null,null,null,18,18]
[null,null,"Export paille corrigé",{"$f":"IF($D$5<D33, D28, 0)","v":0},{"$f":"IF($D$5<E33, E28, 0)","v":0},{"$f":"IF($D$5<F33, F28, 0)","v":0},{"$f":"IF($D$5<G33, G28, 0)","v":0},{"$f":"IF($D$5<H33, H28, 0)","v":0},null,null,null,null,null,null,null,null,null,null,null,null,19,19]
[null,null,"Classe seuil",{"$f":"IF(D11=\"\", \"\", IF(D11=\"Peu exigeante\", 3, IF(D11=\"Moyennement exigeante\", 2, 1)))","v":""},{"$f":"IF(E11=\"\", \"\", IF(E11=\"Peu exigeante\", 3, IF(E11=\"Moyennement exigeante\", 2, 1)))","v":""},{"$f":"IF(F11=\"\", \"\", IF(F11=\"Peu exigeante\", 3, IF(F11=\"Moyennement exigeante\", 2, 1)))","v":""},{"$f":"IF(G11=\"\", \"\", IF(G11=\"Peu exigeante\", 3, IF(G11=\"Moyennement exigeante\", 2, 1)))","v":""},{"$f":"IF(H11=\"\", \"\", IF(H11=\"Peu exigeante\", 3, IF(H11=\"Moyennement exigeante\", 2, 1)))","v":""},null,null,null,null,null,null,null,null,null,null,null,null,20,20]
[null,null,"T renf",{"$f":"IF(D30=\"\", \"\", IF(D30=1, INDEX(BDD_Phosphore!$D$4:$I$90,$X$5,1), IF(D30=2, INDEX(BDD_Phosphore!$D$4:$I$90,$X$5,3), IF(D30=3, INDEX(BDD_Phosphore!$D$4:$I$90,$X$5,5)))))","v":""},{"$f":"IF(E30=\"\", \"\", IF(E30=1, INDEX(BDD_Phosphore!$D$4:$I$90,$X$5,1), IF(E30=2, INDEX(BDD_Phosphore!$D$4:$I$90,$X$5,3), IF(E30=3, INDEX(BDD_Phosphore!$D$4:$I$90,$X$5,5)))))","v":""},{"$f":"IF(F30=\"\", \"\", IF(F30=1, INDEX(BDD_Phosphore!$D$4:$I$90,$X$5,1), IF(F30=2, INDEX(BDD_Phosphore!$D$4:$I$90,$X$5,3), IF(F30=3, INDEX(BDD_Phosphore!$D$4:$I$90,$X$5,5)))))","v":""},{"$f":"IF(G30=\"\", \"\", IF(G30=1, INDEX(BDD_Phosphore!$D$4:$I$90,$X$5,1), IF(G30=2, INDEX(BDD_Phosphore!$D$4:$I$90,$X$5,3), IF(G30=3, INDEX(BDD_Phosphore!$D$4:$I$90,$X$5,5)))))","v":""},{"$f":"IF(H30=\"\", \"\", IF(H30=1, INDEX(BDD_Phosphore!$D$4:$I$90,$X$5,1), IF(H30=2, INDEX(BDD_Phosphore!$D$4:$I$90,$X$5,3), IF(H30=3, INDEX(BDD_Phosphore!$D$4:$I$90,$X$5,5)))))","v":""},null,null,null,null,null,null,null,null,null,null,null,null,21,21]
[null,null,"T Imp -10%",{"$f":"IF(D33=\"\", \"\", D33-(D33*10%))","v":""},{"$f":"IF(E33=\"\", \"\", E33-(E33*10%))","v":""},{"$f":"IF(F33=\"\", \"\", F33-(F33*10%))","v":""},{"$f":"IF(G33=\"\", \"\", G33-(G33*10%))","v":""},{"$f":"IF(H33=\"\", \"\", H33-(H33*10%))","v":""},null,null,null,null,null,null,null,null,null,null,null,null,22,22]
[null,null,"T imp",{"$f":"IF(D30=\"\", \"\", IF(D30=1, INDEX(BDD_Phosphore!$D$4:$I$90,$X$5,2), IF(D30=2, INDEX(BDD_Phosphore!$D$4:$I$90,$X$5,4), IF(D30=3, INDEX(BDD_Phosphore!$D$4:$I$90,$X$5,6)))))","v":""},{"$f":"IF(E30=\"\", \"\", IF(E30=1, INDEX(BDD_Phosphore!$D$4:$I$90,$X$5,2), IF(E30=2, INDEX(BDD_Phosphore!$D$4:$I$90,$X$5,4), IF(E30=3, INDEX(BDD_Phosphore!$D$4:$I$90,$X$5,6)))))","v":""},{"$f":"IF(F30=\"\", \"\", IF(F30=1, INDEX(BDD_Phosphore!$D$4:$I$90,$X$5,2), IF(F30=2, INDEX(BDD_Phosphore!$D$4:$I$90,$X$5,4), IF(F30=3, INDEX(BDD_Phosphore!$D$4:$I$90,$X$5,6)))))","v":""},{"$f":"IF(G30=\"\", \"\", IF(G30=1, INDEX(BDD_Phosphore!$D$4:$I$90,$X$5,2), IF(G30=2, INDEX(BDD_Phosphore!$D$4:$I$90,$X$5,4), IF(G30=3, INDEX(BDD_Phosphore!$D$4:$I$90,$X$5,6)))))","v":""},{"$f":"IF(H30=\"\", \"\", IF(H30=1, INDEX(BDD_Phosphore!$D$4:$I$90,$X$5,2), IF(H30=2, INDEX(BDD_Phosphore!$D$4:$I$90,$X$5,4), IF(H30=3, INDEX(BDD_Phosphore!$D$4:$I$90,$X$5,6)))))","v":""},null,null,null,null,null,null,null,null,null,null,null,null,23,23]
[null,null,"T imp +10%",{"$f":"IF(D33=\"\",\"\",D33+(D33*10%))","v":""},{"$f":"IF(E33=\"\",\"\",E33+(E33*10%))","v":""},{"$f":"IF(F33=\"\",\"\",F33+(F33*10%))","v":""},{"$f":"IF(G33=\"\",\"\",G33+(G33*10%))","v":""},{"$f":"IF(H33=\"\",\"\",H33+(H33*10%))","v":""},null,null,null,null,null,null,null,null,null,null,null,null,24,24]
[null,null,"T imp x2",{"$f":"IF(D33=\"\", \"\", D33*2)","v":""},{"$f":"IF(E33=\"\", \"\", E33*2)","v":""},{"$f":"IF(F33=\"\", \"\", F33*2)","v":""},{"$f":"IF(G33=\"\", \"\", G33*2)","v":""},{"$f":"IF(H33=\"\", \"\", H33*2)","v":""},null,null,null,null,null,null,null,null,null,null,null,null,25,25]
[null,null,"T imp x3",{"$f":"IF(D33=\"\", \"\", D33*3)","v":""},{"$f":"IF(E33=\"\", \"\", E33*3)","v":""},{"$f":"IF(F33=\"\", \"\", F33*3)","v":""},{"$f":"IF(G33=\"\", \"\", G33*3)","v":""},{"$f":"IF(H33=\"\", \"\", H33*3)","v":""},null,null,null,null,null,null,null,null,null,null,null,null,26,26]
[null,null,"Classe seuil tableau",{"$f":"IF(D30=\"\", \"\", IF($D$5<D31, 1, IF($D$5<D32, 2, IF($D$5<D33, 3, IF($D$5<D34, 4, IF($D$5<D35, 5, IF($D$5<D36, 6, IF($D$5>D36, 7, \"\"))))))))","v":""},{"$f":"IF(E30=\"\", \"\", IF($D$5<E31, 1, IF($D$5<E32, 2, IF($D$5<E33, 3, IF($D$5<E34, 4, IF($D$5<E35, 5, IF($D$5<E36, 6, IF($D$5>E36, 7, \"\"))))))))","v":""},{"$f":"IF(F30=\"\", \"\", IF($D$5<F31, 1, IF($D$5<F32, 2, IF($D$5<F33, 3, IF($D$5<F34, 4, IF($D$5<F35, 5, IF($D$5<F36, 6, IF($D$5>F36, 7, \"\"))))))))","v":""},{"$f":"IF(G30=\"\", \"\", IF($D$5<G31, 1, IF($D$5<G32, 2, IF($D$5<G33, 3, IF($D$5<G34, 4, IF($D$5<G35, 5, IF($D$5<G36, 6, IF($D$5>G36, 7, \"\"))))))))","v":""},{"$f":"IF(H30=\"\", \"\", IF($D$5<H31, 1, IF($D$5<H32, 2, IF($D$5<H33, 3, IF($D$5<H34, 4, IF($D$5<H35, 5, IF($D$5<H36, 6, IF($D$5>H36, 7, \"\"))))))))","v":""},null,null,null,null,null,null,null,null,null,null,null,null,27,27]
[null,null,"Coeff",{"$f":"IF(D30=\"\", \"\", IF(D11=\"Très exigeante\", INDEX(Calcul_Seuils_PK!$C$8:$I$10,D15,D37), IF(D11=\"Moyennement exigeante\", INDEX(Calcul_Seuils_PK!$C$11:$I$13,D15,D37), INDEX(Calcul_Seuils_PK!$C$14:$I$16,D15,D37))))","v":""},{"$f":"IF(E30=\"\", \"\", IF(E11=\"Très exigeante\", INDEX(Calcul_Seuils_PK!$C$8:$I$10,E15,E37), IF(E11=\"Moyennement exigeante\", INDEX(Calcul_Seuils_PK!$C$11:$I$13,E15,E37), INDEX(Calcul_Seuils_PK!$C$14:$I$16,E15,E37))))","v":""},{"$f":"IF(F30=\"\", \"\", IF(F11=\"Très exigeante\", INDEX(Calcul_Seuils_PK!$C$8:$I$10,F15,F37), IF(F11=\"Moyennement exigeante\", INDEX(Calcul_Seuils_PK!$C$11:$I$13,F15,F37), INDEX(Calcul_Seuils_PK!$C$14:$I$16,F15,F37))))","v":""},{"$f":"IF(G30=\"\", \"\", IF(G11=\"Très exigeante\", INDEX(Calcul_Seuils_PK!$C$8:$I$10,G15,G37), IF(G11=\"Moyennement exigeante\", INDEX(Calcul_Seuils_PK!$C$11:$I$13,G15,G37), INDEX(Calcul_Seuils_PK!$C$14:$I$16,G15,G37))))","v":""},{"$f":"IF(H30=\"\", \"\", IF(H11=\"Très exigeante\", INDEX(Calcul_Seuils_PK!$C$8:$I$10,H15,H37), IF(H11=\"Moyennement exigeante\", INDEX(Calcul_Seuils_PK!$C$11:$I$13,H15,H37), INDEX(Calcul_Seuils_PK!$C$14:$I$16,H15,H37))))","v":""},null,null,null,null,null,null,null,null,null,null,null,null,28,28]
[null,null,null,null,null,null,null,null,null,null,null,null,null,null,null,null,null,null,null,null,29,29]
[null,null,null,null,null,null,null,null,null,null,null,null,null,null,null,null,null,null,null,null,30,30]
[null,null,null,null,null,null,null,null,null,null,null,null,null,null,null,null,null,null,null,null,31,31]
[null,null,null,null,null,null,null,null,null,null,null,null,null,null,null,null,null,null,null,null,32,32]
[null,null,"Potasse",null,null,null,null,null,null,null,null,null,null,null,null,null,null,null,null,null,33,33]
[null,null,"Classe seuil",{"$f":"IF(D12=\"\", \"\", IF(D12=\"Peu exigeante\", 3, IF(D12=\"Moyennement exigeante\", 2, 1)))","v":""},{"$f":"IF(E12=\"\", \"\", IF(E12=\"Peu exigeante\", 3, IF(E12=\"Moyennement exigeante\", 2, 1)))","v":""},{"$f":"IF(F12=\"\", \"\", IF(F12=\"Peu exigeante\", 3, IF(F12=\"Moyennement exigeante\", 2, 1)))","v":""},{"$f":"IF(G12=\"\", \"\", IF(G12=\"Peu exigeante\", 3, IF(G12=\"Moyennement exigeante\", 2, 1)))","v":""},{"$f":"IF(H12=\"\", \"\", IF(H12=\"Peu exigeante\", 3, IF(H12=\"Moyennement exigeante\", 2, 1)))","v":""},null,null,null,null,null,null,null,null,null,null,null,null,34,34]
[null,null,"T renf",{"$f":"IF(D44=\"\", \"\", IF(D44=1, INDEX(BDD_Potasse!$D$4:$I$90,$X$5,1), IF(D44=2, INDEX(BDD_Potasse!$D$4:$I$90,$X$5,3), IF(D44=3, INDEX(BDD_Potasse!$D$4:$I$90,$X$5,5)))))","v":""},{"$f":"IF(E44=\"\", \"\", IF(E44=1, INDEX(BDD_Potasse!$D$4:$I$90,$X$5,1), IF(E44=2, INDEX(BDD_Potasse!$D$4:$I$90,$X$5,3), IF(E44=3, INDEX(BDD_Potasse!$D$4:$I$90,$X$5,5)))))","v":""},{"$f":"IF(F44=\"\", \"\", IF(F44=1, INDEX(BDD_Potasse!$D$4:$I$90,$X$5,1), IF(F44=2, INDEX(BDD_Potasse!$D$4:$I$90,$X$5,3), IF(F44=3, INDEX(BDD_Potasse!$D$4:$I$90,$X$5,5)))))","v":""},{"$f":"IF(G44=\"\", \"\", IF(G44=1, INDEX(BDD_Potasse!$D$4:$I$90,$X$5,1), IF(G44=2, INDEX(BDD_Potasse!$D$4:$I$90,$X$5,3), IF(G44=3, INDEX(BDD_Potasse!$D$4:$I$90,$X$5,5)))))","v":""},{"$f":"IF(H44=\"\", \"\", IF(H44=1, INDEX(BDD_Potasse!$D$4:$I$90,$X$5,1), IF(H44=2, INDEX(BDD_Potasse!$D$4:$I$90,$X$5,3), IF(H44=3, INDEX(BDD_Potasse!$D$4:$I$90,$X$5,5)))))","v":""},null,null,null,null,null,null,null,null,null,null,null,null,35,35]
[null,null,"T Imp -10%",{"$f":"IF(D47=\"\", \"\", D47-(D47*10%))","v":""},{"$f":"IF(E47=\"\", \"\", E47-(E47*10%))","v":""},{"$f":"IF(F47=\"\", \"\", F47-(F47*10%))","v":""},{"$f":"IF(G47=\"\", \"\", G47-(G47*10%))","v":""},{"$f":"IF(H47=\"\", \"\", H47-(H47*10%))","v":""},null,null,null,null,null,null,null,null,null,null,null,null,36,36]
[null,null,"T imp",{"$f":"IF(D44=\"\", \"\", IF(D44=1, INDEX(BDD_Potasse!$D$4:$J$90,$X$5,2), IF(D44=2, INDEX(BDD_Potasse!$D$4:$J$90,$X$5,4), IF(D44=3, INDEX(BDD_Potasse!$D$4:$J$90,$X$5,6)))))","v":""},{"$f":"IF(E44=\"\", \"\", IF(E44=1, INDEX(BDD_Potasse!$D$4:$J$90,$X$5,2), IF(E44=2, INDEX(BDD_Potasse!$D$4:$J$90,$X$5,4), IF(E44=3, INDEX(BDD_Potasse!$D$4:$J$90,$X$5,6)))))","v":""},{"$f":"IF(F44=\"\", \"\", IF(F44=1, INDEX(BDD_Potasse!$D$4:$J$90,$X$5,2), IF(F44=2, INDEX(BDD_Potasse!$D$4:$J$90,$X$5,4), IF(F44=3, INDEX(BDD_Potasse!$D$4:$J$90,$X$5,6)))))","v":""},{"$f":"IF(G44=\"\", \"\", IF(G44=1, INDEX(BDD_Potasse!$D$4:$J$90,$X$5,2), IF(G44=2, INDEX(BDD_Potasse!$D$4:$J$90,$X$5,4), IF(G44=3, INDEX(BDD_Potasse!$D$4:$J$90,$X$5,6)))))","v":""},{"$f":"IF(H44=\"\", \"\", IF(H44=1, INDEX(BDD_Potasse!$D$4:$J$90,$X$5,2), IF(H44=2, INDEX(BDD_Potasse!$D$4:$J$90,$X$5,4), IF(H44=3, INDEX(BDD_Potasse!$D$4:$J$90,$X$5,6)))))","v":""},null,null,null,null,null,null,null,null,null,null,null,null,37,37]
[null,null,"T imp +10%",{"$f":"IF(D47=\"\",\"\",D47+(D47*10%))","v":""},{"$f":"IF(E47=\"\",\"\",E47+(E47*10%))","v":""},{"$f":"IF(F47=\"\",\"\",F47+(F47*10%))","v":""},{"$f":"IF(G47=\"\",\"\",G47+(G47*10%))","v":""},{"$f":"IF(H47=\"\",\"\",H47+(H47*10%))","v":""},null,null,null,null,null,null,null,null,null,null,null,null,38,38]
[null,null,"T imp x2",{"$f":"IF(D47=\"\", \"\", D47*2)","v":""},{"$f":"IF(E47=\"\", \"\", E47*2)","v":""},{"$f":"IF(F47=\"\", \"\", F47*2)","v":""},{"$f":"IF(G47=\"\", \"\", G47*2)","v":""},{"$f":"IF(H47=\"\", \"\", H47*2)","v":""},null,null,null,null,null,null,null,null,null,null,null,null,39,39]
[null,null,"T imp x3",{"$f":"IF(D47=\"\", \"\", D47*3)","v":""},{"$f":"IF(E47=\"\", \"\", E47*3)","v":""},{"$f":"IF(F47=\"\", \"\", F47*3)","v":""},{"$f":"IF(G47=\"\", \"\", G47*3)","v":""},{"$f":"IF(H47=\"\", \"\", H47*3)","v":""},null,null,null,null,null,null,null,null,null,null,null,null,40,40]
[null,null,"Classe seuil tableau",{"$f":"IF(D44=\"\", \"\", IF($D$6<D45, 1, IF($D$6<D46, 2, IF($D$6<D47, 3, IF($D$6<D48, 4, IF($D$6<D49, 5, IF($D$6<D50, 6, IF($D$6>D50, 7, \"\"))))))))","v":""},{"$f":"IF(E44=\"\", \"\", IF($D$6<E45, 1, IF($D$6<E46, 2, IF($D$6<E47, 3, IF($D$6<E48, 4, IF($D$6<E49, 5, IF($D$6<E50, 6, IF($D$6>E50, 7, \"\"))))))))","v":""},{"$f":"IF(F44=\"\", \"\", IF($D$6<F45, 1, IF($D$6<F46, 2, IF($D$6<F47, 3, IF($D$6<F48, 4, IF($D$6<F49, 5, IF($D$6<F50, 6, IF($D$6>F50, 7, \"\"))))))))","v":""},{"$f":"IF(G44=\"\", \"\", IF($D$6<G45, 1, IF($D$6<G46, 2, IF($D$6<G47, 3, IF($D$6<G48, 4, IF($D$6<G49, 5, IF($D$6<G50, 6, IF($D$6>G50, 7, \"\"))))))))","v":""},{"$f":"IF(H44=\"\", \"\", IF($D$6<H45, 1, IF($D$6<H46, 2, IF($D$6<H47, 3, IF($D$6<H48, 4, IF($D$6<H49, 5, IF($D$6<H50, 6, IF($D$6>H50, 7, \"\"))))))))","v":""},null,null,null,null,null,null,null,null,null,null,null,null,41,41]
[null,null,"Coeff",{"$f":"IF(D56=\"VRAI\", D57, IF(D44=\"\", \"\", IF(D12=\"Très exigeante\", INDEX(Calcul_Seuils_PK!$C$16:$I$23,D15,D51), IF(D12=\"Moyennement exigeante\", INDEX(Calcul_Seuils_PK!$C$26:$I$28,D15,D51), INDEX(Calcul_Seuils_PK!$C$28:$I$31,D15,D51)))))","v":""},{"$f":"IF(E56=\"VRAI\", E57, IF(E44=\"\", \"\", IF(E12=\"Très exigeante\", INDEX(Calcul_Seuils_PK!$C$16:$I$23,E15,E51), IF(E12=\"Moyennement exigeante\", INDEX(Calcul_Seuils_PK!$C$26:$I$28,E15,E51), INDEX(Calcul_Seuils_PK!$C$28:$I$31,E15,E51)))))","v":""},{"$f":"IF(F56=\"VRAI\", F57, IF(F44=\"\", \"\", IF(F12=\"Très exigeante\", INDEX(Calcul_Seuils_PK!$C$16:$I$23,F15,F51), IF(F12=\"Moyennement exigeante\", INDEX(Calcul_Seuils_PK!$C$26:$I$28,F15,F51), INDEX(Calcul_Seuils_PK!$C$28:$I$31,F15,F51)))))","v":""},{"$f":"IF(G56=\"VRAI\", G57, IF(G44=\"\", \"\", IF(G12=\"Très exigeante\", INDEX(Calcul_Seuils_PK!$C$16:$I$23,G15,G51), IF(G12=\"Moyennement exigeante\", INDEX(Calcul_Seuils_PK!$C$26:$I$28,G15,G51), INDEX(Calcul_Seuils_PK!$C$28:$I$31,G15,G51)))))","v":""},{"$f":"IF(H56=\"VRAI\", H57, IF(H44=\"\", \"\", IF(H12=\"Très exigeante\", INDEX(Calcul_Seuils_PK!$C$16:$I$23,H15,H51), IF(H12=\"Moyennement exigeante\", INDEX(Calcul_Seuils_PK!$C$26:$I$28,H15,H51), INDEX(Calcul_Seuils_PK!$C$28:$I$31,H15,H51)))))","v":""},null,null,null,null,null,null,null,null,null,null,null,null,42,42]
[null,null,"Exportation grain",{"$f":"D10*INDEX(Feuil9!$A$9:$E$48,D9,4)","v":0},{"$f":"E10*INDEX(Feuil9!$A$9:$E$48,E9,4)","v":0},{"$f":"F10*INDEX(Feuil9!$A$9:$E$48,F9,4)","v":0},{"$f":"G10*INDEX(Feuil9!$A$9:$E$48,G9,4)","v":0},{"$f":"H10*INDEX(Feuil9!$A$9:$E$48,H9,4)","v":0},null,null,null,null,null,null,null,null,null,null,null,null,43,43]
[null,null,"Exportation paille",{"$f":"D14*INDEX(Feuil9!$A$9:$E$48,D9,5)","v":0},{"$f":"E14*INDEX(Feuil9!$A$9:$E$48,E9,5)","v":0},{"$f":"F14*INDEX(Feuil9!$A$9:$E$48,F9,5)","v":0},{"$f":"G14*INDEX(Feuil9!$A$9:$E$48,G9,5)","v":0},{"$f":"H14*INDEX(Feuil9!$A$9:$E$48,H9,5)","v":0},null,null,null,null,null,null,null,null,null,null,null,null,44,44]
[null,null,"Export paille corrigé",{"$f":"IF($D$6<D47, D54, 0)","v":0},{"$f":"IF($D$6<E47, E54, 0)","v":0},{"$f":"IF($D$6<F47, F54, 0)","v":0},{"$f":"IF($D$6<G47, G54, 0)","v":0},{"$f":"IF($D$6<H47, H54, 0)","v":0},null,null,null,null,null,null,null,null,null,null,null,null,45,45]
[null,null,"Culture fourragere",{"$f":"IF(INDEX(Feuil9!$A$9:$H$48, D9, 8)=\"F\", \"VRAI\", \"FAUX\")","v":"FAUX"},{"$f":"IF(INDEX(Feuil9!$A$9:$H$48, E9, 8)=\"F\", \"VRAI\", \"FAUX\")","v":"FAUX"},{"$f":"IF(INDEX(Feuil9!$A$9:$H$48, F9, 8)=\"F\", \"VRAI\", \"FAUX\")","v":"FAUX"},{"$f":"IF(INDEX(Feuil9!$A$9:$H$48, G9, 8)=\"F\", \"VRAI\", \"FAUX\")","v":"FAUX"},{"$f":"IF(INDEX(Feuil9!$A$9:$H$48, H9, 8)=\"F\", \"VRAI\", \"FAUX\")","v":"FAUX"},null,null,null,null,null,null,null,null,null,null,null,null,46,46]
[null,null,"Coeff fourrage",{"$f":"INDEX(Calcul_Seuils_PK!$C$34:$I$36, D15, D51)","v":{"$error":"#VALUE!"}},{"$f":"INDEX(Calcul_Seuils_PK!$C$34:$I$36, E15, E51)","v":{"$error":"#VALUE!"}},{"$f":"INDEX(Calcul_Seuils_PK!$C$34:$I$36, F15, F51)","v":{"$error":"#VALUE!"}},{"$f":"INDEX(Calcul_Seuils_PK!$C$34:$I$36, G15, G51)","v":{"$error":"#VALUE!"}},{"$f":"INDEX(Calcul_Seuils_PK!$C$34:$I$36, H15, H51)","v":{"$error":"#VALUE!"}},null,null,null,null,null,null,null,null,null,null,null,null,47,47]
[null,null,null,null,null,null,null,null,null,null,null,null,null,null,null,null,null,null,null,null,48,48]
[null,null,"Ligne cultures",null,null,null,null,null,null,null,null,null,null,null,null,null,null,null,null,null,49,49]
[null,null,{"$f":"D9","v":1},null,null,null,null,null,null,null,null,null,null,null,null,null,null,null,null,null,50,50]
[null,null,{"$f":"E9","v":1},"Graphique situation parcelle",null,null,null,null,null,null,null,null,null,null,null,null,null,null,null,null,51,51]
[null,null,{"$f":"F9","v":1},"Valeur retenue à la culture",null,null,null,null,null,null,null,null,null,null,null,null,null,null,null,null,52,52]
[null,null,{"$f":"G9","v":1},"P",{"$f":"INDEX(D37:H37,1,I4)","v":""},null,null,null,null,null,null,null,null,null,null,null,null,null,null,null,53,53]
[null,null,{"$f":"H9","v":1},"K",{"$f":"INDEX(D51:H51,1,I4)","v":""},null,null,null,null,null,null,null,null,null,null,null,null,null,null,null,54,54]
[null,null,null,null,null,null,null,null,null,null,null,null,null,null,null,null,null,null,null,null,55,55]
[null,null,null,null,null,null,null,null,null,null,null,null,null,null,null,null,null,null,null,null,56,56]
[null,null,"Cultures",null,null,null,null,null,null,null,null,null,null,null,null,null,null,null,null,null,57,57]
["Joret-Hebert",null,{"$f":"IF(C60>1, INDEX(Feuil9!$A$9:$A$48,C60,1), \"\")","v":""},null,null,null,null,null,null,null,null,null,null,null,null,null,null,null,null,null,58,58]
["Olsen",null,{"$f":"IF(C61>1, INDEX(Feuil9!$A$9:$A$48,C61,1), \"\")","v":""},null,null,null,null,null,null,null,null,null,null,null,null,null,null,null,null,null,59,59]
["Dyer",null,{"$f":"IF(C62>1, INDEX(Feuil9!$A$9:$A$48,C62,1), \"\")","v":""},null,null,null,null,null,null,null,null,null,null,null,null,null,null,null,null,null,60,60]
[null,null,{"$f":"IF(C63>1, INDEX(Feuil9!$A$9:$A$48,C63,1), \"\")","v":""},null,null,null,null,null,null,null,null,null,null,null,null,null,null,null,null,null,61,61]
[null,null,{"$f":"IF(C64>1, INDEX(Feuil9!$A$9:$A$48,C64,1), \"\")","v":""},null,null,null,null,null,null,null,null,null,null,null,null,null,null,null,null,null,62,62]
[null,null,"MOYENNE",null,null,null,null,null,null,null,null,null,null,null,null,null,null,null,null,null,63,63]
[null,null,"ENGRAIS P",null,null,null,null,null,"MOYENNE",null,null,null,null,null,null,null,null,null,null,null,64,64]
[null,null,{"$f":"C19","v":3},{"$f":"IF(D19=\"\", \"\", (INDEX(BDD_Engrais_PK!$B$9:$H$55,$C$75,3)*INDEX(BDD_Engrais_PK!$B$9:$H$55,$C$75,6))*D19)","v":""},{"$f":"IF(E19=\"\", \"\", (INDEX(BDD_Engrais_PK!$B$9:$H$55,$C$75,3)*INDEX(BDD_Engrais_PK!$B$9:$H$55,$C$75,6))*E19)","v":""},{"$f":"IF(F19=\"\", \"\", (INDEX(BDD_Engrais_PK!$B$9:$H$55,$C$75,3)*INDEX(BDD_Engrais_PK!$B$9:$H$55,$C$75,6))*F19)","v":""},{"$f":"IF(G19=\"\", \"\", (INDEX(BDD_Engrais_PK!$B$9:$H$55,$C$75,3)*INDEX(BDD_Engrais_PK!$B$9:$H$55,$C$75,6))*G19)","v":""},{"$f":"IF(H19=\"\", \"\", (INDEX(BDD_Engrais_PK!$B$9:$H$55,$C$75,3)*INDEX(BDD_Engrais_PK!$B$9:$H$55,$C$75,6))*H19)","v":""},null,null,null,null,null,null,null,null,null,null,null,null,65,65]
[null,null,{"$f":"C20","v":25},{"$f":"IF(D20=\"\", \"\", (INDEX(BDD_Engrais_PK!$B$9:$H$55,$C$76,3)*INDEX(BDD_Engrais_PK!$B$9:$H$55,$C$76,6))*D20)","v":""},{"$f":"IF(E20=\"\", \"\", (INDEX(BDD_Engrais_PK!$B$9:$H$55,$C$76,3)*INDEX(BDD_Engrais_PK!$B$9:$H$55,$C$76,6))*E20)","v":""},{"$f":"IF(F20=\"\", \"\", (INDEX(BDD_Engrais_PK!$B$9:$H$55,$C$76,3)*INDEX(BDD_Engrais_PK!$B$9:$H$55,$C$76,6))*F20)","v":""},{"$f":"IF(G20=\"\", \"\", (INDEX(BDD_Engrais_PK!$B$9:$H$55,$C$76,3)*INDEX(BDD_Engrais_PK!$B$9:$H$55,$C$76,6))*G20)","v":""},{"$f":"IF(H20=\"\", \"\", (INDEX(BDD_Engrais_PK!$B$9:$H$55,$C$76,3)*INDEX(BDD_Engrais_PK!$B$9:$H$55,$C$76,6))*H20)","v":""},null,null,null,null,null,null,null,null,null,null,null,null,66,66]
[null,null,{"$f":"C21","v":24},{"$f":"IF(D21=\"\", \"\", (INDEX(BDD_Engrais_PK!$B$9:$H$55,$C$77,3)*INDEX(BDD_Engrais_PK!$B$9:$H$55,$C$77,6))*D21)","v":""},{"$f":"IF(E21=\"\", \"\", (INDEX(BDD_Engrais_PK!$B$9:$H$55,$C$77,3)*INDEX(BDD_Engrais_PK!$B$9:$H$55,$C$77,6))*E21)","v":""},{"$f":"IF(F21=\"\", \"\", (INDEX(BDD_Engrais_PK!$B$9:$H$55,$C$77,3)*INDEX(BDD_Engrais_PK!$B$9:$H$55,$C$77,6))*F21)","v":""},{"$f":"IF(G21=\"\", \"\", (INDEX(BDD_Engrais_PK!$B$9:$H$55,$C$77,3)*INDEX(BDD_Engrais_PK!$B$9:$H$55,$C$77,6))*G21)","v":""},{"$f":"IF(H21=\"\", \"\", (INDEX(BDD_Engrais_PK!$B$9:$H$55,$C$77,3)*INDEX(BDD_Engrais_PK!$B$9:$H$55,$C$77,6))*H21)","v":""},null,null,null,null,null,null,null,null,null,null,null,null,67,67]
[null,null,{"$f":"C22","v":1},{"$f":"IF(D22=\"\", \"\", (INDEX(BDD_Engrais_PK!$B$9:$H$55,$C$78,3)*INDEX(BDD_Engrais_PK!$B$9:$H$55,$C$78,6))*D22)","v":""},{"$f":"IF(E22=\"\", \"\", (INDEX(BDD_Engrais_PK!$B$9:$H$55,$C$78,3)*INDEX(BDD_Engrais_PK!$B$9:$H$55,$C$78,6))*E22)","v":""},{"$f":"IF(F22=\"\", \"\", (INDEX(BDD_Engrais_PK!$B$9:$H$55,$C$78,3)*INDEX(BDD_Engrais_PK!$B$9:$H$55,$C$78,6))*F22)","v":""},{"$f":"IF(G22=\"\", \"\", (INDEX(BDD_Engrais_PK!$B$9:$H$55,$C$78,3)*INDEX(BDD_Engrais_PK!$B$9:$H$55,$C$78,6))*G22)","v":""},{"$f":"IF(H22=\"\", \"\", (INDEX(BDD_Engrais_PK!$B$9:$H$55,$C$78,3)*INDEX(BDD_Engrais_PK!$B$9:$H$55,$C$78,6))*H22)","v":""},null,null,null,null,null,null,null,null,null,null,null,null,68,68]
[null,null,{"$f":"C23","v":1},{"$f":"IF(D23=\"\", \"\", (INDEX(BDD_Engrais_PK!$B$9:$H$55,$C$79,3)*INDEX(BDD_Engrais_PK!$B$9:$H$55,$C$79,6))*D23)","v":""},{"$f":"IF(E23=\"\", \"\", (INDEX(BDD_Engrais_PK!$B$9:$H$55,$C$79,3)*INDEX(BDD_Engrais_PK!$B$9:$H$55,$C$79,6))*E23)","v":""},{"$f":"IF(F23=\"\", \"\", (INDEX(BDD_Engrais_PK!$B$9:$H$55,$C$79,3)*INDEX(BDD_Engrais_PK!$B$9:$H$55,$C$79,6))*F23)","v":""},{"$f":"IF(G23=\"\", \"\", (INDEX(BDD_Engrais_PK!$B$9:$H$55,$C$79,3)*INDEX(BDD_Engrais_PK!$B$9:$H$55,$C$79,6))*G23)","v":""},{"$f":"IF(H23=\"\", \"\", (INDEX(BDD_Engrais_PK!$B$9:$H$55,$C$79,3)*INDEX(BDD_Engrais_PK!$B$9:$H$55,$C$79,6))*H23)","v":""},null,null,null,null,null,null,null,null,null,null,null,null,69,69]
[null,null,"BESOIN",null,{"$f":"E16","v":0},{"$f":"F16","v":0},{"$f":"G16","v":0},{"$f":"H16","v":0},{"$f":"AVERAGE(D80:H80)","v":0},null,null,null,null,null,null,null,null,null,null,null,70,70]
[null,null,"ENGRAIS",{"$f":"SUM(D75:D79)","v":0},{"$f":"SUM(E75:E79)","v":0},{"$f":"SUM(F75:F79)","v":0},{"$f":"SUM(G75:G79)","v":0},{"$f":"SUM(H75:H79)","v":0},{"$f":"AVERAGE(D81:H81)","v":0},null,null,null,null,null,null,null,null,null,null,null,71,71]
[null,null,"ECART",{"$f":"IF(D80=\"\", \"\", D81-D80)","v":""},{"$f":"IF(E80=\"\", \"\", E81-E80)","v":0},{"$f":"IF(F80=\"\", \"\", F81-F80)","v":0},{"$f":"IF(G80=\"\", \"\", G81-G80)","v":0},{"$f":"IF(H80=\"\", \"\", H81-H80)","v":0},{"$f":"AVERAGE(D82:H82)","v":0},null,null,null,null,null,null,null,null,null,null,null,72,72]
[null,null,null,null,null,null,null,null,null,null,null,null,null,null,null,null,null,null,null,null,73,73]
[null,null,"ENGRAIS K",null,null,null,null,null,"MOYENNE",null,null,null,null,null,null,null,null,null,null,null,74,74]
[null,null,{"$f":"C19","v":3},{"$f":"IF(D19=\"\", \"\", (INDEX(BDD_Engrais_PK!$B$9:$H$55,$C$85,4)*INDEX(BDD_Engrais_PK!$B$9:$H$55,$C$85,7))*D19)","v":""},{"$f":"IF(E19=\"\", \"\", (INDEX(BDD_Engrais_PK!$B$9:$H$55,$C$85,4)*INDEX(BDD_Engrais_PK!$B$9:$H$55,$C$85,7))*E19)","v":""},{"$f":"IF(F19=\"\", \"\", (INDEX(BDD_Engrais_PK!$B$9:$H$55,$C$85,4)*INDEX(BDD_Engrais_PK!$B$9:$H$55,$C$85,7))*F19)","v":""},{"$f":"IF(G19=\"\", \"\", (INDEX(BDD_Engrais_PK!$B$9:$H$55,$C$85,4)*INDEX(BDD_Engrais_PK!$B$9:$H$55,$C$85,7))*G19)","v":""},{"$f":"IF(H19=\"\", \"\", (INDEX(BDD_Engrais_PK!$B$9:$H$55,$C$85,4)*INDEX(BDD_Engrais_PK!$B$9:$H$55,$C$85,7))*H19)","v":""},null,null,null,null,null,null,null,null,null,null,null,null,75,75]
[null,null,{"$f":"C20","v":25},{"$f":"IF(D20=\"\", \"\", (INDEX(BDD_Engrais_PK!$B$9:$H$55,$C$86,4)*INDEX(BDD_Engrais_PK!$B$9:$H$55,$C$86,7))*D20)","v":""},{"$f":"IF(E20=\"\", \"\", (INDEX(BDD_Engrais_PK!$B$9:$H$55,$C$86,4)*INDEX(BDD_Engrais_PK!$B$9:$H$55,$C$86,7))*E20)","v":""},{"$f":"IF(F20=\"\", \"\", (INDEX(BDD_Engrais_PK!$B$9:$H$55,$C$86,4)*INDEX(BDD_Engrais_PK!$B$9:$H$55,$C$86,7))*F20)","v":""},{"$f":"IF(G20=\"\", \"\", (INDEX(BDD_Engrais_PK!$B$9:$H$55,$C$86,4)*INDEX(BDD_Engrais_PK!$B$9:$H$55,$C$86,7))*G20)","v":""},{"$f":"IF(H20=\"\", \"\", (INDEX(BDD_Engrais_PK!$B$9:$H$55,$C$86,4)*INDEX(BDD_Engrais_PK!$B$9:$H$55,$C$86,7))*H20)","v":""},null,null,null,null,null,null,null,null,null,null,null,null,76,76]
[null,null,{"$f":"C21","v":24},{"$f":"IF(D21=\"\", \"\", (INDEX(BDD_Engrais_PK!$B$9:$H$55,$C$87,4)*INDEX(BDD_Engrais_PK!$B$9:$H$55,$C$87,7))*D21)","v":""},{"$f":"IF(E21=\"\", \"\", (INDEX(BDD_Engrais_PK!$B$9:$H$55,$C$87,4)*INDEX(BDD_Engrais_PK!$B$9:$H$55,$C$87,7))*E21)","v":""},{"$f":"IF(F21=\"\", \"\", (INDEX(BDD_Engrais_PK!$B$9:$H$55,$C$87,4)*INDEX(BDD_Engrais_PK!$B$9:$H$55,$C$87,7))*F21)","v":""},{"$f":"IF(G21=\"\", \"\", (INDEX(BDD_Engrais_PK!$B$9:$H$55,$C$87,4)*INDEX(BDD_Engrais_PK!$B$9:$H$55,$C$87,7))*G21)","v":""},{"$f":"IF(H21=\"\", \"\", (INDEX(BDD_Engrais_PK!$B$9:$H$55,$C$87,4)*INDEX(BDD_Engrais_PK!$B$9:$H$55,$C$87,7))*H21)","v":""},null,null,null,null,null,null,null,null,null,null,null,null,77,77]
[null,null,{"$f":"C22","v":1},{"$f":"IF(D22=\"\", \"\", (INDEX(BDD_Engrais_PK!$B$9:$H$55,$C$88,4)*INDEX(BDD_Engrais_PK!$B$9:$H$55,$C$88,7))*D22)","v":""},{"$f":"IF(E22=\"\", \"\", (INDEX(BDD_Engrais_PK!$B$9:$H$55,$C$88,4)*INDEX(BDD_Engrais_PK!$B$9:$H$55,$C$88,7))*E22)","v":""},{"$f":"IF(F22=\"\", \"\", (INDEX(BDD_Engrais_PK!$B$9:$H$55,$C$88,4)*INDEX(BDD_Engrais_PK!$B$9:$H$55,$C$88,7))*F22)","v":""},{"$f":"IF(G22=\"\", \"\", (INDEX(BDD_Engrais_PK!$B$9:$H$55,$C$88,4)*INDEX(BDD_Engrais_PK!$B$9:$H$55,$C$88,7))*G22)","v":""},{"$f":"IF(H22=\"\", \"\", (INDEX(BDD_Engrais_PK!$B$9:$H$55,$C$88,4)*INDEX(BDD_Engrais_PK!$B$9:$H$55,$C$88,7))*H22)","v":""},null,null,null,null,null,null,null,null,null,null,null,null,78,78]
[null,null,{"$f":"C23","v":1},{"$f":"IF(D23=\"\", \"\", (INDEX(BDD_Engrais_PK!$B$9:$H$55,$C$89,4)*INDEX(BDD_Engrais_PK!$B$9:$H$55,$C$89,7))*D23)","v":""},{"$f":"IF(E23=\"\", \"\", (INDEX(BDD_Engrais_PK!$B$9:$H$55,$C$89,4)*INDEX(BDD_Engrais_PK!$B$9:$H$55,$C$89,7))*E23)","v":""},{"$f":"IF(F23=\"\", \"\", (INDEX(BDD_Engrais_PK!$B$9:$H$55,$C$89,4)*INDEX(BDD_Engrais_PK!$B$9:$H$55,$C$89,7))*F23)","v":""},{"$f":"IF(G23=\"\", \"\", (INDEX(BDD_Engrais_PK!$B$9:$H$55,$C$89,4)*INDEX(BDD_Engrais_PK!$B$9:$H$55,$C$89,7))*G23)","v":""},{"$f":"IF(H23=\"\", \"\", (INDEX(BDD_Engrais_PK!$B$9:$H$55,$C$89,4)*INDEX(BDD_Engrais_PK!$B$9:$H$55,$C$89,7))*H23)","v":""},null,null,null,null,null,null,null,null,null,null,null,null,79,79]
[null,null,"BESOIN",null,{"$f":"E17","v":0},{"$f":"F17","v":0},{"$f":"G17","v":0},{"$f":"H17","v":0},{"$f":"AVERAGE(D90:H90)","v":0},null,null,null,null,null,null,null,null,null,null,null,80,80]
[null,null,"ENGRAIS",{"$f":"SUM(D85:D89)","v":0},{"$f":"SUM(E85:E89)","v":0},{"$f":"SUM(F85:F89)","v":0},{"$f":"SUM(G85:G89)","v":0},{"$f":"SUM(H85:H89)","v":0},{"$f":"AVERAGE(D91:H91)","v":0},null,null,null,null,null,null,null,null,null,null,null,81,81]
[null,null,"ECART",{"$f":"IF(D90=\"\", \"\", D91-D90)","v":""},{"$f":"IF(E90=\"\", \"\", E91-E90)","v":0},{"$f":"IF(F90=\"\", \"\", F91-F90)","v":0},{"$f":"IF(G90=\"\", \"\", G91-G90)","v":0},{"$f":"IF(H90=\"\", \"\", H91-H90)","v":0},{"$f":"AVERAGE(D92:H92)","v":0},null,null,null,null,null,null,null,null,null,null,null,82,82]
[null,null,null,null,null,null,null,null,null,null,null,null,null,null,null,null,null,null,null,null,83,83]
[null,null,null,null,null,null,null,null,null,null,null,null,null,null,null,null,null,null,null,null,84,84]
[null,null,"GRAPHIQUE PK",{"$f":"C68","v":""},{"$f":"C69","v":""},{"$f":"C70","v":""},{"$f":"C71","v":""},{"$f":"C72","v":""},{"$f":"C73","v":"MOYENNE"},null,null,null,null,null,null,null,null,null,null,null,85,85]
[null,null,"BESOINS",{"$f":"IF($I$23=TRUE, D80, D90)","v":0},0,{"$f":"IF($I$23=TRUE, F80, F90)","v":0},0,0,{"$f":"AVERAGE(D96:H96)","v":0},null,null,null,null,null,null,null,null,null,null,null,86,86]
[null,null,"APPORTS REALISES",0,0,0,0,0,{"$f":"AVERAGE(D97:H97)","v":0},null,null,null,null,null,null,null,null,null,null,null,87,87]
[null,null,"ECART","",0,0,0,0,{"$f":"AVERAGE(D98:H98)","v":0},null,null,null,null,null,null,null,null,null,null,null,88,88]
[null,null,null,null,null,null,null,null,null,null,null,null,null,null,null,null,null,null,null,null,89,89]
[null,null,null,null,null,null,null,null,null,null,null,null,null,null,null,null,null,null,null,null,90,90]
[null,null,"MgO",null,null,null,null,null,null,null,null,null,null,null,null,null,null,null,null,null,91,91]
[null,null,{"$f":"C19","v":3},{"$f":"IF($C$19=\"\", \"\", INDEX(BDD_Engrais_PK!$B$9:$I$55,$C$102,8)*D19)","v":0},{"$f":"IF($C$19=\"\", \"\", INDEX(BDD_Engrais_PK!$B$9:$I$55,$C$102,8)*E19)","v":0},{"$f":"IF($C$19=\"\", \"\", INDEX(BDD_Engrais_PK!$B$9:$I$55,$C$102,8)*F19)","v":0},{"$f":"IF($C$19=\"\", \"\", INDEX(BDD_Engrais_PK!$B$9:$I$55,$C$102,8)*G19)","v":0},{"$f":"IF($C$19=\"\", \"\", INDEX(BDD_Engrais_PK!$B$9:$I$55,$C$102,8)*H19)","v":0},null,null,null,null,null,null,null,null,null,null,null,null,92,92]
[null,null,{"$f":"C20","v":25},{"$f":"IF($C$20=\"\", \"\", INDEX(BDD_Engrais_PK!$B$9:$I$55,$C$103,8)*D20)","v":0},{"$f":"IF($C$20=\"\", \"\", INDEX(BDD_Engrais_PK!$B$9:$I$55,$C$103,8)*E20)","v":0},{"$f":"IF($C$20=\"\", \"\", INDEX(BDD_Engrais_PK!$B$9:$I$55,$C$103,8)*F20)","v":0},{"$f":"IF($C$20=\"\", \"\", INDEX(BDD_Engrais_PK!$B$9:$I$55,$C$103,8)*G20)","v":0},{"$f":"IF($C$20=\"\", \"\", INDEX(BDD_Engrais_PK!$B$9:$I$55,$C$103,8)*H20)","v":0},null,null,null,null,null,null,null,null,null,null,null,null,93,93]
[null,null,{"$f":"C21","v":24},{"$f":"IF($C$21=\"\", \"\", INDEX(BDD_Engrais_PK!$B$9:$I$55,$C$104,8)*D21)","v":0},{"$f":"IF($C$21=\"\", \"\", INDEX(BDD_Engrais_PK!$B$9:$I$55,$C$104,8)*E21)","v":0},{"$f":"IF($C$21=\"\", \"\", INDEX(BDD_Engrais_PK!$B$9:$I$55,$C$104,8)*F21)","v":0},{"$f":"IF($C$21=\"\", \"\", INDEX(BDD_Engrais_PK!$B$9:$I$55,$C$104,8)*G21)","v":0},{"$f":"IF($C$21=\"\", \"\", INDEX(BDD_Engrais_PK!$B$9:$I$55,$C$104,8)*H21)","v":0},null,null,null,null,null,null,null,null,null,null,null,null,94,94]
[null,null,{"$f":"C22","v":1},{"$f":"IF($C$22=\"\", \"\", INDEX(BDD_Engrais_PK!$B$9:$I$55,$C$105,8)*D22)","v":0},{"$f":"IF($C$22=\"\", \"\", INDEX(BDD_Engrais_PK!$B$9:$I$55,$C$105,8)*E22)","v":0},{"$f":"IF($C$22=\"\", \"\", INDEX(BDD_Engrais_PK!$B$9:$I$55,$C$105,8)*F22)","v":0},{"$f":"IF($C$22=\"\", \"\", INDEX(BDD_Engrais_PK!$B$9:$I$55,$C$105,8)*G22)","v":0},{"$f":"IF($C$22=\"\", \"\", INDEX(BDD_Engrais_PK!$B$9:$I$55,$C$105,8)*H22)","v":0},null,null,null,null,null,null,null,null,null,null,null,null,95,95]
[null,null,{"$f":"C23","v":1},{"$f":"IF($C$23=\"\", \"\", INDEX(BDD_Engrais_PK!$B$9:$I$55,$C$106,8)*D23)","v":0},{"$f":"IF($C$23=\"\", \"\", INDEX(BDD_Engrais_PK!$B$9:$I$55,$C$106,8)*E23)","v":0},{"$f":"IF($C$23=\"\", \"\", INDEX(BDD_Engrais_PK!$B$9:$I$55,$C$106,8)*F23)","v":0},{"$f":"IF($C$23=\"\", \"\", INDEX(BDD_Engrais_PK!$B$9:$I$55,$C$106,8)*G23)","v":0},{"$f":"IF($C$23=\"\", \"\", INDEX(BDD_Engrais_PK!$B$9:$I$55,$C$106,8)*H23)","v":0},null,null,null,null,null,null,null,null,null,null,null,null,96,96]
[null,null,"SOMME",{"$f":"SUM(D102:H106)","v":0},null,null,null,null,null,null,null,null,null,null,null,null,null,null,null,null,97,97]
[null,null,null,null,null,null,null,null,null,null,null,null,null,null,null,null,null,null,null,null,98,98]
[null,null,null,null,null,null,null,null,null,null,null,null,null,null,null,null,null,null,null,null,99,99]
[null,null,null,null,null,null,null,null,null,null,null,null,null,null,null,null,null,null,null,null,100,100]
[null,null,null,null,null,null,null,null,null,null,null,null,null,null,null,null,null,null,null,null,101,101]
[null,null,null,null,null,null,null,null,null,null,null,null,null,null,null,null,null,null,null,null,102,102]
[null,null,null,null,null,null,null,null,null,null,null,null,null,null,null,null,null,null,null,null,103,103]
[null,null,null,null,null,null,null,null,null,null,null,null,null,null,null,null,null,null,null,null,104,104]
[null,null,null,null,null,null,null,null,null,null,null,null,null,null,null,null,null,null,null,null,105,105]
[null,null,null,null,null,null,null,null,null,null,null,null,null,null,null,null,null,null,null,null,106,106]
[null,null,null,null,null,null,null,null,null,null,null,null,null,null,null,null,null,null,null,null,107,107]
[null,null,null,null,null,null,null,null,null,null,null,null,null,null,null,null,null,null,null,null,108,108]
[null,null,null,null,null,null,null,null,null,null,null,null,null,null,null,null,null,null,null,null,109,109]
[null,null,null,null,null,null,null,null,null,null,null,null,null,null,null,null,null,null,null,null,110,110]
[null,null,null,null,null,null,null,null,null,null,null,null,null,null,null,null,null,null,null,null,111,111]
[null,null,null,null,null,null,null,null,null,null,null,null,null,null,null,null,null,null,null,null,112,112]
[null,null,null,null,null,null,null,null,null,null,null,null,null,null,null,null,null,null,null,null,113,113]
[null,null,null,null,null,null,null,null,null,null,null,null,null,null,null,null,null,null,null,null,114,114]
[null,null,null,null,null,null,null,null,null,null,null,null,null,null,null,null,null,null,null,null,115,115]
[null,null,null,null,null,null,null,null,null,null,null,null,null,null,null,null,null,null,null,null,116,116]
[null,null,null,null,null,null,null,null,null,null,null,null,null,null,null,null,null,null,null,null,117,117]
[null,null,null,null,null,null,null,null,null,null,null,null,null,null,null,null,null,null,null,null,118,118]
[null,null,null,null,null,null,null,null,null,null,null,null,null,null,null,null,null,null,null,null,119,119]
[null,null,null,null,null,null,null,null,null,null,null,null,null,null,null,null,null,null,null,null,120,120]
[null,null,null,null,null,null,null,null,null,null,null,null,null,null,null,null,null,null,null,null,121,121]
[null,null,null,null,null,null,null,null,null,null,null,null,null,null,null,null,null,null,null,null,122,122]
[null,null,null,null,null,null,null,null,null,null,null,null,null,null,null,null,null,null,null,null,123,123]
[null,null,null,null,null,null,null,null,null,null,null,null,null,null,null,null,null,null,null,null,124,124]
[null,null,null,null,null,null,null,null,null,null,null,null,null,null,null,null,null,null,null,null,125,125]
[null,null,null,null,null,null,null,null,null,null,null,null,null,null,null,null,null,null,null,null,126,126]
[null,null,null,null,null,null,null,null,null,null,null,null,null,null,null,null,null,null,null,null,127,127]
[null,null,null,null,null,null,null,null,null,null,null,null,null,null,null,null,null,null,null,null,128,128]
[null,null,null,null,null,null,null,null,null,null,null,null,null,null,null,null,null,null,null,null,129,129]
[null,null,null,null,null,null,null,null,null,null,null,null,null,null,null,null,null,null,null,null,130,130]
[null,null,null,null,null,null,null,null,null,null,null,null,null,null,null,null,null,null,null,null,131,131]
[null,null,null,null,null,null,null,null,null,null,null,null,null,null,null,null,null,null,null,null,132,132]
[null,null,null,null,null,null,null,null,null,null,null,null,null,null,null,null,null,null,null,null,133,133]
[null,null,null,null,null,null,null,null,null,null,null,null,null,null,null,null,null,null,null,null,134,134]
[null,null,null,null,null,null,null,null,null,null,null,null,null,null,null,null,null,null,null,null,135,135]
[null,null,null,null,null,null,null,null,null,null,null,null,null,null,null,null,null,null,null,null,136,136]
[null,null,null,null,null,null,null,null,null,null,null,null,null,null,null,null,null,null,null,null,137,137]
[null,null,null,null,null,null,null,null,null,null,null,null,null,null,null,null,null,null,null,null,138,138]
[null,null,null,null,null,null,null,null,null,null,null,null,null,null,null,null,null,null,null,null,139,139]
[null,null,null,null,null,null,null,null,null,null,null,null,null,null,null,null,null,null,null,null,140,140]
[null,null,null,null,null,null,null,null,null,null,null,null,null,null,null,null,null,null,null,null,141,141]
[null,null,null,null,null,null,null,null,null,null,null,null,null,null,null,null,null,null,null,null,142,142]
[null,null,null,null,null,null,null,null,null,null,null,null,null,null,null,null,null,null,null,null,143,143]
[null,null,null,null,null,null,null,null,null,null,null,null,null,null,null,null,null,null,null,null,144,144]
[null,null,null,null,null,null,null,null,null,null,null,null,null,null,null,null,null,null,null,null,145,145]
[null,null,null,null,null,null,null,null,null,null,null,null,null,null,null,null,null,null,null,null,146,146]
[null,null,null,null,null,null,null,null,null,null,null,null,null,null,null,null,null,null,null,null,147,147]
[null,null,null,null,null,null,null,null,null,null,null,null,null,null,null,null,null,null,null,null,148,148]
[null,null,null,null,null,null,null,null,null,null,null,null,null,null,null,null,null,null,null,null,149,149]
[null,null,null,null,null,null,null,null,null,null,null,null,null,null,null,null,null,null,null,null,150,150]
[null,null,null,null,null,null,null,null,null,null,null,null,null,null,null,null,null,null,null,null,151,151]
[null,null,null,null,null,null,null,null,null,null,null,null,null,null,null,null,null,null,null,null,152,152]
[null,null,null,null,null,null,null,null,null,null,null,null,null,null,null,null,null,null,null,null,153,153]
[null,null,null,null,null,null,null,null,null,null,null,null,null,null,null,null,null,null,null,null,154,154]
[null,null,null,null,null,null,null,null,null,null,null,null,null,null,null,null,null,null,null,null,155,155]
[null,null,null,null,null,null,null,null,null,null,null,null,null,null,null,null,null,null,null,null,156,156]
[null,null,null,null,null,null,null,null,null,null,null,null,null,null,null,null,null,null,null,null,157,157]
[null,null,null,null,null,null,null,null,null,null,null,null,null,null,null,null,null,null,null,null,158,158]
[null,null,null,null,null,null,null,null,null,null,null,null,null,null,null,null,null,null,null,null,159,159]
[null,null,null,null,null,null,null,null,null,null,null,null,null,null,null,null,null,null,null,null,160,160]
[null,null,null,null,null,null,null,null,null,null,null,null,null,null,null,null,null,null,null,null,161,161]
[null,null,null,null,null,null,null,null,null,null,null,null,null,null,null,null,null,null,null,null,162,162]

{"sheet":"Calcul_Seuils_PK","index":35,"n_rows":84,"n_cols":20,"rows_kept":84,"cut":false,"hidden":false,"merged":[]}
[]
[0,null,"Enfouis"]
[1,null,"Exportés"]
["2 ou +",null,null,null,null,null,null,null,null,null,null,null,null,null,{"$f":"PK!C5","v":"P2O5 (mg/kg)"},{"$f":"PK!D5","v":0}]
[]
["PHOSPHORE",null,"Trenf","Timp-10%","Timp","Timp+10%","2xTimp","3xTimp",null,null,null,null,null,null,"Trenf","Timp-10%","Timp","Timp+10%","2xTimp","3xTimp"]
[null,"Nombres d'années sans apport"]
["Très exigeantes",0,2.2000000000000002,1.5,1.2,1,0.8,0,0]
["Très exigeantes",1,3.3,2,1.5,1.2,1,0,0]
["Très exigeantes","2 ou +",3.7,2.7,2,1.5,1.2,0.8,0]
["Moyennement exigeante",0,1.6,1,1,0,0,0,0]
["Moyennement exigeante",1,1.8,1.2,1,1,0.8,0,0]
["Moyennement exigeante","2 ou +",2,1.7,1.5,1.2,1,0.6,0]
["Peu exigeante",0,1.3,1,0.8,0,0,0,0]
["Peu exigeante",1,1.6,1,1,0,0,0,0]
["Peu exigeante","2 ou +",1.6,1.2,1,1,0.8,0,0]
[]
[]
[]
[]
["POTASSE GC",null,"Trenf","Timp-10%","Timp","Timp+10%","2xTimp","3xTimp"]
[null,"Nombres d'années sans apport"]
["Très exigeantes",0,1.7,1.2,1,0.8,0.6,0,0]
["Très exigeantes",1,2,1.4,1.2,1,0.8,0,0]
["Très exigeantes","2 ou +",2.2999999999999998,1.5,1.4,1.2,1,0.8,0]
["Moyennement exigeante",0,1.6,1.2,1,0,0,0,0]
["Moyennement exigeante",1,2.2000000000000002,1.4,1.2,1,0.5,0,0]
["Moyennement exigeante","2 ou +",2.2000000000000002,1.6,1.4,1.2,1,0.8,0]
["Peu exigeante",0,1.2,1,1,0,0,0,0]
["Peu exigeante",1,1.2,1.1000000000000001,1,0,0,0,0]
["Peu exigeante","2 ou +",1.2,1.2,1,1,1,0,0]
[]
["POTASSE FOURRAGERES"]
["Moyennement exigeante",0,1,1,0.8,0.6,0,0,0]
["Moyennement exigeante",1,1.5,1.2,1,0.8,0.6,0,0]
["Moyennement exigeante","2 ou +",1.5,1.2,1,1,0.8,0.4,0]
["Maïs fourrage, Ray-grass, Luzerne"]
[]
[]
[]
[]
[]
[]
[]
[]
[]
[]
[]
[]
[]
[]
[]
[]
[]
[]
[]
[]
[]
[]
[]
[]
[]
[]
[]
[]
[]
[]
[]
[]
[]
[]
[]
[]
[]
[null,null,null,null,null,null,null,null,null,null,null,null,null,78,"Rhône Alpes Saône et Loire"]
[null,null,null,null,null,null,null,null,null,null,null,null,null,79,"Rhône Alpes Saône et Loire"]
[null,null,null,null,null,null,null,null,null,null,null,null,null,80,"Rhône Alpes Saône et Loire"]
[null,null,null,null,null,null,null,null,null,null,null,null,null,81,"Rhône Alpes Saône et Loire"]
[null,null,null,null,null,null,null,null,null,null,null,null,null,82,"Rhône Alpes Saône et Loire"]
[null,null,null,null,null,null,null,null,null,null,null,null,null,83,"Rhône Alpes Saône et Loire"]
[null,null,null,null,null,null,null,null,null,null,null,null,null,84,"Rhône Alpes Saône et Loire"]
[null,null,null,null,null,null,null,null,null,null,null,null,null,85,"Rhône Alpes Saône et Loire"]
[null,null,null,null,null,null,null,null,null,null,null,null,null,86,"Sud Ouest"]
[null,null,null,null,null,null,null,null,null,null,null,null,null,87,"Sud Ouest"]

{"sheet":"Calcul_PK","index":36,"n_rows":31,"n_cols":16,"rows_kept":31,"cut":false,"hidden":false,"merged":[]}
[]
[]
[]
[null,"Numero culture","Numero tableau region",null,null,null,1,{"$f":"IF(K4=0,\"\", K4)","v":"Champagne Ardenne"},null,null,{"$f":"INDEX($A$23:$P$31,G4,PK!H5)","v":"Champagne Ardenne"}]
[null,null,null,null,null,null,2,{"$f":"IF(K5=0,\"\", K5)","v":"Craie"},null,null,{"$f":"INDEX($A$23:$P$31,G5,PK!H5)","v":"Craie"}]
["Nord Picardie",1,1,null,null,null,3,"Limon",null,null,{"$f":"INDEX($A$23:$P$31,G6,PK!H5)","v":"Limon"}]
["Champagne Ardenne",2,5,null,null,null,4,"Limon argileux",null,null,{"$f":"INDEX($A$23:$P$31,G7,PK!H5)","v":"Limon argileux"}]
["Lorraine",3,11,null,null,null,5,"Argilo-calcaire superficiel",null,null,{"$f":"INDEX($A$23:$P$31,G8,PK!H5)","v":"Argilo-calcaire superficiel"}]
["Alsace",4,16,null,null,null,6,"Argilo-calcaire profond",null,null,{"$f":"INDEX($A$23:$P$31,G9,PK!H5)","v":"Argilo-calcaire profond"}]
["Franche Comté",5,23,null,null,null,7,"Sable",null,null,{"$f":"INDEX($A$23:$P$31,G10,PK!H5)","v":"Sable"}]
["Bourgogne",6,30,null,null,null,8,"",null,null,{"$f":"INDEX($A$23:$P$31,G11,PK!H5)","v":0}]
["Centre limousin",7,36,null,null,null,9,"",null,null,{"$f":"INDEX($A$23:$P$31,G12,PK!H5)","v":0}]
["Centre Bassin parisien",8,44]
["Haute Normandie",9,51]
["Bretagne pays de la Loire",10,59]
["Poitou Charente",11,64]
["Haute Marne",12,70]
["Auvergne",13,73]
["Rhône Alpes Saône et Loire",14,78]
["Sud Ouest",15,86]
[]
[]
[null,"Nord Picardie","Champagne Ardenne","Lorraine","Alsace","Franche Comté","Bourgogne","Centre limousin","Centre Bassin parisien","Haute Normandie","Bretagne pays de la Loire","Poitou Charente","Haute Marne","Auvergne","Rhône Alpes Saône et Loire","Sud Ouest"]
[null,"Limons battants","Craie","Argilo-calcaire profond","Limons loess","Limon (A< 20%)","Argilo-calcaire superficiel","Argilo-calcaire superficiel caillouteux","Limon battant","Limon des plateaux","Limon sain et Limon sableux","Terres de Groie","Limon","Terre noire","Varenne","Sols acides limoneux ou argileux (boulbènes, alluvions,Ségala)"]
[null,"Limon argileux","Limon","Argilo-calcaire superficiel","Alluvions de l'Ill","Limon argileux","Argilo-calcaire profond","Argilo-calcaire profond peu caillouteux","Limon de Beauce","Limon caillouteux sur argile à silex","Limon caillouteux superficiel","Argilo-calcaire profond sur calcaire marneux","Sols superficiels du Barrois et autres sols argileux à 30% argile","Argilo-calcaire","Gravier, dilivium","Sols basiques ou argilo-calcaires (terreforts, alluvions)"]
[null,"Argiles","Limon argileux","Limons","Limons lehm","Limon argileux superficiel de plateaux","Limons et argiles profonds","Limon argileux","Sable","Argilo-calcaire superficiel sur craie","Sable","Aubue lègère et champagne superficielle","Sols superficiels du Barrois et autres sols argileux à 40% argile","Granitique","Limon blanc sain"]
[null,"Cranettes","Argilo-calcaire superficiel","Limon argileux","Hardt superficielle, Ried brun caillouteux","Sols argileux de vallées","Limons battants","Limon battant","Limon sableux","Sable caillouteux non calcaire","Argilo-calcaire profond sur marne","Aubue lourde et champagne profonde",null,"Sologne","Limon blanc humide"]
[null,null,"Argilo-calcaire profond","Argiles lourdes","Hardt profonde, Ried brun profond, basse plaine rhénane","Sols argileux, calcaires de vallées","Sols sablo-graveleux","Sable","Argilo-calcaire superficiel caillouteux","Limon","Argilo-calcaire superficiel","Limon, terres rouge, bomais, doucin limoneux",null,"Alluvions recentes (sableuses)","Limon argileux sain"]
[null,null,"Sable",null,"Argilo-calcaire profond Alsace bossue, basse plaine sous-vosgienne","Limons hydromorphes","Alluvions argileuses","Limon sableux","Argilo-calcaire profond peu caillouteux","Argilo-calcaire",null,"Sol sableux",null,null,"Limon argileux humide"]
[null,null,null,null,"Argilo-calcaire caillouteux Alsace bossue, basse plaine sous-vosgienne","Argiles hydromorphes de vallées",null,"Limons sur argile à silex","Argio-calcaire de Beauce","Sable",null,null,null,null,"Argilo-calcaire profond"]
[null,null,null,null,null,null,null,"Argile lourde",null,"Terres lourdes",null,null,null,null,"Argilo-calcaire superficiel"]

{"sheet":"BDD_Engrais_PK","index":37,"n_rows":36,"n_cols":9,"rows_kept":36,"cut":false,"hidden":false,"merged":[]}
[]
[]
[null,"LES FERTILISANTS MINERAUX ET ORGANIQUES PK"]
[]
[]
[]
[]
[null,"Type de produit","Azote total (kg/t)","P2O5 (kg/t)","K2O (kg/t)","Equivalence N","Equivalence P","Equivalence K","MgO (kg/t)"]
[null,null,null,null,null,null,null,null,0]
[null,"Fumier de bovin sur litière cumulée",5.9,2.8,9.5,0.22,0.8,1,2.6]
[null,"Fumier de bovin compact",4.7,2.2999999999999998,5.6,0.22,0.8,1,2.6]
[null,"Fumier de bovin mou",4.5,2.2000000000000002,4.9000000000000004,0.22,0.8,1,1.8]
[null,"Fumier d'ovins",6.7,4,12,0.22,0.8,1,1.4]
[null,"Fumier de caprins",6.1,5.2,12,0.22,0.8,1,0]
[null,"Fumier de poulet de chair",21.9,14.7,19,0.5,0.8,1,6.7]
[null,"Lisier de bovins",1.3,1.5,3.6,0.5,0.85,1,0.8]
[null,"Lisier de porc naisseur-engraisseur",3.5,2.1,2.5,0.5,0.95,1,0.6]
[null,"Lisier de porc charcutiers",3.7,2.1,2.5,0.5,0.95,1,0.6]
[null,"Fientes de poules pondeuses - cage",39.5,37.799999999999997,25.7,0.5,0.85,1,3]
[null,"Lisier de lapins",3.3,2.5,4.3,0.5,0.95,1,0]
[null,"Compost de fumier de bovins",6.7,3.6,10.8,0.22,0.7,1,2.6]
[null,"Vinasses concentrées de sucrerie",25,2,70,0.25,0.8,1,0.5]
[null,"Compost de déchets verts",10,6,11,0.25,0.55000000000000004,1,2.9]
[null,"Compost d'ordures ménagères",11,5,6.6,0.25,0.7,1,2.9]
[null,"Boues urbaines liquides biologiques",2,2.5,0.9,0.25,0.9,1,0.2]
[null,"Boues urbaines chaulées biologiques",8.4,9.4,0.9,0.25,0.9,1,1.5]
[null,"Boues urbaines compostées",7,7,15,0.25,0.7,1,1.5]
[null,"Digestat brut de méthanisation",null,4.9000000000000004,1.3,0,0.85,1,0.3]
[null,"0-20-30",0,200,300,0,1,1,0]
[null,"15-15-15",15,150,150,1,1,1,0]
[null,"18-46",18,460,0,1,1,0,0]
[null,"12-27-0",12,270,0,1,1,0,0]
[null,"Super 45",0,450,0,0,1,0,0]
[null,"KCL",0,0,600,0,0,1,0]
[null,"Patenkali",0,0,300,0,0,1,0]
[null,"Sulfate de potassium K2SO4",0,0,500,0,0,1,0]

{"sheet":"Choix_engrais_phosphore","index":38,"n_rows":19,"n_cols":10,"rows_kept":19,"cut":false,"hidden":false,"merged":[[12,8,13,8]]}
[]
[]
[null,"CRITERES DE CHOIX DES ENGRAIS PHOSPHATES"]
[]
[]
[]
[]
[]
[null,"Ü Choix du type d'engrais en fonction du pH du sol",null,null,null,null,null,null,"Ü Solubilité eau des engrais phosphatés"]
[]
[null,"Formes des engrais phosphatés","pH eau < 5.5","5.5 < pH eau < 6.2","6.2 < pH eau < 7.2 ou CaCO3 < 10%","CaCO3 > 10%",null,null,"Solubilité dans un même volume d'eau à pH 7","Le phosphate est sous forme de "]
[null,"Phosphate d'ammonium\nSuperphosphate",null,null,null,null,null,null,"Elevées","Phosphate d'ammoniaque\nSuperphosphate"]
[null,"Phosphates bicalciques",null,null,null,null,null,null,"Faible","Phosphate bicalcique\nScories Thomas"]
[null,"Scories Thomas",null,null,null,null,null,null,null,"Phosphate alumoni-calcique\n(Phospal)"]
[null,"Phosphates alumino-calciques",null,null,null,null,null,null,"Très faible","Phosphates naturels tendres et durs"]
[null,"Phosphates naturels",null,null,null,null,null,null,null,"Source : COMIFER"]
[null,null,null,null,null,"Source : COMIFER"]
[null,null,"Forme utilisable"]
[null,null,"Forme généralement déconseillée"]

{"sheet":"Feuil9","index":39,"n_rows":48,"n_cols":8,"rows_kept":48,"cut":false,"hidden":false,"merged":[]}
[]
[]
[]
[]
[]
[]
[null,"Phosphore",null,"Potasse",null,"Exigence P","Exigence K"]
["CULTURES","Récolte (grain / feuille)","Paille","Grain","Paille"]
[]
["Avoine",0.75,3,0.45,12,"Peu exigeante","Peu exigeante"]
["Betterave fourragère",0.55000000000000004,null,1.95,null,"Très exigeante","Très exigeante"]
["Betterave sucrière",0.5,null,1.8,null,"Très exigeante","Très exigeante"]
["Blé dur",0.85,1.7,0.45,12.3,"Moyennement exigeante","Très exigeante"]
["Blé tendre",0.65,1.7,0.5,12.3,"Peu exigeante","Peu exigeante"]
["Blé/Blé",0.65,1.7,0.5,12.3,"Moyennement exigeante","Peu exigeante"]
["Colza",1.25,1.7,0.85,145,"Très exigeante","Moyennement exigeante"]
["Féverole",1.2,null,1.3,null,"Moyennement exigeante","Moyennement exigeante"]
["Lentille",0.9,null,null,null,"Moyennement exigeante","Moyennement exigeante"]
["Lin oléagineux",1.35,2.0499999999999998,0.8,7.2,"Peu exigeante","Peu exigeante"]
["Lin textile",null,2.0499999999999998,null,7.2,"Moyennement exigeante","Moyennement exigeante"]
["Lupin",0.75,null,1.05]
["Luzerne déshydratée",5.8,null,31.8,null,"Très exigeante","Moyennement exigeante","F"]
["Luzerne foin",6.3,null,26.2,null,"Très exigeante","Moyennement exigeante","F"]
["Maïs",0.6,null,0.55000000000000004,null,"Peu exigeante","Peu exigeante"]
["Maïs grain",2.15,null,3.4,null,"Peu exigeante","Moyennement exigeante"]
["Maïs ensilage",4.2,null,11.9,null,"Moyennement exigeante","Moyennement exigeante","F"]
["Millet",0.6,null,1.4,null,"Moyennement exigeante","Moyennement exigeante"]
["Orge",0.65,1,0.55000000000000004,12.9,"Peu exigeante","Peu exigeante"]
["Pois Chiche",0.7,null,0.7]
["Pois de conserve",2.95,2.1,4,19,"Très exigeante","Très exigeante"]
["Pois protéagineux",0.8,2.1,1.1499999999999999,19,"Moyennement exigeante","Moyennement exigeante"]
["Pomme de terre consommation",0.95,null,3.9,null,"Très exigeante","Très exigeante"]
["Pomme de terre fécule",1.25,null,5.0999999999999996,null,"Très exigeante","Très exigeante"]
["Prairie naturelle (foin)",6.9,null,29.9,null,null,null,"F"]
["Prairie naturelle (pâture)",7.1,null,25.9,null,null,null,"F"]
["Prairie temporaire (foin)",5.7,null,26.5,null,null,null,"F"]
["Ray-grass anglais (foin)",6.7,null,28.6,null,"Moyennement exigeante","Moyennement exigeante","F"]
["Ray-grass italien (foin)",8.4,null,33.700000000000003,null,"Moyennement exigeante","Moyennement exigeante","F"]
["Seigle",0.65,3,0.45,12,"Peu exigeante","Peu exigeante"]
["Soja",1,null,1.6,null,"Peu exigeante","Moyennement exigeante"]
["Sorgho",0.7,null,0.35,null,"Moyennement exigeante","Peu exigeante"]
["Tabac brun",2,null,50]
["Tabac Burley",3,null,80]
["Tabac Virginie",2.5,null,30]
["Tournesol",1.2,null,1.05,null,"Peu exigeante","Moyennement exigeante"]
["Trèfle violet (ensilage)",8.3000000000000007,null,null,null,"Moyennement exigeante","Moyennement exigeante","F"]
["Triticale",0.65,2,0.5,10,"Peu exigeante","Peu exigeante"]
["Vesce",1,2,1.95,13,"Moyennement exigeante","Moyennement exigeante"]

{"sheet":"BDD_Potasse","index":40,"n_rows":90,"n_cols":9,"rows_kept":90,"cut":false,"hidden":false,"merged":[[1,3,1,4],[1,5,1,6],[1,7,1,8]]}
[null,null,null,"Seuil Potasse en mg/kg"]
[null,null,null,"Forte exigence",null,"Moyenne exigence",null,"Faible exigence"]
[null,"Région","Type de sols","T renforcé","T impasse","T renforcé","T impasse","T renforcé","T impasse"]
[null,"Nord Picardie","Limons battants",170,300,120,180,80,150]
[null,"Nord Picardie","Limon argileux",200,400,150,220,100,150]
[null,"Nord Picardie","Argiles",250,450,200,270,150,200]
[null,"Nord Picardie","Cranettes",200,400,80,250,50,100]
[null,"Champagne Ardenne","Craie",200,400,80,250,50,100]
[null,"Champagne Ardenne","Limon",170,300,120,180,80,150]
[null,"Champagne Ardenne","Limon argileux",200,400,150,220,100,150]
[null,"Champagne Ardenne","Argilo-calcaire superficiel",300,450,300,400,150,300]
[null,"Champagne Ardenne","Argilo-calcaire profond",250,300,200,300,100,180]
[null,"Champagne Ardenne","Sable",100,100,70,100,60,100]
[null,"Lorraine","Argilo-calcaire profond",250,300,200,300,100,180]
[null,"Lorraine","Argilo-calcaire superficiel",300,450,300,400,150,300]
[null,"Lorraine","Limons",170,300,120,180,80,150]
[null,"Lorraine","Limon argileux",200,400,150,220,100,150]
[null,"Lorraine","Argiles lourdes",300,450,300,400,150,300]
[null,"Alsace","Limons loess",200,400,150,220,100,150]
[null,"Alsace","Alluvions de l'Ill",200,400,150,220,100,150]
[null,"Alsace","Limons lehm",180,300,130,190,80,160]
[null,"Alsace","Hardt superficielle, Ried brun caillouteux",300,400,300,400,150,300]
[null,"Alsace","Hardt profonde, Ried brun profond, basse plaine rhénane",250,300,200,300,100,180]
[null,"Alsace","Argilo-calcaire profond Alsace bossue, basse plaine sous-vosgienne",250,300,200,300,100,180]
[null,"Alsace","Argilo-calcaire caillouteux Alsace bossue, basse plaine sous-vosgienne",300,400,300,400,150,300]
[null,"Franche Comté","Limon (A< 20%)",170,300,120,180,80,150]
[null,"Franche Comté","Limon argileux",200,400,150,220,100,150]
[null,"Franche Comté","Limon argileux superficiel de plateaux",220,400,170,240,100,170]
[null,"Franche Comté","Sols argileux de vallées",250,450,200,270,150,200]
[null,"Franche Comté","Sols argileux, calcaires de vallées",250,300,200,300,100,180]
[null,"Franche Comté","Limons hydromorphes",180,300,130,190,80,160]
[null,"Franche Comté","Argiles hydromorphes de vallées",260,450,210,280,150,210]
[null,"Bourgogne","Argilo-calcaire superficiel",300,450,300,400,150,300]
[null,"Bourgogne","Argilo-calcaire profond",250,300,200,300,100,180]
[null,"Bourgogne","Limons et argiles profonds",200,300,150,220,80,150]
[null,"Bourgogne","Limons battants",170,300,120,180,80,150]
[null,"Bourgogne","Sols sablo-graveleux",150,200,70,120,60,100]
[null,"Bourgogne","Alluvions argileuses",250,450,200,290,150,200]
[null,"Centre limousin","Argilo-calcaire superficiel caillouteux",300,400,300,400,150,300]
[null,"Centre limousin","Argilo-calcaire profond peu caillouteux",200,300,200,300,100,180]
[null,"Centre limousin","Limon argileux",200,400,150,220,100,150]
[null,"Centre limousin","Limon battant",170,300,120,180,80,150]
[null,"Centre limousin","Sable",150,200,70,120,40,100]
[null,"Centre limousin","Limon sableux",170,300,120,180,80,150]
[null,"Centre limousin","Limons sur argile à silex",180,310,130,190,90,160]
[null,"Centre limousin","Argile lourde",250,450,200,270,150,200]
[null,"Centre Bassin parisien","Limon battant",170,300,120,180,80,150]
[null,"Centre Bassin parisien","Limon de Beauce",200,400,150,220,100,150]
[null,"Centre Bassin parisien","Sable",150,200,70,120,40,100]
[null,"Centre Bassin parisien","Limon sableux",170,250,120,180,80,150]
[null,"Centre Bassin parisien","Argilo-calcaire superficiel caillouteux",300,400,300,400,150,300]
[null,"Centre Bassin parisien","Argilo-calcaire profond peu caillouteux",200,300,200,300,100,180]
[null,"Centre Bassin parisien","Argio-calcaire de Beauce",170,300,170,250,100,200]
[null,"Haute Normandie","Limon des plateaux",170,300,120,180,80,150]
[null,"Haute Normandie","Limon caillouteux sur argile à silex",180,310,130,190,90,160]
[null,"Haute Normandie","Argilo-calcaire superficiel sur craie",350,450,300,400,150,300]
[null,"Haute Normandie","Sable caillouteux non calcaire",160,200,80,160,40,110]
[null,"Basse Normandie","Limon",170,300,120,180,80,150]
[null,"Basse Normandie","Argilo-calcaire",250,300,200,300,100,180]
[null,"Basse Normandie","Sable",160,200,90,160,50,110]
[null,"Basse Normandie","Terres lourdes",250,450,200,270,150,200]
[null,"Bretagne pays de la Loire","Limon sain et Limon sableux",170,300,120,180,80,150]
[null,"Bretagne pays de la Loire","Limon caillouteux superficiel",190,320,140,200,100,170]
[null,"Bretagne pays de la Loire","Sable",100,150,70,100,50,100]
[null,"Bretagne pays de la Loire","Argilo-calcaire profond sur marne",250,300,200,300,100,180]
[null,"Bretagne pays de la Loire","Argilo-calcaire superficiel",400,450,300,400,150,300]
[null,"Poitou Charente","Terres de Groie",450,500,250,450,150,300]
[null,"Poitou Charente","Argilo-calcaire profond sur calcaire marneux",300,350,200,300,100,180]
[null,"Poitou Charente","Aubue lègère et champagne superficielle",200,400,80,250,50,100]
[null,"Poitou Charente","Aubue lourde et champagne profonde",200,400,80,250,50,100]
[null,"Poitou Charente","Limon, terres rouge, bomais, doucin limoneux",170,300,120,180,80,150]
[null,"Poitou Charente","Sol sableux",160,200,90,130,50,130]
[null,"Haute Marne","Limon",170,300,120,180,80,150]
[null,"Haute Marne","Sols superficiels du Barrois et autres sols argileux à 30% argile",250,300,200,300,100,180]
[null,"Haute Marne","Sols superficiels du Barrois et autres sols argileux à 40% argile",350,450,300,400,100,300]
[null,"Auvergne","Terre noire",250,300,200,300,100,180]
[null,"Auvergne","Argilo-calcaire",250,300,200,300,100,180]
[null,"Auvergne","Granitique",170,300,120,160,80,150]
[null,"Auvergne","Sologne",200,300,120,220,80,150]
[null,"Auvergne","Alluvions recentes (sableuses)",100,150,70,100,60,100]
[null,"Rhône Alpes Saône et Loire","Varenne",130,230,100,170,80,130]
[null,"Rhône Alpes Saône et Loire","Gravier, dilivium",110,210,80,150,60,110]
[null,"Rhône Alpes Saône et Loire","Limon blanc sain",170,300,120,180,80,150]
[null,"Rhône Alpes Saône et Loire","Limon blanc humide",180,310,130,190,90,160]
[null,"Rhône Alpes Saône et Loire","Limon argileux sain",200,400,150,220,100,150]
[null,"Rhône Alpes Saône et Loire","Limon argileux humide",210,410,160,230,110,160]
[null,"Rhône Alpes Saône et Loire","Argilo-calcaire profond",250,300,200,300,100,180]
[null,"Rhône Alpes Saône et Loire","Argilo-calcaire superficiel",350,450,300,450,150,300]
[null,"Sud Ouest","Sols acides limoneux ou argileux (boulbènes, alluvions,Ségala)",150,200,80,120,40,120]
[null,"Sud Ouest","Sols basiques ou argilo-calcaires (terreforts, alluvions)",150,200,80,120,40,120]

{"sheet":"BDD_Phosphore","index":41,"n_rows":90,"n_cols":12,"rows_kept":90,"cut":false,"hidden":false,"merged":[[1,3,1,4],[1,5,1,6],[1,7,1,8]]}
[null,null,null,"Seuil P2O5 en mg/kg - Méthode Joret Hebert"]
[null,null,null,"Très exigeant",null,"Moyennement exigeant",null,"peu exigeant"]
[null,"Région","Type de sols","T renforcé","T impasse","T renforcé","T impasse","T renforcé","T impasse",null,"Code","Ligne"]
[null,"Nord Picardie","Limons battants",{"$f":"IF(PK!$E$5=1, BDD_Phosphore_JH!D4, IF(PK!$E$5=2, BDD_Phosphore_Olsen!C4, BDD_Phosphore_Dyer!C4))","v":50},{"$f":"IF(PK!$E$5=1, BDD_Phosphore_JH!E4, IF(PK!$E$5=2, BDD_Phosphore_Olsen!D4, BDD_Phosphore_Dyer!D4))","v":80},{"$f":"IF(PK!$E$5=1, BDD_Phosphore_JH!F4, IF(PK!$E$5=2, BDD_Phosphore_Olsen!E4, BDD_Phosphore_Dyer!E4))","v":50},{"$f":"IF(PK!$E$5=1, BDD_Phosphore_JH!G4, IF(PK!$E$5=2, BDD_Phosphore_Olsen!F4, BDD_Phosphore_Dyer!F4))","v":80},{"$f":"IF(PK!$E$5=1, BDD_Phosphore_JH!H4, IF(PK!$E$5=2, BDD_Phosphore_Olsen!G4, BDD_Phosphore_Dyer!G4))","v":20},{"$f":"IF(PK!$E$5=1, BDD_Phosphore_JH!I4, IF(PK!$E$5=2, BDD_Phosphore_Olsen!H4, BDD_Phosphore_Dyer!H4))","v":70},null,11,1]
[null,"Nord Picardie","Limon argileux",{"$f":"IF(PK!$E$5=1, BDD_Phosphore_JH!D5, IF(PK!$E$5=2, BDD_Phosphore_Olsen!C5, BDD_Phosphore_Dyer!C5))","v":50},{"$f":"IF(PK!$E$5=1, BDD_Phosphore_JH!E5, IF(PK!$E$5=2, BDD_Phosphore_Olsen!D5, BDD_Phosphore_Dyer!D5))","v":80},{"$f":"IF(PK!$E$5=1, BDD_Phosphore_JH!F5, IF(PK!$E$5=2, BDD_Phosphore_Olsen!E5, BDD_Phosphore_Dyer!E5))","v":50},{"$f":"IF(PK!$E$5=1, BDD_Phosphore_JH!G5, IF(PK!$E$5=2, BDD_Phosphore_Olsen!F5, BDD_Phosphore_Dyer!F5))","v":80},{"$f":"IF(PK!$E$5=1, BDD_Phosphore_JH!H5, IF(PK!$E$5=2, BDD_Phosphore_Olsen!G5, BDD_Phosphore_Dyer!G5))","v":20},{"$f":"IF(PK!$E$5=1, BDD_Phosphore_JH!I5, IF(PK!$E$5=2, BDD_Phosphore_Olsen!H5, BDD_Phosphore_Dyer!H5))","v":70},null,12,2]
[null,"Nord Picardie","Argiles",{"$f":"IF(PK!$E$5=1, BDD_Phosphore_JH!D6, IF(PK!$E$5=2, BDD_Phosphore_Olsen!C6, BDD_Phosphore_Dyer!C6))","v":50},{"$f":"IF(PK!$E$5=1, BDD_Phosphore_JH!E6, IF(PK!$E$5=2, BDD_Phosphore_Olsen!D6, BDD_Phosphore_Dyer!D6))","v":80},{"$f":"IF(PK!$E$5=1, BDD_Phosphore_JH!F6, IF(PK!$E$5=2, BDD_Phosphore_Olsen!E6, BDD_Phosphore_Dyer!E6))","v":50},{"$f":"IF(PK!$E$5=1, BDD_Phosphore_JH!G6, IF(PK!$E$5=2, BDD_Phosphore_Olsen!F6, BDD_Phosphore_Dyer!F6))","v":80},{"$f":"IF(PK!$E$5=1, BDD_Phosphore_JH!H6, IF(PK!$E$5=2, BDD_Phosphore_Olsen!G6, BDD_Phosphore_Dyer!G6))","v":20},{"$f":"IF(PK!$E$5=1, BDD_Phosphore_JH!I6, IF(PK!$E$5=2, BDD_Phosphore_Olsen!H6, BDD_Phosphore_Dyer!H6))","v":70},null,13,3]
[null,"Nord Picardie","Cranettes",{"$f":"IF(PK!$E$5=1, BDD_Phosphore_JH!D7, IF(PK!$E$5=2, BDD_Phosphore_Olsen!C7, BDD_Phosphore_Dyer!C7))","v":145},{"$f":"IF(PK!$E$5=1, BDD_Phosphore_JH!E7, IF(PK!$E$5=2, BDD_Phosphore_Olsen!D7, BDD_Phosphore_Dyer!D7))","v":210},{"$f":"IF(PK!$E$5=1, BDD_Phosphore_JH!F7, IF(PK!$E$5=2, BDD_Phosphore_Olsen!E7, BDD_Phosphore_Dyer!E7))","v":130},{"$f":"IF(PK!$E$5=1, BDD_Phosphore_JH!G7, IF(PK!$E$5=2, BDD_Phosphore_Olsen!F7, BDD_Phosphore_Dyer!F7))","v":150},{"$f":"IF(PK!$E$5=1, BDD_Phosphore_JH!H7, IF(PK!$E$5=2, BDD_Phosphore_Olsen!G7, BDD_Phosphore_Dyer!G7))","v":60},{"$f":"IF(PK!$E$5=1, BDD_Phosphore_JH!I7, IF(PK!$E$5=2, BDD_Phosphore_Olsen!H7, BDD_Phosphore_Dyer!H7))","v":135},null,14,4]
[null,"Champagne Ardenne","Craie",{"$f":"IF(PK!$E$5=1, BDD_Phosphore_JH!D8, IF(PK!$E$5=2, BDD_Phosphore_Olsen!C8, BDD_Phosphore_Dyer!C8))","v":145},{"$f":"IF(PK!$E$5=1, BDD_Phosphore_JH!E8, IF(PK!$E$5=2, BDD_Phosphore_Olsen!D8, BDD_Phosphore_Dyer!D8))","v":210},{"$f":"IF(PK!$E$5=1, BDD_Phosphore_JH!F8, IF(PK!$E$5=2, BDD_Phosphore_Olsen!E8, BDD_Phosphore_Dyer!E8))","v":130},{"$f":"IF(PK!$E$5=1, BDD_Phosphore_JH!G8, IF(PK!$E$5=2, BDD_Phosphore_Olsen!F8, BDD_Phosphore_Dyer!F8))","v":150},{"$f":"IF(PK!$E$5=1, BDD_Phosphore_JH!H8, IF(PK!$E$5=2, BDD_Phosphore_Olsen!G8, BDD_Phosphore_Dyer!G8))","v":60},{"$f":"IF(PK!$E$5=1, BDD_Phosphore_JH!I8, IF(PK!$E$5=2, BDD_Phosphore_Olsen!H8, BDD_Phosphore_Dyer!H8))","v":135},null,21,5]
[null,"Champagne Ardenne","Limon",{"$f":"IF(PK!$E$5=1, BDD_Phosphore_JH!D9, IF(PK!$E$5=2, BDD_Phosphore_Olsen!C9, BDD_Phosphore_Dyer!C9))","v":50},{"$f":"IF(PK!$E$5=1, BDD_Phosphore_JH!E9, IF(PK!$E$5=2, BDD_Phosphore_Olsen!D9, BDD_Phosphore_Dyer!D9))","v":80},{"$f":"IF(PK!$E$5=1, BDD_Phosphore_JH!F9, IF(PK!$E$5=2, BDD_Phosphore_Olsen!E9, BDD_Phosphore_Dyer!E9))","v":50},{"$f":"IF(PK!$E$5=1, BDD_Phosphore_JH!G9, IF(PK!$E$5=2, BDD_Phosphore_Olsen!F9, BDD_Phosphore_Dyer!F9))","v":80},{"$f":"IF(PK!$E$5=1, BDD_Phosphore_JH!H9, IF(PK!$E$5=2, BDD_Phosphore_Olsen!G9, BDD_Phosphore_Dyer!G9))","v":20},{"$f":"IF(PK!$E$5=1, BDD_Phosphore_JH!I9, IF(PK!$E$5=2, BDD_Phosphore_Olsen!H9, BDD_Phosphore_Dyer!H9))","v":70},null,22,6]
[null,"Champagne Ardenne","Limon argileux",{"$f":"IF(PK!$E$5=1, BDD_Phosphore_JH!D10, IF(PK!$E$5=2, BDD_Phosphore_Olsen!C10, BDD_Phosphore_Dyer!C10))","v":50},{"$f":"IF(PK!$E$5=1, BDD_Phosphore_JH!E10, IF(PK!$E$5=2, BDD_Phosphore_Olsen!D10, BDD_Phosphore_Dyer!D10))","v":80},{"$f":"IF(PK!$E$5=1, BDD_Phosphore_JH!F10, IF(PK!$E$5=2, BDD_Phosphore_Olsen!E10, BDD_Phosphore_Dyer!E10))","v":50},{"$f":"IF(PK!$E$5=1, BDD_Phosphore_JH!G10, IF(PK!$E$5=2, BDD_Phosphore_Olsen!F10, BDD_Phosphore_Dyer!F10))","v":80},{"$f":"IF(PK!$E$5=1, BDD_Phosphore_JH!H10, IF(PK!$E$5=2, BDD_Phosphore_Olsen!G10, BDD_Phosphore_Dyer!G10))","v":20},{"$f":"IF(PK!$E$5=1, BDD_Phosphore_JH!I10, IF(PK!$E$5=2, BDD_Phosphore_Olsen!H10, BDD_Phosphore_Dyer!H10))","v":70},null,23,7]
[null,"Champagne Ardenne","Argilo-calcaire superficiel",{"$f":"IF(PK!$E$5=1, BDD_Phosphore_JH!D11, IF(PK!$E$5=2, BDD_Phosphore_Olsen!C11, BDD_Phosphore_Dyer!C11))","v":60},{"$f":"IF(PK!$E$5=1, BDD_Phosphore_JH!E11, IF(PK!$E$5=2, BDD_Phosphore_Olsen!D11, BDD_Phosphore_Dyer!D11))","v":90},{"$f":"IF(PK!$E$5=1, BDD_Phosphore_JH!F11, IF(PK!$E$5=2, BDD_Phosphore_Olsen!E11, BDD_Phosphore_Dyer!E11))","v":60},{"$f":"IF(PK!$E$5=1, BDD_Phosphore_JH!G11, IF(PK!$E$5=2, BDD_Phosphore_Olsen!F11, BDD_Phosphore_Dyer!F11))","v":90},{"$f":"IF(PK!$E$5=1, BDD_Phosphore_JH!H11, IF(PK!$E$5=2, BDD_Phosphore_Olsen!G11, BDD_Phosphore_Dyer!G11))","v":30},{"$f":"IF(PK!$E$5=1, BDD_Phosphore_JH!I11, IF(PK!$E$5=2, BDD_Phosphore_Olsen!H11, BDD_Phosphore_Dyer!H11))","v":80},null,24,8]
[null,"Champagne Ardenne","Argilo-calcaire profond",{"$f":"IF(PK!$E$5=1, BDD_Phosphore_JH!D12, IF(PK!$E$5=2, BDD_Phosphore_Olsen!C12, BDD_Phosphore_Dyer!C12))","v":60},{"$f":"IF(PK!$E$5=1, BDD_Phosphore_JH!E12, IF(PK!$E$5=2, BDD_Phosphore_Olsen!D12, BDD_Phosphore_Dyer!D12))","v":90},{"$f":"IF(PK!$E$5=1, BDD_Phosphore_JH!F12, IF(PK!$E$5=2, BDD_Phosphore_Olsen!E12, BDD_Phosphore_Dyer!E12))","v":60},{"$f":"IF(PK!$E$5=1, BDD_Phosphore_JH!G12, IF(PK!$E$5=2, BDD_Phosphore_Olsen!F12, BDD_Phosphore_Dyer!F12))","v":90},{"$f":"IF(PK!$E$5=1, BDD_Phosphore_JH!H12, IF(PK!$E$5=2, BDD_Phosphore_Olsen!G12, BDD_Phosphore_Dyer!G12))","v":30},{"$f":"IF(PK!$E$5=1, BDD_Phosphore_JH!I12, IF(PK!$E$5=2, BDD_Phosphore_Olsen!H12, BDD_Phosphore_Dyer!H12))","v":80},null,25,9]
[null,"Champagne Ardenne","Sable",{"$f":"IF(PK!$E$5=1, BDD_Phosphore_JH!D13, IF(PK!$E$5=2, BDD_Phosphore_Olsen!C13, BDD_Phosphore_Dyer!C13))","v":50},{"$f":"IF(PK!$E$5=1, BDD_Phosphore_JH!E13, IF(PK!$E$5=2, BDD_Phosphore_Olsen!D13, BDD_Phosphore_Dyer!D13))","v":80},{"$f":"IF(PK!$E$5=1, BDD_Phosphore_JH!F13, IF(PK!$E$5=2, BDD_Phosphore_Olsen!E13, BDD_Phosphore_Dyer!E13))","v":50},{"$f":"IF(PK!$E$5=1, BDD_Phosphore_JH!G13, IF(PK!$E$5=2, BDD_Phosphore_Olsen!F13, BDD_Phosphore_Dyer!F13))","v":80},{"$f":"IF(PK!$E$5=1, BDD_Phosphore_JH!H13, IF(PK!$E$5=2, BDD_Phosphore_Olsen!G13, BDD_Phosphore_Dyer!G13))","v":20},{"$f":"IF(PK!$E$5=1, BDD_Phosphore_JH!I13, IF(PK!$E$5=2, BDD_Phosphore_Olsen!H13, BDD_Phosphore_Dyer!H13))","v":70},null,26,10]
[null,"Lorraine","Argilo-calcaire profond",{"$f":"IF(PK!$E$5=1, BDD_Phosphore_JH!D14, IF(PK!$E$5=2, BDD_Phosphore_Olsen!C14, BDD_Phosphore_Dyer!C14))","v":60},{"$f":"IF(PK!$E$5=1, BDD_Phosphore_JH!E14, IF(PK!$E$5=2, BDD_Phosphore_Olsen!D14, BDD_Phosphore_Dyer!D14))","v":90},{"$f":"IF(PK!$E$5=1, BDD_Phosphore_JH!F14, IF(PK!$E$5=2, BDD_Phosphore_Olsen!E14, BDD_Phosphore_Dyer!E14))","v":60},{"$f":"IF(PK!$E$5=1, BDD_Phosphore_JH!G14, IF(PK!$E$5=2, BDD_Phosphore_Olsen!F14, BDD_Phosphore_Dyer!F14))","v":90},{"$f":"IF(PK!$E$5=1, BDD_Phosphore_JH!H14, IF(PK!$E$5=2, BDD_Phosphore_Olsen!G14, BDD_Phosphore_Dyer!G14))","v":30},{"$f":"IF(PK!$E$5=1, BDD_Phosphore_JH!I14, IF(PK!$E$5=2, BDD_Phosphore_Olsen!H14, BDD_Phosphore_Dyer!H14))","v":80},null,31,11]
[null,"Lorraine","Argilo-calcaire superficiel",{"$f":"IF(PK!$E$5=1, BDD_Phosphore_JH!D15, IF(PK!$E$5=2, BDD_Phosphore_Olsen!C15, BDD_Phosphore_Dyer!C15))","v":60},{"$f":"IF(PK!$E$5=1, BDD_Phosphore_JH!E15, IF(PK!$E$5=2, BDD_Phosphore_Olsen!D15, BDD_Phosphore_Dyer!D15))","v":90},{"$f":"IF(PK!$E$5=1, BDD_Phosphore_JH!F15, IF(PK!$E$5=2, BDD_Phosphore_Olsen!E15, BDD_Phosphore_Dyer!E15))","v":60},{"$f":"IF(PK!$E$5=1, BDD_Phosphore_JH!G15, IF(PK!$E$5=2, BDD_Phosphore_Olsen!F15, BDD_Phosphore_Dyer!F15))","v":90},{"$f":"IF(PK!$E$5=1, BDD_Phosphore_JH!H15, IF(PK!$E$5=2, BDD_Phosphore_Olsen!G15, BDD_Phosphore_Dyer!G15))","v":30},{"$f":"IF(PK!$E$5=1, BDD_Phosphore_JH!I15, IF(PK!$E$5=2, BDD_Phosphore_Olsen!H15, BDD_Phosphore_Dyer!H15))","v":80},null,32,12]
[null,"Lorraine","Limons",{"$f":"IF(PK!$E$5=1, BDD_Phosphore_JH!D16, IF(PK!$E$5=2, BDD_Phosphore_Olsen!C16, BDD_Phosphore_Dyer!C16))","v":50},{"$f":"IF(PK!$E$5=1, BDD_Phosphore_JH!E16, IF(PK!$E$5=2, BDD_Phosphore_Olsen!D16, BDD_Phosphore_Dyer!D16))","v":80},{"$f":"IF(PK!$E$5=1, BDD_Phosphore_JH!F16, IF(PK!$E$5=2, BDD_Phosphore_Olsen!E16, BDD_Phosphore_Dyer!E16))","v":50},{"$f":"IF(PK!$E$5=1, BDD_Phosphore_JH!G16, IF(PK!$E$5=2, BDD_Phosphore_Olsen!F16, BDD_Phosphore_Dyer!F16))","v":80},{"$f":"IF(PK!$E$5=1, BDD_Phosphore_JH!H16, IF(PK!$E$5=2, BDD_Phosphore_Olsen!G16, BDD_Phosphore_Dyer!G16))","v":20},{"$f":"IF(PK!$E$5=1, BDD_Phosphore_JH!I16, IF(PK!$E$5=2, BDD_Phosphore_Olsen!H16, BDD_Phosphore_Dyer!H16))","v":70},null,33,13]
[null,"Lorraine","Limon argileux",{"$f":"IF(PK!$E$5=1, BDD_Phosphore_JH!D17, IF(PK!$E$5=2, BDD_Phosphore_Olsen!C17, BDD_Phosphore_Dyer!C17))","v":50},{"$f":"IF(PK!$E$5=1, BDD_Phosphore_JH!E17, IF(PK!$E$5=2, BDD_Phosphore_Olsen!D17, BDD_Phosphore_Dyer!D17))","v":80},{"$f":"IF(PK!$E$5=1, BDD_Phosphore_JH!F17, IF(PK!$E$5=2, BDD_Phosphore_Olsen!E17, BDD_Phosphore_Dyer!E17))","v":50},{"$f":"IF(PK!$E$5=1, BDD_Phosphore_JH!G17, IF(PK!$E$5=2, BDD_Phosphore_Olsen!F17, BDD_Phosphore_Dyer!F17))","v":80},{"$f":"IF(PK!$E$5=1, BDD_Phosphore_JH!H17, IF(PK!$E$5=2, BDD_Phosphore_Olsen!G17, BDD_Phosphore_Dyer!G17))","v":20},{"$f":"IF(PK!$E$5=1, BDD_Phosphore_JH!I17, IF(PK!$E$5=2, BDD_Phosphore_Olsen!H17, BDD_Phosphore_Dyer!H17))","v":70},null,34,14]
[null,"Lorraine","Argiles lourdes",{"$f":"IF(PK!$E$5=1, BDD_Phosphore_JH!D18, IF(PK!$E$5=2, BDD_Phosphore_Olsen!C18, BDD_Phosphore_Dyer!C18))","v":50},{"$f":"IF(PK!$E$5=1, BDD_Phosphore_JH!E18, IF(PK!$E$5=2, BDD_Phosphore_Olsen!D18, BDD_Phosphore_Dyer!D18))","v":80},{"$f":"IF(PK!$E$5=1, BDD_Phosphore_JH!F18, IF(PK!$E$5=2, BDD_Phosphore_Olsen!E18, BDD_Phosphore_Dyer!E18))","v":50},{"$f":"IF(PK!$E$5=1, BDD_Phosphore_JH!G18, IF(PK!$E$5=2, BDD_Phosphore_Olsen!F18, BDD_Phosphore_Dyer!F18))","v":80},{"$f":"IF(PK!$E$5=1, BDD_Phosphore_JH!H18, IF(PK!$E$5=2, BDD_Phosphore_Olsen!G18, BDD_Phosphore_Dyer!G18))","v":20},{"$f":"IF(PK!$E$5=1, BDD_Phosphore_JH!I18, IF(PK!$E$5=2, BDD_Phosphore_Olsen!H18, BDD_Phosphore_Dyer!H18))","v":70},null,35,15]
[null,"Alsace","Limons loess",{"$f":"IF(PK!$E$5=1, BDD_Phosphore_JH!D19, IF(PK!$E$5=2, BDD_Phosphore_Olsen!C19, BDD_Phosphore_Dyer!C19))","v":50},{"$f":"IF(PK!$E$5=1, BDD_Phosphore_JH!E19, IF(PK!$E$5=2, BDD_Phosphore_Olsen!D19, BDD_Phosphore_Dyer!D19))","v":80},{"$f":"IF(PK!$E$5=1, BDD_Phosphore_JH!F19, IF(PK!$E$5=2, BDD_Phosphore_Olsen!E19, BDD_Phosphore_Dyer!E19))","v":50},{"$f":"IF(PK!$E$5=1, BDD_Phosphore_JH!G19, IF(PK!$E$5=2, BDD_Phosphore_Olsen!F19, BDD_Phosphore_Dyer!F19))","v":80},{"$f":"IF(PK!$E$5=1, BDD_Phosphore_JH!H19, IF(PK!$E$5=2, BDD_Phosphore_Olsen!G19, BDD_Phosphore_Dyer!G19))","v":20},{"$f":"IF(PK!$E$5=1, BDD_Phosphore_JH!I19, IF(PK!$E$5=2, BDD_Phosphore_Olsen!H19, BDD_Phosphore_Dyer!H19))","v":70},null,41,16]
[null,"Alsace","Alluvions de l'Ill",{"$f":"IF(PK!$E$5=1, BDD_Phosphore_JH!D20, IF(PK!$E$5=2, BDD_Phosphore_Olsen!C20, BDD_Phosphore_Dyer!C20))","v":50},{"$f":"IF(PK!$E$5=1, BDD_Phosphore_JH!E20, IF(PK!$E$5=2, BDD_Phosphore_Olsen!D20, BDD_Phosphore_Dyer!D20))","v":80},{"$f":"IF(PK!$E$5=1, BDD_Phosphore_JH!F20, IF(PK!$E$5=2, BDD_Phosphore_Olsen!E20, BDD_Phosphore_Dyer!E20))","v":50},{"$f":"IF(PK!$E$5=1, BDD_Phosphore_JH!G20, IF(PK!$E$5=2, BDD_Phosphore_Olsen!F20, BDD_Phosphore_Dyer!F20))","v":80},{"$f":"IF(PK!$E$5=1, BDD_Phosphore_JH!H20, IF(PK!$E$5=2, BDD_Phosphore_Olsen!G20, BDD_Phosphore_Dyer!G20))","v":20},{"$f":"IF(PK!$E$5=1, BDD_Phosphore_JH!I20, IF(PK!$E$5=2, BDD_Phosphore_Olsen!H20, BDD_Phosphore_Dyer!H20))","v":70},null,42,17]
[null,"Alsace","Limons lehm",{"$f":"IF(PK!$E$5=1, BDD_Phosphore_JH!D21, IF(PK!$E$5=2, BDD_Phosphore_Olsen!C21, BDD_Phosphore_Dyer!C21))","v":50},{"$f":"IF(PK!$E$5=1, BDD_Phosphore_JH!E21, IF(PK!$E$5=2, BDD_Phosphore_Olsen!D21, BDD_Phosphore_Dyer!D21))","v":80},{"$f":"IF(PK!$E$5=1, BDD_Phosphore_JH!F21, IF(PK!$E$5=2, BDD_Phosphore_Olsen!E21, BDD_Phosphore_Dyer!E21))","v":50},{"$f":"IF(PK!$E$5=1, BDD_Phosphore_JH!G21, IF(PK!$E$5=2, BDD_Phosphore_Olsen!F21, BDD_Phosphore_Dyer!F21))","v":80},{"$f":"IF(PK!$E$5=1, BDD_Phosphore_JH!H21, IF(PK!$E$5=2, BDD_Phosphore_Olsen!G21, BDD_Phosphore_Dyer!G21))","v":20},{"$f":"IF(PK!$E$5=1, BDD_Phosphore_JH!I21, IF(PK!$E$5=2, BDD_Phosphore_Olsen!H21, BDD_Phosphore_Dyer!H21))","v":70},null,43,18]
[null,"Alsace","Hardt superficielle, Ried brun caillouteux",{"$f":"IF(PK!$E$5=1, BDD_Phosphore_JH!D22, IF(PK!$E$5=2, BDD_Phosphore_Olsen!C22, BDD_Phosphore_Dyer!C22))","v":60},{"$f":"IF(PK!$E$5=1, BDD_Phosphore_JH!E22, IF(PK!$E$5=2, BDD_Phosphore_Olsen!D22, BDD_Phosphore_Dyer!D22))","v":90},{"$f":"IF(PK!$E$5=1, BDD_Phosphore_JH!F22, IF(PK!$E$5=2, BDD_Phosphore_Olsen!E22, BDD_Phosphore_Dyer!E22))","v":60},{"$f":"IF(PK!$E$5=1, BDD_Phosphore_JH!G22, IF(PK!$E$5=2, BDD_Phosphore_Olsen!F22, BDD_Phosphore_Dyer!F22))","v":90},{"$f":"IF(PK!$E$5=1, BDD_Phosphore_JH!H22, IF(PK!$E$5=2, BDD_Phosphore_Olsen!G22, BDD_Phosphore_Dyer!G22))","v":30},{"$f":"IF(PK!$E$5=1, BDD_Phosphore_JH!I22, IF(PK!$E$5=2, BDD_Phosphore_Olsen!H22, BDD_Phosphore_Dyer!H22))","v":80},null,44,19]
[null,"Alsace","Hardt profonde, Ried brun profond, basse plaine rhénane",{"$f":"IF(PK!$E$5=1, BDD_Phosphore_JH!D23, IF(PK!$E$5=2, BDD_Phosphore_Olsen!C23, BDD_Phosphore_Dyer!C23))","v":60},{"$f":"IF(PK!$E$5=1, BDD_Phosphore_JH!E23, IF(PK!$E$5=2, BDD_Phosphore_Olsen!D23, BDD_Phosphore_Dyer!D23))","v":90},{"$f":"IF(PK!$E$5=1, BDD_Phosphore_JH!F23, IF(PK!$E$5=2, BDD_Phosphore_Olsen!E23, BDD_Phosphore_Dyer!E23))","v":60},{"$f":"IF(PK!$E$5=1, BDD_Phosphore_JH!G23, IF(PK!$E$5=2, BDD_Phosphore_Olsen!F23, BDD_Phosphore_Dyer!F23))","v":90},{"$f":"IF(PK!$E$5=1, BDD_Phosphore_JH!H23, IF(PK!$E$5=2, BDD_Phosphore_Olsen!G23, BDD_Phosphore_Dyer!G23))","v":30},{"$f":"IF(PK!$E$5=1, BDD_Phosphore_JH!I23, IF(PK!$E$5=2, BDD_Phosphore_Olsen!H23, BDD_Phosphore_Dyer!H23))","v":80},null,45,20]
[null,"Alsace","Argilo-calcaire profond Alsace bossue, basse plaine sous-vosgienne",{"$f":"IF(PK!$E$5=1, BDD_Phosphore_JH!D24, IF(PK!$E$5=2, BDD_Phosphore_Olsen!C24, BDD_Phosphore_Dyer!C24))","v":60},{"$f":"IF(PK!$E$5=1, BDD_Phosphore_JH!E24, IF(PK!$E$5=2, BDD_Phosphore_Olsen!D24, BDD_Phosphore_Dyer!D24))","v":90},{"$f":"IF(PK!$E$5=1, BDD_Phosphore_JH!F24, IF(PK!$E$5=2, BDD_Phosphore_Olsen!E24, BDD_Phosphore_Dyer!E24))","v":60},{"$f":"IF(PK!$E$5=1, BDD_Phosphore_JH!G24, IF(PK!$E$5=2, BDD_Phosphore_Olsen!F24, BDD_Phosphore_Dyer!F24))","v":90},{"$f":"IF(PK!$E$5=1, BDD_Phosphore_JH!H24, IF(PK!$E$5=2, BDD_Phosphore_Olsen!G24, BDD_Phosphore_Dyer!G24))","v":30},{"$f":"IF(PK!$E$5=1, BDD_Phosphore_JH!I24, IF(PK!$E$5=2, BDD_Phosphore_Olsen!H24, BDD_Phosphore_Dyer!H24))","v":80},null,46,21]
[null,"Alsace","Argilo-calcaire caillouteux Alsace bossue, basse plaine sous-vosgienne",{"$f":"IF(PK!$E$5=1, BDD_Phosphore_JH!D25, IF(PK!$E$5=2, BDD_Phosphore_Olsen!C25, BDD_Phosphore_Dyer!C25))","v":60},{"$f":"IF(PK!$E$5=1, BDD_Phosphore_JH!E25, IF(PK!$E$5=2, BDD_Phosphore_Olsen!D25, BDD_Phosphore_Dyer!D25))","v":90},{"$f":"IF(PK!$E$5=1, BDD_Phosphore_JH!F25, IF(PK!$E$5=2, BDD_Phosphore_Olsen!E25, BDD_Phosphore_Dyer!E25))","v":60},{"$f":"IF(PK!$E$5=1, BDD_Phosphore_JH!G25, IF(PK!$E$5=2, BDD_Phosphore_Olsen!F25, BDD_Phosphore_Dyer!F25))","v":90},{"$f":"IF(PK!$E$5=1, BDD_Phosphore_JH!H25, IF(PK!$E$5=2, BDD_Phosphore_Olsen!G25, BDD_Phosphore_Dyer!G25))","v":30},{"$f":"IF(PK!$E$5=1, BDD_Phosphore_JH!I25, IF(PK!$E$5=2, BDD_Phosphore_Olsen!H25, BDD_Phosphore_Dyer!H25))","v":80},null,47,22]
[null,"Franche Comté","Limon (A< 20%)",{"$f":"IF(PK!$E$5=1, BDD_Phosphore_JH!D26, IF(PK!$E$5=2, BDD_Phosphore_Olsen!C26, BDD_Phosphore_Dyer!C26))","v":50},{"$f":"IF(PK!$E$5=1, BDD_Phosphore_JH!E26, IF(PK!$E$5=2, BDD_Phosphore_Olsen!D26, BDD_Phosphore_Dyer!D26))","v":80},{"$f":"IF(PK!$E$5=1, BDD_Phosphore_JH!F26, IF(PK!$E$5=2, BDD_Phosphore_Olsen!E26, BDD_Phosphore_Dyer!E26))","v":50},{"$f":"IF(PK!$E$5=1, BDD_Phosphore_JH!G26, IF(PK!$E$5=2, BDD_Phosphore_Olsen!F26, BDD_Phosphore_Dyer!F26))","v":80},{"$f":"IF(PK!$E$5=1, BDD_Phosphore_JH!H26, IF(PK!$E$5=2, BDD_Phosphore_Olsen!G26, BDD_Phosphore_Dyer!G26))","v":20},{"$f":"IF(PK!$E$5=1, BDD_Phosphore_JH!I26, IF(PK!$E$5=2, BDD_Phosphore_Olsen!H26, BDD_Phosphore_Dyer!H26))","v":70},null,51,23]
[null,"Franche Comté","Limon argileux",{"$f":"IF(PK!$E$5=1, BDD_Phosphore_JH!D27, IF(PK!$E$5=2, BDD_Phosphore_Olsen!C27, BDD_Phosphore_Dyer!C27))","v":50},{"$f":"IF(PK!$E$5=1, BDD_Phosphore_JH!E27, IF(PK!$E$5=2, BDD_Phosphore_Olsen!D27, BDD_Phosphore_Dyer!D27))","v":80},{"$f":"IF(PK!$E$5=1, BDD_Phosphore_JH!F27, IF(PK!$E$5=2, BDD_Phosphore_Olsen!E27, BDD_Phosphore_Dyer!E27))","v":50},{"$f":"IF(PK!$E$5=1, BDD_Phosphore_JH!G27, IF(PK!$E$5=2, BDD_Phosphore_Olsen!F27, BDD_Phosphore_Dyer!F27))","v":80},{"$f":"IF(PK!$E$5=1, BDD_Phosphore_JH!H27, IF(PK!$E$5=2, BDD_Phosphore_Olsen!G27, BDD_Phosphore_Dyer!G27))","v":20},{"$f":"IF(PK!$E$5=1, BDD_Phosphore_JH!I27, IF(PK!$E$5=2, BDD_Phosphore_Olsen!H27, BDD_Phosphore_Dyer!H27))","v":70},null,52,24]
[null,"Franche Comté","Limon argileux superficiel de plateaux",{"$f":"IF(PK!$E$5=1, BDD_Phosphore_JH!D28, IF(PK!$E$5=2, BDD_Phosphore_Olsen!C28, BDD_Phosphore_Dyer!C28))","v":50},{"$f":"IF(PK!$E$5=1, BDD_Phosphore_JH!E28, IF(PK!$E$5=2, BDD_Phosphore_Olsen!D28, BDD_Phosphore_Dyer!D28))","v":80},{"$f":"IF(PK!$E$5=1, BDD_Phosphore_JH!F28, IF(PK!$E$5=2, BDD_Phosphore_Olsen!E28, BDD_Phosphore_Dyer!E28))","v":50},{"$f":"IF(PK!$E$5=1, BDD_Phosphore_JH!G28, IF(PK!$E$5=2, BDD_Phosphore_Olsen!F28, BDD_Phosphore_Dyer!F28))","v":80},{"$f":"IF(PK!$E$5=1, BDD_Phosphore_JH!H28, IF(PK!$E$5=2, BDD_Phosphore_Olsen!G28, BDD_Phosphore_Dyer!G28))","v":20},{"$f":"IF(PK!$E$5=1, BDD_Phosphore_JH!I28, IF(PK!$E$5=2, BDD_Phosphore_Olsen!H28, BDD_Phosphore_Dyer!H28))","v":70},null,53,25]
[null,"Franche Comté","Sols argileux de vallées",{"$f":"IF(PK!$E$5=1, BDD_Phosphore_JH!D29, IF(PK!$E$5=2, BDD_Phosphore_Olsen!C29, BDD_Phosphore_Dyer!C29))","v":50},{"$f":"IF(PK!$E$5=1, BDD_Phosphore_JH!E29, IF(PK!$E$5=2, BDD_Phosphore_Olsen!D29, BDD_Phosphore_Dyer!D29))","v":80},{"$f":"IF(PK!$E$5=1, BDD_Phosphore_JH!F29, IF(PK!$E$5=2, BDD_Phosphore_Olsen!E29, BDD_Phosphore_Dyer!E29))","v":50},{"$f":"IF(PK!$E$5=1, BDD_Phosphore_JH!G29, IF(PK!$E$5=2, BDD_Phosphore_Olsen!F29, BDD_Phosphore_Dyer!F29))","v":80},{"$f":"IF(PK!$E$5=1, BDD_Phosphore_JH!H29, IF(PK!$E$5=2, BDD_Phosphore_Olsen!G29, BDD_Phosphore_Dyer!G29))","v":20},{"$f":"IF(PK!$E$5=1, BDD_Phosphore_JH!I29, IF(PK!$E$5=2, BDD_Phosphore_Olsen!H29, BDD_Phosphore_Dyer!H29))","v":70},null,54,26]
[null,"Franche Comté","Sols argileux, calcaires de vallées",{"$f":"IF(PK!$E$5=1, BDD_Phosphore_JH!D30, IF(PK!$E$5=2, BDD_Phosphore_Olsen!C30, BDD_Phosphore_Dyer!C30))","v":60},{"$f":"IF(PK!$E$5=1, BDD_Phosphore_JH!E30, IF(PK!$E$5=2, BDD_Phosphore_Olsen!D30, BDD_Phosphore_Dyer!D30))","v":90},{"$f":"IF(PK!$E$5=1, BDD_Phosphore_JH!F30, IF(PK!$E$5=2, BDD_Phosphore_Olsen!E30, BDD_Phosphore_Dyer!E30))","v":60},{"$f":"IF(PK!$E$5=1, BDD_Phosphore_JH!G30, IF(PK!$E$5=2, BDD_Phosphore_Olsen!F30, BDD_Phosphore_Dyer!F30))","v":90},{"$f":"IF(PK!$E$5=1, BDD_Phosphore_JH!H30, IF(PK!$E$5=2, BDD_Phosphore_Olsen!G30, BDD_Phosphore_Dyer!G30))","v":30},{"$f":"IF(PK!$E$5=1, BDD_Phosphore_JH!I30, IF(PK!$E$5=2, BDD_Phosphore_Olsen!H30, BDD_Phosphore_Dyer!H30))","v":80},null,55,27]
[null,"Franche Comté","Limons hydromorphes",{"$f":"IF(PK!$E$5=1, BDD_Phosphore_JH!D31, IF(PK!$E$5=2, BDD_Phosphore_Olsen!C31, BDD_Phosphore_Dyer!C31))","v":50},{"$f":"IF(PK!$E$5=1, BDD_Phosphore_JH!E31, IF(PK!$E$5=2, BDD_Phosphore_Olsen!D31, BDD_Phosphore_Dyer!D31))","v":80},{"$f":"IF(PK!$E$5=1, BDD_Phosphore_JH!F31, IF(PK!$E$5=2, BDD_Phosphore_Olsen!E31, BDD_Phosphore_Dyer!E31))","v":50},{"$f":"IF(PK!$E$5=1, BDD_Phosphore_JH!G31, IF(PK!$E$5=2, BDD_Phosphore_Olsen!F31, BDD_Phosphore_Dyer!F31))","v":80},{"$f":"IF(PK!$E$5=1, BDD_Phosphore_JH!H31, IF(PK!$E$5=2, BDD_Phosphore_Olsen!G31, BDD_Phosphore_Dyer!G31))","v":20},{"$f":"IF(PK!$E$5=1, BDD_Phosphore_JH!I31, IF(PK!$E$5=2, BDD_Phosphore_Olsen!H31, BDD_Phosphore_Dyer!H31))","v":70},null,56,28]
[null,"Franche Comté","Argiles hydromorphes de vallées",{"$f":"IF(PK!$E$5=1, BDD_Phosphore_JH!D32, IF(PK!$E$5=2, BDD_Phosphore_Olsen!C32, BDD_Phosphore_Dyer!C32))","v":50},{"$f":"IF(PK!$E$5=1, BDD_Phosphore_JH!E32, IF(PK!$E$5=2, BDD_Phosphore_Olsen!D32, BDD_Phosphore_Dyer!D32))","v":80},{"$f":"IF(PK!$E$5=1, BDD_Phosphore_JH!F32, IF(PK!$E$5=2, BDD_Phosphore_Olsen!E32, BDD_Phosphore_Dyer!E32))","v":50},{"$f":"IF(PK!$E$5=1, BDD_Phosphore_JH!G32, IF(PK!$E$5=2, BDD_Phosphore_Olsen!F32, BDD_Phosphore_Dyer!F32))","v":80},{"$f":"IF(PK!$E$5=1, BDD_Phosphore_JH!H32, IF(PK!$E$5=2, BDD_Phosphore_Olsen!G32, BDD_Phosphore_Dyer!G32))","v":20},{"$f":"IF(PK!$E$5=1, BDD_Phosphore_JH!I32, IF(PK!$E$5=2, BDD_Phosphore_Olsen!H32, BDD_Phosphore_Dyer!H32))","v":70},null,57,29]
[null,"Bourgogne","Argilo-calcaire superficiel",{"$f":"IF(PK!$E$5=1, BDD_Phosphore_JH!D33, IF(PK!$E$5=2, BDD_Phosphore_Olsen!C33, BDD_Phosphore_Dyer!C33))","v":60},{"$f":"IF(PK!$E$5=1, BDD_Phosphore_JH!E33, IF(PK!$E$5=2, BDD_Phosphore_Olsen!D33, BDD_Phosphore_Dyer!D33))","v":90},{"$f":"IF(PK!$E$5=1, BDD_Phosphore_JH!F33, IF(PK!$E$5=2, BDD_Phosphore_Olsen!E33, BDD_Phosphore_Dyer!E33))","v":60},{"$f":"IF(PK!$E$5=1, BDD_Phosphore_JH!G33, IF(PK!$E$5=2, BDD_Phosphore_Olsen!F33, BDD_Phosphore_Dyer!F33))","v":90},{"$f":"IF(PK!$E$5=1, BDD_Phosphore_JH!H33, IF(PK!$E$5=2, BDD_Phosphore_Olsen!G33, BDD_Phosphore_Dyer!G33))","v":30},{"$f":"IF(PK!$E$5=1, BDD_Phosphore_JH!I33, IF(PK!$E$5=2, BDD_Phosphore_Olsen!H33, BDD_Phosphore_Dyer!H33))","v":80},null,61,30]
[null,"Bourgogne","Argilo-calcaire profond",{"$f":"IF(PK!$E$5=1, BDD_Phosphore_JH!D34, IF(PK!$E$5=2, BDD_Phosphore_Olsen!C34, BDD_Phosphore_Dyer!C34))","v":60},{"$f":"IF(PK!$E$5=1, BDD_Phosphore_JH!E34, IF(PK!$E$5=2, BDD_Phosphore_Olsen!D34, BDD_Phosphore_Dyer!D34))","v":90},{"$f":"IF(PK!$E$5=1, BDD_Phosphore_JH!F34, IF(PK!$E$5=2, BDD_Phosphore_Olsen!E34, BDD_Phosphore_Dyer!E34))","v":60},{"$f":"IF(PK!$E$5=1, BDD_Phosphore_JH!G34, IF(PK!$E$5=2, BDD_Phosphore_Olsen!F34, BDD_Phosphore_Dyer!F34))","v":90},{"$f":"IF(PK!$E$5=1, BDD_Phosphore_JH!H34, IF(PK!$E$5=2, BDD_Phosphore_Olsen!G34, BDD_Phosphore_Dyer!G34))","v":30},{"$f":"IF(PK!$E$5=1, BDD_Phosphore_JH!I34, IF(PK!$E$5=2, BDD_Phosphore_Olsen!H34, BDD_Phosphore_Dyer!H34))","v":80},null,62,31]
[null,"Bourgogne","Limons et argiles profonds",{"$f":"IF(PK!$E$5=1, BDD_Phosphore_JH!D35, IF(PK!$E$5=2, BDD_Phosphore_Olsen!C35, BDD_Phosphore_Dyer!C35))","v":50},{"$f":"IF(PK!$E$5=1, BDD_Phosphore_JH!E35, IF(PK!$E$5=2, BDD_Phosphore_Olsen!D35, BDD_Phosphore_Dyer!D35))","v":80},{"$f":"IF(PK!$E$5=1, BDD_Phosphore_JH!F35, IF(PK!$E$5=2, BDD_Phosphore_Olsen!E35, BDD_Phosphore_Dyer!E35))","v":50},{"$f":"IF(PK!$E$5=1, BDD_Phosphore_JH!G35, IF(PK!$E$5=2, BDD_Phosphore_Olsen!F35, BDD_Phosphore_Dyer!F35))","v":80},{"$f":"IF(PK!$E$5=1, BDD_Phosphore_JH!H35, IF(PK!$E$5=2, BDD_Phosphore_Olsen!G35, BDD_Phosphore_Dyer!G35))","v":20},{"$f":"IF(PK!$E$5=1, BDD_Phosphore_JH!I35, IF(PK!$E$5=2, BDD_Phosphore_Olsen!H35, BDD_Phosphore_Dyer!H35))","v":70},null,63,32]
[null,"Bourgogne","Limons battants",{"$f":"IF(PK!$E$5=1, BDD_Phosphore_JH!D36, IF(PK!$E$5=2, BDD_Phosphore_Olsen!C36, BDD_Phosphore_Dyer!C36))","v":50},{"$f":"IF(PK!$E$5=1, BDD_Phosphore_JH!E36, IF(PK!$E$5=2, BDD_Phosphore_Olsen!D36, BDD_Phosphore_Dyer!D36))","v":80},{"$f":"IF(PK!$E$5=1, BDD_Phosphore_JH!F36, IF(PK!$E$5=2, BDD_Phosphore_Olsen!E36, BDD_Phosphore_Dyer!E36))","v":50},{"$f":"IF(PK!$E$5=1, BDD_Phosphore_JH!G36, IF(PK!$E$5=2, BDD_Phosphore_Olsen!F36, BDD_Phosphore_Dyer!F36))","v":80},{"$f":"IF(PK!$E$5=1, BDD_Phosphore_JH!H36, IF(PK!$E$5=2, BDD_Phosphore_Olsen!G36, BDD_Phosphore_Dyer!G36))","v":20},{"$f":"IF(PK!$E$5=1, BDD_Phosphore_JH!I36, IF(PK!$E$5=2, BDD_Phosphore_Olsen!H36, BDD_Phosphore_Dyer!H36))","v":70},null,64,33]
[null,"Bourgogne","Sols sablo-graveleux",{"$f":"IF(PK!$E$5=1, BDD_Phosphore_JH!D37, IF(PK!$E$5=2, BDD_Phosphore_Olsen!C37, BDD_Phosphore_Dyer!C37))","v":50},{"$f":"IF(PK!$E$5=1, BDD_Phosphore_JH!E37, IF(PK!$E$5=2, BDD_Phosphore_Olsen!D37, BDD_Phosphore_Dyer!D37))","v":80},{"$f":"IF(PK!$E$5=1, BDD_Phosphore_JH!F37, IF(PK!$E$5=2, BDD_Phosphore_Olsen!E37, BDD_Phosphore_Dyer!E37))","v":50},{"$f":"IF(PK!$E$5=1, BDD_Phosphore_JH!G37, IF(PK!$E$5=2, BDD_Phosphore_Olsen!F37, BDD_Phosphore_Dyer!F37))","v":80},{"$f":"IF(PK!$E$5=1, BDD_Phosphore_JH!H37, IF(PK!$E$5=2, BDD_Phosphore_Olsen!G37, BDD_Phosphore_Dyer!G37))","v":20},{"$f":"IF(PK!$E$5=1, BDD_Phosphore_JH!I37, IF(PK!$E$5=2, BDD_Phosphore_Olsen!H37, BDD_Phosphore_Dyer!H37))","v":70},null,65,34]
[null,"Bourgogne","Alluvions argileuses",{"$f":"IF(PK!$E$5=1, BDD_Phosphore_JH!D38, IF(PK!$E$5=2, BDD_Phosphore_Olsen!C38, BDD_Phosphore_Dyer!C38))","v":50},{"$f":"IF(PK!$E$5=1, BDD_Phosphore_JH!E38, IF(PK!$E$5=2, BDD_Phosphore_Olsen!D38, BDD_Phosphore_Dyer!D38))","v":80},{"$f":"IF(PK!$E$5=1, BDD_Phosphore_JH!F38, IF(PK!$E$5=2, BDD_Phosphore_Olsen!E38, BDD_Phosphore_Dyer!E38))","v":50},{"$f":"IF(PK!$E$5=1, BDD_Phosphore_JH!G38, IF(PK!$E$5=2, BDD_Phosphore_Olsen!F38, BDD_Phosphore_Dyer!F38))","v":80},{"$f":"IF(PK!$E$5=1, BDD_Phosphore_JH!H38, IF(PK!$E$5=2, BDD_Phosphore_Olsen!G38, BDD_Phosphore_Dyer!G38))","v":20},{"$f":"IF(PK!$E$5=1, BDD_Phosphore_JH!I38, IF(PK!$E$5=2, BDD_Phosphore_Olsen!H38, BDD_Phosphore_Dyer!H38))","v":70},null,66,35]
[null,"Centre limousin","Argilo-calcaire superficiel caillouteux",{"$f":"IF(PK!$E$5=1, BDD_Phosphore_JH!D39, IF(PK!$E$5=2, BDD_Phosphore_Olsen!C39, BDD_Phosphore_Dyer!C39))","v":60},{"$f":"IF(PK!$E$5=1, BDD_Phosphore_JH!E39, IF(PK!$E$5=2, BDD_Phosphore_Olsen!D39, BDD_Phosphore_Dyer!D39))","v":90},{"$f":"IF(PK!$E$5=1, BDD_Phosphore_JH!F39, IF(PK!$E$5=2, BDD_Phosphore_Olsen!E39, BDD_Phosphore_Dyer!E39))","v":60},{"$f":"IF(PK!$E$5=1, BDD_Phosphore_JH!G39, IF(PK!$E$5=2, BDD_Phosphore_Olsen!F39, BDD_Phosphore_Dyer!F39))","v":90},{"$f":"IF(PK!$E$5=1, BDD_Phosphore_JH!H39, IF(PK!$E$5=2, BDD_Phosphore_Olsen!G39, BDD_Phosphore_Dyer!G39))","v":30},{"$f":"IF(PK!$E$5=1, BDD_Phosphore_JH!I39, IF(PK!$E$5=2, BDD_Phosphore_Olsen!H39, BDD_Phosphore_Dyer!H39))","v":80},null,71,36]
[null,"Centre limousin","Argilo-calcaire profond peu caillouteux",{"$f":"IF(PK!$E$5=1, BDD_Phosphore_JH!D40, IF(PK!$E$5=2, BDD_Phosphore_Olsen!C40, BDD_Phosphore_Dyer!C40))","v":60},{"$f":"IF(PK!$E$5=1, BDD_Phosphore_JH!E40, IF(PK!$E$5=2, BDD_Phosphore_Olsen!D40, BDD_Phosphore_Dyer!D40))","v":90},{"$f":"IF(PK!$E$5=1, BDD_Phosphore_JH!F40, IF(PK!$E$5=2, BDD_Phosphore_Olsen!E40, BDD_Phosphore_Dyer!E40))","v":60},{"$f":"IF(PK!$E$5=1, BDD_Phosphore_JH!G40, IF(PK!$E$5=2, BDD_Phosphore_Olsen!F40, BDD_Phosphore_Dyer!F40))","v":90},{"$f":"IF(PK!$E$5=1, BDD_Phosphore_JH!H40, IF(PK!$E$5=2, BDD_Phosphore_Olsen!G40, BDD_Phosphore_Dyer!G40))","v":30},{"$f":"IF(PK!$E$5=1, BDD_Phosphore_JH!I40, IF(PK!$E$5=2, BDD_Phosphore_Olsen!H40, BDD_Phosphore_Dyer!H40))","v":80},null,72,37]
[null,"Centre limousin","Limon argileux",{"$f":"IF(PK!$E$5=1, BDD_Phosphore_JH!D41, IF(PK!$E$5=2, BDD_Phosphore_Olsen!C41, BDD_Phosphore_Dyer!C41))","v":50},{"$f":"IF(PK!$E$5=1, BDD_Phosphore_JH!E41, IF(PK!$E$5=2, BDD_Phosphore_Olsen!D41, BDD_Phosphore_Dyer!D41))","v":80},{"$f":"IF(PK!$E$5=1, BDD_Phosphore_JH!F41, IF(PK!$E$5=2, BDD_Phosphore_Olsen!E41, BDD_Phosphore_Dyer!E41))","v":50},{"$f":"IF(PK!$E$5=1, BDD_Phosphore_JH!G41, IF(PK!$E$5=2, BDD_Phosphore_Olsen!F41, BDD_Phosphore_Dyer!F41))","v":80},{"$f":"IF(PK!$E$5=1, BDD_Phosphore_JH!H41, IF(PK!$E$5=2, BDD_Phosphore_Olsen!G41, BDD_Phosphore_Dyer!G41))","v":20},{"$f":"IF(PK!$E$5=1, BDD_Phosphore_JH!I41, IF(PK!$E$5=2, BDD_Phosphore_Olsen!H41, BDD_Phosphore_Dyer!H41))","v":70},null,73,38]
[null,"Centre limousin","Limon battant",{"$f":"IF(PK!$E$5=1, BDD_Phosphore_JH!D42, IF(PK!$E$5=2, BDD_Phosphore_Olsen!C42, BDD_Phosphore_Dyer!C42))","v":50},{"$f":"IF(PK!$E$5=1, BDD_Phosphore_JH!E42, IF(PK!$E$5=2, BDD_Phosphore_Olsen!D42, BDD_Phosphore_Dyer!D42))","v":80},{"$f":"IF(PK!$E$5=1, BDD_Phosphore_JH!F42, IF(PK!$E$5=2, BDD_Phosphore_Olsen!E42, BDD_Phosphore_Dyer!E42))","v":50},{"$f":"IF(PK!$E$5=1, BDD_Phosphore_JH!G42, IF(PK!$E$5=2, BDD_Phosphore_Olsen!F42, BDD_Phosphore_Dyer!F42))","v":80},{"$f":"IF(PK!$E$5=1, BDD_Phosphore_JH!H42, IF(PK!$E$5=2, BDD_Phosphore_Olsen!G42, BDD_Phosphore_Dyer!G42))","v":20},{"$f":"IF(PK!$E$5=1, BDD_Phosphore_JH!I42, IF(PK!$E$5=2, BDD_Phosphore_Olsen!H42, BDD_Phosphore_Dyer!H42))","v":70},null,74,39]
[null,"Centre limousin","Sable",{"$f":"IF(PK!$E$5=1, BDD_Phosphore_JH!D43, IF(PK!$E$5=2, BDD_Phosphore_Olsen!C43, BDD_Phosphore_Dyer!C43))","v":50},{"$f":"IF(PK!$E$5=1, BDD_Phosphore_JH!E43, IF(PK!$E$5=2, BDD_Phosphore_Olsen!D43, BDD_Phosphore_Dyer!D43))","v":80},{"$f":"IF(PK!$E$5=1, BDD_Phosphore_JH!F43, IF(PK!$E$5=2, BDD_Phosphore_Olsen!E43, BDD_Phosphore_Dyer!E43))","v":50},{"$f":"IF(PK!$E$5=1, BDD_Phosphore_JH!G43, IF(PK!$E$5=2, BDD_Phosphore_Olsen!F43, BDD_Phosphore_Dyer!F43))","v":80},{"$f":"IF(PK!$E$5=1, BDD_Phosphore_JH!H43, IF(PK!$E$5=2, BDD_Phosphore_Olsen!G43, BDD_Phosphore_Dyer!G43))","v":20},{"$f":"IF(PK!$E$5=1, BDD_Phosphore_JH!I43, IF(PK!$E$5=2, BDD_Phosphore_Olsen!H43, BDD_Phosphore_Dyer!H43))","v":70},null,75,40]
[null,"Centre limousin","Limon sableux",{"$f":"IF(PK!$E$5=1, BDD_Phosphore_JH!D44, IF(PK!$E$5=2, BDD_Phosphore_Olsen!C44, BDD_Phosphore_Dyer!C44))","v":50},{"$f":"IF(PK!$E$5=1, BDD_Phosphore_JH!E44, IF(PK!$E$5=2, BDD_Phosphore_Olsen!D44, BDD_Phosphore_Dyer!D44))","v":80},{"$f":"IF(PK!$E$5=1, BDD_Phosphore_JH!F44, IF(PK!$E$5=2, BDD_Phosphore_Olsen!E44, BDD_Phosphore_Dyer!E44))","v":50},{"$f":"IF(PK!$E$5=1, BDD_Phosphore_JH!G44, IF(PK!$E$5=2, BDD_Phosphore_Olsen!F44, BDD_Phosphore_Dyer!F44))","v":80},{"$f":"IF(PK!$E$5=1, BDD_Phosphore_JH!H44, IF(PK!$E$5=2, BDD_Phosphore_Olsen!G44, BDD_Phosphore_Dyer!G44))","v":20},{"$f":"IF(PK!$E$5=1, BDD_Phosphore_JH!I44, IF(PK!$E$5=2, BDD_Phosphore_Olsen!H44, BDD_Phosphore_Dyer!H44))","v":70},null,76,41]
[null,"Centre limousin","Limons sur argile à silex",{"$f":"IF(PK!$E$5=1, BDD_Phosphore_JH!D45, IF(PK!$E$5=2, BDD_Phosphore_Olsen!C45, BDD_Phosphore_Dyer!C45))","v":50},{"$f":"IF(PK!$E$5=1, BDD_Phosphore_JH!E45, IF(PK!$E$5=2, BDD_Phosphore_Olsen!D45, BDD_Phosphore_Dyer!D45))","v":80},{"$f":"IF(PK!$E$5=1, BDD_Phosphore_JH!F45, IF(PK!$E$5=2, BDD_Phosphore_Olsen!E45, BDD_Phosphore_Dyer!E45))","v":50},{"$f":"IF(PK!$E$5=1, BDD_Phosphore_JH!G45, IF(PK!$E$5=2, BDD_Phosphore_Olsen!F45, BDD_Phosphore_Dyer!F45))","v":80},{"$f":"IF(PK!$E$5=1, BDD_Phosphore_JH!H45, IF(PK!$E$5=2, BDD_Phosphore_Olsen!G45, BDD_Phosphore_Dyer!G45))","v":20},{"$f":"IF(PK!$E$5=1, BDD_Phosphore_JH!I45, IF(PK!$E$5=2, BDD_Phosphore_Olsen!H45, BDD_Phosphore_Dyer!H45))","v":70},null,77,42]
[null,"Centre limousin","Argile lourde",{"$f":"IF(PK!$E$5=1, BDD_Phosphore_JH!D46, IF(PK!$E$5=2, BDD_Phosphore_Olsen!C46, BDD_Phosphore_Dyer!C46))","v":50},{"$f":"IF(PK!$E$5=1, BDD_Phosphore_JH!E46, IF(PK!$E$5=2, BDD_Phosphore_Olsen!D46, BDD_Phosphore_Dyer!D46))","v":80},{"$f":"IF(PK!$E$5=1, BDD_Phosphore_JH!F46, IF(PK!$E$5=2, BDD_Phosphore_Olsen!E46, BDD_Phosphore_Dyer!E46))","v":50},{"$f":"IF(PK!$E$5=1, BDD_Phosphore_JH!G46, IF(PK!$E$5=2, BDD_Phosphore_Olsen!F46, BDD_Phosphore_Dyer!F46))","v":80},{"$f":"IF(PK!$E$5=1, BDD_Phosphore_JH!H46, IF(PK!$E$5=2, BDD_Phosphore_Olsen!G46, BDD_Phosphore_Dyer!G46))","v":20},{"$f":"IF(PK!$E$5=1, BDD_Phosphore_JH!I46, IF(PK!$E$5=2, BDD_Phosphore_Olsen!H46, BDD_Phosphore_Dyer!H46))","v":70},null,78,43]
[null,"Centre Bassin parisien","Limon battant",{"$f":"IF(PK!$E$5=1, BDD_Phosphore_JH!D47, IF(PK!$E$5=2, BDD_Phosphore_Olsen!C47, BDD_Phosphore_Dyer!C47))","v":50},{"$f":"IF(PK!$E$5=1, BDD_Phosphore_JH!E47, IF(PK!$E$5=2, BDD_Phosphore_Olsen!D47, BDD_Phosphore_Dyer!D47))","v":80},{"$f":"IF(PK!$E$5=1, BDD_Phosphore_JH!F47, IF(PK!$E$5=2, BDD_Phosphore_Olsen!E47, BDD_Phosphore_Dyer!E47))","v":50},{"$f":"IF(PK!$E$5=1, BDD_Phosphore_JH!G47, IF(PK!$E$5=2, BDD_Phosphore_Olsen!F47, BDD_Phosphore_Dyer!F47))","v":80},{"$f":"IF(PK!$E$5=1, BDD_Phosphore_JH!H47, IF(PK!$E$5=2, BDD_Phosphore_Olsen!G47, BDD_Phosphore_Dyer!G47))","v":20},{"$f":"IF(PK!$E$5=1, BDD_Phosphore_JH!I47, IF(PK!$E$5=2, BDD_Phosphore_Olsen!H47, BDD_Phosphore_Dyer!H47))","v":70},null,81,44]
[null,"Centre Bassin parisien","Limon de Beauce",{"$f":"IF(PK!$E$5=1, BDD_Phosphore_JH!D48, IF(PK!$E$5=2, BDD_Phosphore_Olsen!C48, BDD_Phosphore_Dyer!C48))","v":50},{"$f":"IF(PK!$E$5=1, BDD_Phosphore_JH!E48, IF(PK!$E$5=2, BDD_Phosphore_Olsen!D48, BDD_Phosphore_Dyer!D48))","v":80},{"$f":"IF(PK!$E$5=1, BDD_Phosphore_JH!F48, IF(PK!$E$5=2, BDD_Phosphore_Olsen!E48, BDD_Phosphore_Dyer!E48))","v":50},{"$f":"IF(PK!$E$5=1, BDD_Phosphore_JH!G48, IF(PK!$E$5=2, BDD_Phosphore_Olsen!F48, BDD_Phosphore_Dyer!F48))","v":80},{"$f":"IF(PK!$E$5=1, BDD_Phosphore_JH!H48, IF(PK!$E$5=2, BDD_Phosphore_Olsen!G48, BDD_Phosphore_Dyer!G48))","v":20},{"$f":"IF(PK!$E$5=1, BDD_Phosphore_JH!I48, IF(PK!$E$5=2, BDD_Phosphore_Olsen!H48, BDD_Phosphore_Dyer!H48))","v":70},null,82,45]
[null,"Centre Bassin parisien","Sable",{"$f":"IF(PK!$E$5=1, BDD_Phosphore_JH!D49, IF(PK!$E$5=2, BDD_Phosphore_Olsen!C49, BDD_Phosphore_Dyer!C49))","v":50},{"$f":"IF(PK!$E$5=1, BDD_Phosphore_JH!E49, IF(PK!$E$5=2, BDD_Phosphore_Olsen!D49, BDD_Phosphore_Dyer!D49))","v":80},{"$f":"IF(PK!$E$5=1, BDD_Phosphore_JH!F49, IF(PK!$E$5=2, BDD_Phosphore_Olsen!E49, BDD_Phosphore_Dyer!E49))","v":50},{"$f":"IF(PK!$E$5=1, BDD_Phosphore_JH!G49, IF(PK!$E$5=2, BDD_Phosphore_Olsen!F49, BDD_Phosphore_Dyer!F49))","v":80},{"$f":"IF(PK!$E$5=1, BDD_Phosphore_JH!H49, IF(PK!$E$5=2, BDD_Phosphore_Olsen!G49, BDD_Phosphore_Dyer!G49))","v":20},{"$f":"IF(PK!$E$5=1, BDD_Phosphore_JH!I49, IF(PK!$E$5=2, BDD_Phosphore_Olsen!H49, BDD_Phosphore_Dyer!H49))","v":70},null,83,46]
[null,"Centre Bassin parisien","Limon sableux",{"$f":"IF(PK!$E$5=1, BDD_Phosphore_JH!D50, IF(PK!$E$5=2, BDD_Phosphore_Olsen!C50, BDD_Phosphore_Dyer!C50))","v":50},{"$f":"IF(PK!$E$5=1, BDD_Phosphore_JH!E50, IF(PK!$E$5=2, BDD_Phosphore_Olsen!D50, BDD_Phosphore_Dyer!D50))","v":80},{"$f":"IF(PK!$E$5=1, BDD_Phosphore_JH!F50, IF(PK!$E$5=2, BDD_Phosphore_Olsen!E50, BDD_Phosphore_Dyer!E50))","v":50},{"$f":"IF(PK!$E$5=1, BDD_Phosphore_JH!G50, IF(PK!$E$5=2, BDD_Phosphore_Olsen!F50, BDD_Phosphore_Dyer!F50))","v":80},{"$f":"IF(PK!$E$5=1, BDD_Phosphore_JH!H50, IF(PK!$E$5=2, BDD_Phosphore_Olsen!G50, BDD_Phosphore_Dyer!G50))","v":20},{"$f":"IF(PK!$E$5=1, BDD_Phosphore_JH!I50, IF(PK!$E$5=2, BDD_Phosphore_Olsen!H50, BDD_Phosphore_Dyer!H50))","v":70},null,84,47]
[null,"Centre Bassin parisien","Argilo-calcaire superficiel caillouteux",{"$f":"IF(PK!$E$5=1, BDD_Phosphore_JH!D51, IF(PK!$E$5=2, BDD_Phosphore_Olsen!C51, BDD_Phosphore_Dyer!C51))","v":60},{"$f":"IF(PK!$E$5=1, BDD_Phosphore_JH!E51, IF(PK!$E$5=2, BDD_Phosphore_Olsen!D51, BDD_Phosphore_Dyer!D51))","v":90},{"$f":"IF(PK!$E$5=1, BDD_Phosphore_JH!F51, IF(PK!$E$5=2, BDD_Phosphore_Olsen!E51, BDD_Phosphore_Dyer!E51))","v":60},{"$f":"IF(PK!$E$5=1, BDD_Phosphore_JH!G51, IF(PK!$E$5=2, BDD_Phosphore_Olsen!F51, BDD_Phosphore_Dyer!F51))","v":90},{"$f":"IF(PK!$E$5=1, BDD_Phosphore_JH!H51, IF(PK!$E$5=2, BDD_Phosphore_Olsen!G51, BDD_Phosphore_Dyer!G51))","v":30},{"$f":"IF(PK!$E$5=1, BDD_Phosphore_JH!I51, IF(PK!$E$5=2, BDD_Phosphore_Olsen!H51, BDD_Phosphore_Dyer!H51))","v":80},null,85,48]
[null,"Centre Bassin parisien","Argilo-calcaire profond peu caillouteux",{"$f":"IF(PK!$E$5=1, BDD_Phosphore_JH!D52, IF(PK!$E$5=2, BDD_Phosphore_Olsen!C52, BDD_Phosphore_Dyer!C52))","v":60},{"$f":"IF(PK!$E$5=1, BDD_Phosphore_JH!E52, IF(PK!$E$5=2, BDD_Phosphore_Olsen!D52, BDD_Phosphore_Dyer!D52))","v":90},{"$f":"IF(PK!$E$5=1, BDD_Phosphore_JH!F52, IF(PK!$E$5=2, BDD_Phosphore_Olsen!E52, BDD_Phosphore_Dyer!E52))","v":60},{"$f":"IF(PK!$E$5=1, BDD_Phosphore_JH!G52, IF(PK!$E$5=2, BDD_Phosphore_Olsen!F52, BDD_Phosphore_Dyer!F52))","v":90},{"$f":"IF(PK!$E$5=1, BDD_Phosphore_JH!H52, IF(PK!$E$5=2, BDD_Phosphore_Olsen!G52, BDD_Phosphore_Dyer!G52))","v":30},{"$f":"IF(PK!$E$5=1, BDD_Phosphore_JH!I52, IF(PK!$E$5=2, BDD_Phosphore_Olsen!H52, BDD_Phosphore_Dyer!H52))","v":80},null,86,49]
[null,"Centre Bassin parisien","Argio-calcaire de Beauce",{"$f":"IF(PK!$E$5=1, BDD_Phosphore_JH!D53, IF(PK!$E$5=2, BDD_Phosphore_Olsen!C53, BDD_Phosphore_Dyer!C53))","v":60},{"$f":"IF(PK!$E$5=1, BDD_Phosphore_JH!E53, IF(PK!$E$5=2, BDD_Phosphore_Olsen!D53, BDD_Phosphore_Dyer!D53))","v":90},{"$f":"IF(PK!$E$5=1, BDD_Phosphore_JH!F53, IF(PK!$E$5=2, BDD_Phosphore_Olsen!E53, BDD_Phosphore_Dyer!E53))","v":60},{"$f":"IF(PK!$E$5=1, BDD_Phosphore_JH!G53, IF(PK!$E$5=2, BDD_Phosphore_Olsen!F53, BDD_Phosphore_Dyer!F53))","v":90},{"$f":"IF(PK!$E$5=1, BDD_Phosphore_JH!H53, IF(PK!$E$5=2, BDD_Phosphore_Olsen!G53, BDD_Phosphore_Dyer!G53))","v":30},{"$f":"IF(PK!$E$5=1, BDD_Phosphore_JH!I53, IF(PK!$E$5=2, BDD_Phosphore_Olsen!H53, BDD_Phosphore_Dyer!H53))","v":80},null,87,50]
[null,"Haute Normandie","Limon des plateaux",{"$f":"IF(PK!$E$5=1, BDD_Phosphore_JH!D54, IF(PK!$E$5=2, BDD_Phosphore_Olsen!C54, BDD_Phosphore_Dyer!C54))","v":50},{"$f":"IF(PK!$E$5=1, BDD_Phosphore_JH!E54, IF(PK!$E$5=2, BDD_Phosphore_Olsen!D54, BDD_Phosphore_Dyer!D54))","v":80},{"$f":"IF(PK!$E$5=1, BDD_Phosphore_JH!F54, IF(PK!$E$5=2, BDD_Phosphore_Olsen!E54, BDD_Phosphore_Dyer!E54))","v":50},{"$f":"IF(PK!$E$5=1, BDD_Phosphore_JH!G54, IF(PK!$E$5=2, BDD_Phosphore_Olsen!F54, BDD_Phosphore_Dyer!F54))","v":80},{"$f":"IF(PK!$E$5=1, BDD_Phosphore_JH!H54, IF(PK!$E$5=2, BDD_Phosphore_Olsen!G54, BDD_Phosphore_Dyer!G54))","v":20},{"$f":"IF(PK!$E$5=1, BDD_Phosphore_JH!I54, IF(PK!$E$5=2, BDD_Phosphore_Olsen!H54, BDD_Phosphore_Dyer!H54))","v":70},null,91,51]
[null,"Haute Normandie","Limon caillouteux sur argile à silex",{"$f":"IF(PK!$E$5=1, BDD_Phosphore_JH!D55, IF(PK!$E$5=2, BDD_Phosphore_Olsen!C55, BDD_Phosphore_Dyer!C55))","v":50},{"$f":"IF(PK!$E$5=1, BDD_Phosphore_JH!E55, IF(PK!$E$5=2, BDD_Phosphore_Olsen!D55, BDD_Phosphore_Dyer!D55))","v":80},{"$f":"IF(PK!$E$5=1, BDD_Phosphore_JH!F55, IF(PK!$E$5=2, BDD_Phosphore_Olsen!E55, BDD_Phosphore_Dyer!E55))","v":50},{"$f":"IF(PK!$E$5=1, BDD_Phosphore_JH!G55, IF(PK!$E$5=2, BDD_Phosphore_Olsen!F55, BDD_Phosphore_Dyer!F55))","v":80},{"$f":"IF(PK!$E$5=1, BDD_Phosphore_JH!H55, IF(PK!$E$5=2, BDD_Phosphore_Olsen!G55, BDD_Phosphore_Dyer!G55))","v":20},{"$f":"IF(PK!$E$5=1, BDD_Phosphore_JH!I55, IF(PK!$E$5=2, BDD_Phosphore_Olsen!H55, BDD_Phosphore_Dyer!H55))","v":70},null,92,52]
[null,"Haute Normandie","Argilo-calcaire superficiel sur craie",{"$f":"IF(PK!$E$5=1, BDD_Phosphore_JH!D56, IF(PK!$E$5=2, BDD_Phosphore_Olsen!C56, BDD_Phosphore_Dyer!C56))","v":60},{"$f":"IF(PK!$E$5=1, BDD_Phosphore_JH!E56, IF(PK!$E$5=2, BDD_Phosphore_Olsen!D56, BDD_Phosphore_Dyer!D56))","v":100},{"$f":"IF(PK!$E$5=1, BDD_Phosphore_JH!F56, IF(PK!$E$5=2, BDD_Phosphore_Olsen!E56, BDD_Phosphore_Dyer!E56))","v":60},{"$f":"IF(PK!$E$5=1, BDD_Phosphore_JH!G56, IF(PK!$E$5=2, BDD_Phosphore_Olsen!F56, BDD_Phosphore_Dyer!F56))","v":90},{"$f":"IF(PK!$E$5=1, BDD_Phosphore_JH!H56, IF(PK!$E$5=2, BDD_Phosphore_Olsen!G56, BDD_Phosphore_Dyer!G56))","v":30},{"$f":"IF(PK!$E$5=1, BDD_Phosphore_JH!I56, IF(PK!$E$5=2, BDD_Phosphore_Olsen!H56, BDD_Phosphore_Dyer!H56))","v":80},null,93,53]
[null,"Haute Normandie","Sable caillouteux non calcaire",{"$f":"IF(PK!$E$5=1, BDD_Phosphore_JH!D57, IF(PK!$E$5=2, BDD_Phosphore_Olsen!C57, BDD_Phosphore_Dyer!C57))","v":50},{"$f":"IF(PK!$E$5=1, BDD_Phosphore_JH!E57, IF(PK!$E$5=2, BDD_Phosphore_Olsen!D57, BDD_Phosphore_Dyer!D57))","v":80},{"$f":"IF(PK!$E$5=1, BDD_Phosphore_JH!F57, IF(PK!$E$5=2, BDD_Phosphore_Olsen!E57, BDD_Phosphore_Dyer!E57))","v":50},{"$f":"IF(PK!$E$5=1, BDD_Phosphore_JH!G57, IF(PK!$E$5=2, BDD_Phosphore_Olsen!F57, BDD_Phosphore_Dyer!F57))","v":80},{"$f":"IF(PK!$E$5=1, BDD_Phosphore_JH!H57, IF(PK!$E$5=2, BDD_Phosphore_Olsen!G57, BDD_Phosphore_Dyer!G57))","v":20},{"$f":"IF(PK!$E$5=1, BDD_Phosphore_JH!I57, IF(PK!$E$5=2, BDD_Phosphore_Olsen!H57, BDD_Phosphore_Dyer!H57))","v":70},null,94,54]
[null,"Basse Normandie","Limon",{"$f":"IF(PK!$E$5=1, BDD_Phosphore_JH!D58, IF(PK!$E$5=2, BDD_Phosphore_Olsen!C58, BDD_Phosphore_Dyer!C58))","v":50},{"$f":"IF(PK!$E$5=1, BDD_Phosphore_JH!E58, IF(PK!$E$5=2, BDD_Phosphore_Olsen!D58, BDD_Phosphore_Dyer!D58))","v":80},{"$f":"IF(PK!$E$5=1, BDD_Phosphore_JH!F58, IF(PK!$E$5=2, BDD_Phosphore_Olsen!E58, BDD_Phosphore_Dyer!E58))","v":50},{"$f":"IF(PK!$E$5=1, BDD_Phosphore_JH!G58, IF(PK!$E$5=2, BDD_Phosphore_Olsen!F58, BDD_Phosphore_Dyer!F58))","v":80},{"$f":"IF(PK!$E$5=1, BDD_Phosphore_JH!H58, IF(PK!$E$5=2, BDD_Phosphore_Olsen!G58, BDD_Phosphore_Dyer!G58))","v":20},{"$f":"IF(PK!$E$5=1, BDD_Phosphore_JH!I58, IF(PK!$E$5=2, BDD_Phosphore_Olsen!H58, BDD_Phosphore_Dyer!H58))","v":70},null,101,55]
[null,"Basse Normandie","Argilo-calcaire",{"$f":"IF(PK!$E$5=1, BDD_Phosphore_JH!D59, IF(PK!$E$5=2, BDD_Phosphore_Olsen!C59, BDD_Phosphore_Dyer!C59))","v":60},{"$f":"IF(PK!$E$5=1, BDD_Phosphore_JH!E59, IF(PK!$E$5=2, BDD_Phosphore_Olsen!D59, BDD_Phosphore_Dyer!D59))","v":90},{"$f":"IF(PK!$E$5=1, BDD_Phosphore_JH!F59, IF(PK!$E$5=2, BDD_Phosphore_Olsen!E59, BDD_Phosphore_Dyer!E59))","v":60},{"$f":"IF(PK!$E$5=1, BDD_Phosphore_JH!G59, IF(PK!$E$5=2, BDD_Phosphore_Olsen!F59, BDD_Phosphore_Dyer!F59))","v":90},{"$f":"IF(PK!$E$5=1, BDD_Phosphore_JH!H59, IF(PK!$E$5=2, BDD_Phosphore_Olsen!G59, BDD_Phosphore_Dyer!G59))","v":30},{"$f":"IF(PK!$E$5=1, BDD_Phosphore_JH!I59, IF(PK!$E$5=2, BDD_Phosphore_Olsen!H59, BDD_Phosphore_Dyer!H59))","v":80},null,102,56]
[null,"Basse Normandie","Sable",{"$f":"IF(PK!$E$5=1, BDD_Phosphore_JH!D60, IF(PK!$E$5=2, BDD_Phosphore_Olsen!C60, BDD_Phosphore_Dyer!C60))","v":50},{"$f":"IF(PK!$E$5=1, BDD_Phosphore_JH!E60, IF(PK!$E$5=2, BDD_Phosphore_Olsen!D60, BDD_Phosphore_Dyer!D60))","v":80},{"$f":"IF(PK!$E$5=1, BDD_Phosphore_JH!F60, IF(PK!$E$5=2, BDD_Phosphore_Olsen!E60, BDD_Phosphore_Dyer!E60))","v":50},{"$f":"IF(PK!$E$5=1, BDD_Phosphore_JH!G60, IF(PK!$E$5=2, BDD_Phosphore_Olsen!F60, BDD_Phosphore_Dyer!F60))","v":80},{"$f":"IF(PK!$E$5=1, BDD_Phosphore_JH!H60, IF(PK!$E$5=2, BDD_Phosphore_Olsen!G60, BDD_Phosphore_Dyer!G60))","v":20},{"$f":"IF(PK!$E$5=1, BDD_Phosphore_JH!I60, IF(PK!$E$5=2, BDD_Phosphore_Olsen!H60, BDD_Phosphore_Dyer!H60))","v":70},null,103,57]
[null,"Basse Normandie","Terres lourdes",{"$f":"IF(PK!$E$5=1, BDD_Phosphore_JH!D61, IF(PK!$E$5=2, BDD_Phosphore_Olsen!C61, BDD_Phosphore_Dyer!C61))","v":50},{"$f":"IF(PK!$E$5=1, BDD_Phosphore_JH!E61, IF(PK!$E$5=2, BDD_Phosphore_Olsen!D61, BDD_Phosphore_Dyer!D61))","v":80},{"$f":"IF(PK!$E$5=1, BDD_Phosphore_JH!F61, IF(PK!$E$5=2, BDD_Phosphore_Olsen!E61, BDD_Phosphore_Dyer!E61))","v":50},{"$f":"IF(PK!$E$5=1, BDD_Phosphore_JH!G61, IF(PK!$E$5=2, BDD_Phosphore_Olsen!F61, BDD_Phosphore_Dyer!F61))","v":80},{"$f":"IF(PK!$E$5=1, BDD_Phosphore_JH!H61, IF(PK!$E$5=2, BDD_Phosphore_Olsen!G61, BDD_Phosphore_Dyer!G61))","v":20},{"$f":"IF(PK!$E$5=1, BDD_Phosphore_JH!I61, IF(PK!$E$5=2, BDD_Phosphore_Olsen!H61, BDD_Phosphore_Dyer!H61))","v":70},null,104,58]
[null,"Bretagne pays de la Loire","Limon sain et Limon sableux",{"$f":"IF(PK!$E$5=1, BDD_Phosphore_JH!D62, IF(PK!$E$5=2, BDD_Phosphore_Olsen!C62, BDD_Phosphore_Dyer!C62))","v":50},{"$f":"IF(PK!$E$5=1, BDD_Phosphore_JH!E62, IF(PK!$E$5=2, BDD_Phosphore_Olsen!D62, BDD_Phosphore_Dyer!D62))","v":80},{"$f":"IF(PK!$E$5=1, BDD_Phosphore_JH!F62, IF(PK!$E$5=2, BDD_Phosphore_Olsen!E62, BDD_Phosphore_Dyer!E62))","v":50},{"$f":"IF(PK!$E$5=1, BDD_Phosphore_JH!G62, IF(PK!$E$5=2, BDD_Phosphore_Olsen!F62, BDD_Phosphore_Dyer!F62))","v":80},{"$f":"IF(PK!$E$5=1, BDD_Phosphore_JH!H62, IF(PK!$E$5=2, BDD_Phosphore_Olsen!G62, BDD_Phosphore_Dyer!G62))","v":20},{"$f":"IF(PK!$E$5=1, BDD_Phosphore_JH!I62, IF(PK!$E$5=2, BDD_Phosphore_Olsen!H62, BDD_Phosphore_Dyer!H62))","v":70},null,111,59]
[null,"Bretagne pays de la Loire","Limon caillouteux superficiel",{"$f":"IF(PK!$E$5=1, BDD_Phosphore_JH!D63, IF(PK!$E$5=2, BDD_Phosphore_Olsen!C63, BDD_Phosphore_Dyer!C63))","v":50},{"$f":"IF(PK!$E$5=1, BDD_Phosphore_JH!E63, IF(PK!$E$5=2, BDD_Phosphore_Olsen!D63, BDD_Phosphore_Dyer!D63))","v":80},{"$f":"IF(PK!$E$5=1, BDD_Phosphore_JH!F63, IF(PK!$E$5=2, BDD_Phosphore_Olsen!E63, BDD_Phosphore_Dyer!E63))","v":50},{"$f":"IF(PK!$E$5=1, BDD_Phosphore_JH!G63, IF(PK!$E$5=2, BDD_Phosphore_Olsen!F63, BDD_Phosphore_Dyer!F63))","v":80},{"$f":"IF(PK!$E$5=1, BDD_Phosphore_JH!H63, IF(PK!$E$5=2, BDD_Phosphore_Olsen!G63, BDD_Phosphore_Dyer!G63))","v":20},{"$f":"IF(PK!$E$5=1, BDD_Phosphore_JH!I63, IF(PK!$E$5=2, BDD_Phosphore_Olsen!H63, BDD_Phosphore_Dyer!H63))","v":70},null,112,60]
[null,"Bretagne pays de la Loire","Sable",{"$f":"IF(PK!$E$5=1, BDD_Phosphore_JH!D64, IF(PK!$E$5=2, BDD_Phosphore_Olsen!C64, BDD_Phosphore_Dyer!C64))","v":50},{"$f":"IF(PK!$E$5=1, BDD_Phosphore_JH!E64, IF(PK!$E$5=2, BDD_Phosphore_Olsen!D64, BDD_Phosphore_Dyer!D64))","v":80},{"$f":"IF(PK!$E$5=1, BDD_Phosphore_JH!F64, IF(PK!$E$5=2, BDD_Phosphore_Olsen!E64, BDD_Phosphore_Dyer!E64))","v":50},{"$f":"IF(PK!$E$5=1, BDD_Phosphore_JH!G64, IF(PK!$E$5=2, BDD_Phosphore_Olsen!F64, BDD_Phosphore_Dyer!F64))","v":80},{"$f":"IF(PK!$E$5=1, BDD_Phosphore_JH!H64, IF(PK!$E$5=2, BDD_Phosphore_Olsen!G64, BDD_Phosphore_Dyer!G64))","v":20},{"$f":"IF(PK!$E$5=1, BDD_Phosphore_JH!I64, IF(PK!$E$5=2, BDD_Phosphore_Olsen!H64, BDD_Phosphore_Dyer!H64))","v":70},null,113,61]
[null,"Bretagne pays de la Loire","Argilo-calcaire profond sur marne",{"$f":"IF(PK!$E$5=1, BDD_Phosphore_JH!D65, IF(PK!$E$5=2, BDD_Phosphore_Olsen!C65, BDD_Phosphore_Dyer!C65))","v":60},{"$f":"IF(PK!$E$5=1, BDD_Phosphore_JH!E65, IF(PK!$E$5=2, BDD_Phosphore_Olsen!D65, BDD_Phosphore_Dyer!D65))","v":90},{"$f":"IF(PK!$E$5=1, BDD_Phosphore_JH!F65, IF(PK!$E$5=2, BDD_Phosphore_Olsen!E65, BDD_Phosphore_Dyer!E65))","v":60},{"$f":"IF(PK!$E$5=1, BDD_Phosphore_JH!G65, IF(PK!$E$5=2, BDD_Phosphore_Olsen!F65, BDD_Phosphore_Dyer!F65))","v":90},{"$f":"IF(PK!$E$5=1, BDD_Phosphore_JH!H65, IF(PK!$E$5=2, BDD_Phosphore_Olsen!G65, BDD_Phosphore_Dyer!G65))","v":30},{"$f":"IF(PK!$E$5=1, BDD_Phosphore_JH!I65, IF(PK!$E$5=2, BDD_Phosphore_Olsen!H65, BDD_Phosphore_Dyer!H65))","v":80},null,114,62]
[null,"Bretagne pays de la Loire","Argilo-calcaire superficiel",{"$f":"IF(PK!$E$5=1, BDD_Phosphore_JH!D66, IF(PK!$E$5=2, BDD_Phosphore_Olsen!C66, BDD_Phosphore_Dyer!C66))","v":60},{"$f":"IF(PK!$E$5=1, BDD_Phosphore_JH!E66, IF(PK!$E$5=2, BDD_Phosphore_Olsen!D66, BDD_Phosphore_Dyer!D66))","v":90},{"$f":"IF(PK!$E$5=1, BDD_Phosphore_JH!F66, IF(PK!$E$5=2, BDD_Phosphore_Olsen!E66, BDD_Phosphore_Dyer!E66))","v":60},{"$f":"IF(PK!$E$5=1, BDD_Phosphore_JH!G66, IF(PK!$E$5=2, BDD_Phosphore_Olsen!F66, BDD_Phosphore_Dyer!F66))","v":90},{"$f":"IF(PK!$E$5=1, BDD_Phosphore_JH!H66, IF(PK!$E$5=2, BDD_Phosphore_Olsen!G66, BDD_Phosphore_Dyer!G66))","v":30},{"$f":"IF(PK!$E$5=1, BDD_Phosphore_JH!I66, IF(PK!$E$5=2, BDD_Phosphore_Olsen!H66, BDD_Phosphore_Dyer!H66))","v":80},null,115,63]
[null,"Poitou Charente","Terres de Groie",{"$f":"IF(PK!$E$5=1, BDD_Phosphore_JH!D67, IF(PK!$E$5=2, BDD_Phosphore_Olsen!C67, BDD_Phosphore_Dyer!C67))","v":60},{"$f":"IF(PK!$E$5=1, BDD_Phosphore_JH!E67, IF(PK!$E$5=2, BDD_Phosphore_Olsen!D67, BDD_Phosphore_Dyer!D67))","v":90},{"$f":"IF(PK!$E$5=1, BDD_Phosphore_JH!F67, IF(PK!$E$5=2, BDD_Phosphore_Olsen!E67, BDD_Phosphore_Dyer!E67))","v":60},{"$f":"IF(PK!$E$5=1, BDD_Phosphore_JH!G67, IF(PK!$E$5=2, BDD_Phosphore_Olsen!F67, BDD_Phosphore_Dyer!F67))","v":90},{"$f":"IF(PK!$E$5=1, BDD_Phosphore_JH!H67, IF(PK!$E$5=2, BDD_Phosphore_Olsen!G67, BDD_Phosphore_Dyer!G67))","v":30},{"$f":"IF(PK!$E$5=1, BDD_Phosphore_JH!I67, IF(PK!$E$5=2, BDD_Phosphore_Olsen!H67, BDD_Phosphore_Dyer!H67))","v":80},null,121,64]
[null,"Poitou Charente","Argilo-calcaire profond sur calcaire marneux",{"$f":"IF(PK!$E$5=1, BDD_Phosphore_JH!D68, IF(PK!$E$5=2, BDD_Phosphore_Olsen!C68, BDD_Phosphore_Dyer!C68))","v":60},{"$f":"IF(PK!$E$5=1, BDD_Phosphore_JH!E68, IF(PK!$E$5=2, BDD_Phosphore_Olsen!D68, BDD_Phosphore_Dyer!D68))","v":90},{"$f":"IF(PK!$E$5=1, BDD_Phosphore_JH!F68, IF(PK!$E$5=2, BDD_Phosphore_Olsen!E68, BDD_Phosphore_Dyer!E68))","v":60},{"$f":"IF(PK!$E$5=1, BDD_Phosphore_JH!G68, IF(PK!$E$5=2, BDD_Phosphore_Olsen!F68, BDD_Phosphore_Dyer!F68))","v":90},{"$f":"IF(PK!$E$5=1, BDD_Phosphore_JH!H68, IF(PK!$E$5=2, BDD_Phosphore_Olsen!G68, BDD_Phosphore_Dyer!G68))","v":30},{"$f":"IF(PK!$E$5=1, BDD_Phosphore_JH!I68, IF(PK!$E$5=2, BDD_Phosphore_Olsen!H68, BDD_Phosphore_Dyer!H68))","v":80},null,122,65]
[null,"Poitou Charente","Aubue lègère et champagne superficielle",{"$f":"IF(PK!$E$5=1, BDD_Phosphore_JH!D69, IF(PK!$E$5=2, BDD_Phosphore_Olsen!C69, BDD_Phosphore_Dyer!C69))","v":145},{"$f":"IF(PK!$E$5=1, BDD_Phosphore_JH!E69, IF(PK!$E$5=2, BDD_Phosphore_Olsen!D69, BDD_Phosphore_Dyer!D69))","v":210},{"$f":"IF(PK!$E$5=1, BDD_Phosphore_JH!F69, IF(PK!$E$5=2, BDD_Phosphore_Olsen!E69, BDD_Phosphore_Dyer!E69))","v":130},{"$f":"IF(PK!$E$5=1, BDD_Phosphore_JH!G69, IF(PK!$E$5=2, BDD_Phosphore_Olsen!F69, BDD_Phosphore_Dyer!F69))","v":150},{"$f":"IF(PK!$E$5=1, BDD_Phosphore_JH!H69, IF(PK!$E$5=2, BDD_Phosphore_Olsen!G69, BDD_Phosphore_Dyer!G69))","v":60},{"$f":"IF(PK!$E$5=1, BDD_Phosphore_JH!I69, IF(PK!$E$5=2, BDD_Phosphore_Olsen!H69, BDD_Phosphore_Dyer!H69))","v":135},null,123,66]
[null,"Poitou Charente","Aubue lourde et champagne profonde",{"$f":"IF(PK!$E$5=1, BDD_Phosphore_JH!D70, IF(PK!$E$5=2, BDD_Phosphore_Olsen!C70, BDD_Phosphore_Dyer!C70))","v":145},{"$f":"IF(PK!$E$5=1, BDD_Phosphore_JH!E70, IF(PK!$E$5=2, BDD_Phosphore_Olsen!D70, BDD_Phosphore_Dyer!D70))","v":210},{"$f":"IF(PK!$E$5=1, BDD_Phosphore_JH!F70, IF(PK!$E$5=2, BDD_Phosphore_Olsen!E70, BDD_Phosphore_Dyer!E70))","v":130},{"$f":"IF(PK!$E$5=1, BDD_Phosphore_JH!G70, IF(PK!$E$5=2, BDD_Phosphore_Olsen!F70, BDD_Phosphore_Dyer!F70))","v":150},{"$f":"IF(PK!$E$5=1, BDD_Phosphore_JH!H70, IF(PK!$E$5=2, BDD_Phosphore_Olsen!G70, BDD_Phosphore_Dyer!G70))","v":60},{"$f":"IF(PK!$E$5=1, BDD_Phosphore_JH!I70, IF(PK!$E$5=2, BDD_Phosphore_Olsen!H70, BDD_Phosphore_Dyer!H70))","v":135},null,124,67]
[null,"Poitou Charente","Limon, terres rouge, bomais, doucin limoneux",{"$f":"IF(PK!$E$5=1, BDD_Phosphore_JH!D71, IF(PK!$E$5=2, BDD_Phosphore_Olsen!C71, BDD_Phosphore_Dyer!C71))","v":50},{"$f":"IF(PK!$E$5=1, BDD_Phosphore_JH!E71, IF(PK!$E$5=2, BDD_Phosphore_Olsen!D71, BDD_Phosphore_Dyer!D71))","v":80},{"$f":"IF(PK!$E$5=1, BDD_Phosphore_JH!F71, IF(PK!$E$5=2, BDD_Phosphore_Olsen!E71, BDD_Phosphore_Dyer!E71))","v":50},{"$f":"IF(PK!$E$5=1, BDD_Phosphore_JH!G71, IF(PK!$E$5=2, BDD_Phosphore_Olsen!F71, BDD_Phosphore_Dyer!F71))","v":80},{"$f":"IF(PK!$E$5=1, BDD_Phosphore_JH!H71, IF(PK!$E$5=2, BDD_Phosphore_Olsen!G71, BDD_Phosphore_Dyer!G71))","v":20},{"$f":"IF(PK!$E$5=1, BDD_Phosphore_JH!I71, IF(PK!$E$5=2, BDD_Phosphore_Olsen!H71, BDD_Phosphore_Dyer!H71))","v":70},null,125,68]
[null,"Poitou Charente","Sol sableux",{"$f":"IF(PK!$E$5=1, BDD_Phosphore_JH!D72, IF(PK!$E$5=2, BDD_Phosphore_Olsen!C72, BDD_Phosphore_Dyer!C72))","v":50},{"$f":"IF(PK!$E$5=1, BDD_Phosphore_JH!E72, IF(PK!$E$5=2, BDD_Phosphore_Olsen!D72, BDD_Phosphore_Dyer!D72))","v":80},{"$f":"IF(PK!$E$5=1, BDD_Phosphore_JH!F72, IF(PK!$E$5=2, BDD_Phosphore_Olsen!E72, BDD_Phosphore_Dyer!E72))","v":50},{"$f":"IF(PK!$E$5=1, BDD_Phosphore_JH!G72, IF(PK!$E$5=2, BDD_Phosphore_Olsen!F72, BDD_Phosphore_Dyer!F72))","v":80},{"$f":"IF(PK!$E$5=1, BDD_Phosphore_JH!H72, IF(PK!$E$5=2, BDD_Phosphore_Olsen!G72, BDD_Phosphore_Dyer!G72))","v":20},{"$f":"IF(PK!$E$5=1, BDD_Phosphore_JH!I72, IF(PK!$E$5=2, BDD_Phosphore_Olsen!H72, BDD_Phosphore_Dyer!H72))","v":70},null,126,69]
[null,"Haute Marne","Limon",{"$f":"IF(PK!$E$5=1, BDD_Phosphore_JH!D73, IF(PK!$E$5=2, BDD_Phosphore_Olsen!C73, BDD_Phosphore_Dyer!C73))","v":50},{"$f":"IF(PK!$E$5=1, BDD_Phosphore_JH!E73, IF(PK!$E$5=2, BDD_Phosphore_Olsen!D73, BDD_Phosphore_Dyer!D73))","v":80},{"$f":"IF(PK!$E$5=1, BDD_Phosphore_JH!F73, IF(PK!$E$5=2, BDD_Phosphore_Olsen!E73, BDD_Phosphore_Dyer!E73))","v":50},{"$f":"IF(PK!$E$5=1, BDD_Phosphore_JH!G73, IF(PK!$E$5=2, BDD_Phosphore_Olsen!F73, BDD_Phosphore_Dyer!F73))","v":80},{"$f":"IF(PK!$E$5=1, BDD_Phosphore_JH!H73, IF(PK!$E$5=2, BDD_Phosphore_Olsen!G73, BDD_Phosphore_Dyer!G73))","v":20},{"$f":"IF(PK!$E$5=1, BDD_Phosphore_JH!I73, IF(PK!$E$5=2, BDD_Phosphore_Olsen!H73, BDD_Phosphore_Dyer!H73))","v":70},null,131,70]
[null,"Haute Marne","Sols superficiels du Barrois et autres sols argileux à 30% argile",{"$f":"IF(PK!$E$5=1, BDD_Phosphore_JH!D74, IF(PK!$E$5=2, BDD_Phosphore_Olsen!C74, BDD_Phosphore_Dyer!C74))","v":60},{"$f":"IF(PK!$E$5=1, BDD_Phosphore_JH!E74, IF(PK!$E$5=2, BDD_Phosphore_Olsen!D74, BDD_Phosphore_Dyer!D74))","v":90},{"$f":"IF(PK!$E$5=1, BDD_Phosphore_JH!F74, IF(PK!$E$5=2, BDD_Phosphore_Olsen!E74, BDD_Phosphore_Dyer!E74))","v":60},{"$f":"IF(PK!$E$5=1, BDD_Phosphore_JH!G74, IF(PK!$E$5=2, BDD_Phosphore_Olsen!F74, BDD_Phosphore_Dyer!F74))","v":90},{"$f":"IF(PK!$E$5=1, BDD_Phosphore_JH!H74, IF(PK!$E$5=2, BDD_Phosphore_Olsen!G74, BDD_Phosphore_Dyer!G74))","v":30},{"$f":"IF(PK!$E$5=1, BDD_Phosphore_JH!I74, IF(PK!$E$5=2, BDD_Phosphore_Olsen!H74, BDD_Phosphore_Dyer!H74))","v":80},null,132,71]
[null,"Haute Marne","Sols superficiels du Barrois et autres sols argileux à 40% argile",{"$f":"IF(PK!$E$5=1, BDD_Phosphore_JH!D75, IF(PK!$E$5=2, BDD_Phosphore_Olsen!C75, BDD_Phosphore_Dyer!C75))","v":60},{"$f":"IF(PK!$E$5=1, BDD_Phosphore_JH!E75, IF(PK!$E$5=2, BDD_Phosphore_Olsen!D75, BDD_Phosphore_Dyer!D75))","v":90},{"$f":"IF(PK!$E$5=1, BDD_Phosphore_JH!F75, IF(PK!$E$5=2, BDD_Phosphore_Olsen!E75, BDD_Phosphore_Dyer!E75))","v":60},{"$f":"IF(PK!$E$5=1, BDD_Phosphore_JH!G75, IF(PK!$E$5=2, BDD_Phosphore_Olsen!F75, BDD_Phosphore_Dyer!F75))","v":90},{"$f":"IF(PK!$E$5=1, BDD_Phosphore_JH!H75, IF(PK!$E$5=2, BDD_Phosphore_Olsen!G75, BDD_Phosphore_Dyer!G75))","v":30},{"$f":"IF(PK!$E$5=1, BDD_Phosphore_JH!I75, IF(PK!$E$5=2, BDD_Phosphore_Olsen!H75, BDD_Phosphore_Dyer!H75))","v":80},null,133,72]
[null,"Auvergne","Terre noire",{"$f":"IF(PK!$E$5=1, BDD_Phosphore_JH!D76, IF(PK!$E$5=2, BDD_Phosphore_Olsen!C76, BDD_Phosphore_Dyer!C76))","v":50},{"$f":"IF(PK!$E$5=1, BDD_Phosphore_JH!E76, IF(PK!$E$5=2, BDD_Phosphore_Olsen!D76, BDD_Phosphore_Dyer!D76))","v":80},{"$f":"IF(PK!$E$5=1, BDD_Phosphore_JH!F76, IF(PK!$E$5=2, BDD_Phosphore_Olsen!E76, BDD_Phosphore_Dyer!E76))","v":50},{"$f":"IF(PK!$E$5=1, BDD_Phosphore_JH!G76, IF(PK!$E$5=2, BDD_Phosphore_Olsen!F76, BDD_Phosphore_Dyer!F76))","v":80},{"$f":"IF(PK!$E$5=1, BDD_Phosphore_JH!H76, IF(PK!$E$5=2, BDD_Phosphore_Olsen!G76, BDD_Phosphore_Dyer!G76))","v":20},{"$f":"IF(PK!$E$5=1, BDD_Phosphore_JH!I76, IF(PK!$E$5=2, BDD_Phosphore_Olsen!H76, BDD_Phosphore_Dyer!H76))","v":70},null,141,73]
[null,"Auvergne","Argilo-calcaire",{"$f":"IF(PK!$E$5=1, BDD_Phosphore_JH!D77, IF(PK!$E$5=2, BDD_Phosphore_Olsen!C77, BDD_Phosphore_Dyer!C77))","v":60},{"$f":"IF(PK!$E$5=1, BDD_Phosphore_JH!E77, IF(PK!$E$5=2, BDD_Phosphore_Olsen!D77, BDD_Phosphore_Dyer!D77))","v":90},{"$f":"IF(PK!$E$5=1, BDD_Phosphore_JH!F77, IF(PK!$E$5=2, BDD_Phosphore_Olsen!E77, BDD_Phosphore_Dyer!E77))","v":60},{"$f":"IF(PK!$E$5=1, BDD_Phosphore_JH!G77, IF(PK!$E$5=2, BDD_Phosphore_Olsen!F77, BDD_Phosphore_Dyer!F77))","v":90},{"$f":"IF(PK!$E$5=1, BDD_Phosphore_JH!H77, IF(PK!$E$5=2, BDD_Phosphore_Olsen!G77, BDD_Phosphore_Dyer!G77))","v":30},{"$f":"IF(PK!$E$5=1, BDD_Phosphore_JH!I77, IF(PK!$E$5=2, BDD_Phosphore_Olsen!H77, BDD_Phosphore_Dyer!H77))","v":80},null,142,74]
[null,"Auvergne","Granitique",{"$f":"IF(PK!$E$5=1, BDD_Phosphore_JH!D78, IF(PK!$E$5=2, BDD_Phosphore_Olsen!C78, BDD_Phosphore_Dyer!C78))","v":50},{"$f":"IF(PK!$E$5=1, BDD_Phosphore_JH!E78, IF(PK!$E$5=2, BDD_Phosphore_Olsen!D78, BDD_Phosphore_Dyer!D78))","v":80},{"$f":"IF(PK!$E$5=1, BDD_Phosphore_JH!F78, IF(PK!$E$5=2, BDD_Phosphore_Olsen!E78, BDD_Phosphore_Dyer!E78))","v":50},{"$f":"IF(PK!$E$5=1, BDD_Phosphore_JH!G78, IF(PK!$E$5=2, BDD_Phosphore_Olsen!F78, BDD_Phosphore_Dyer!F78))","v":80},{"$f":"IF(PK!$E$5=1, BDD_Phosphore_JH!H78, IF(PK!$E$5=2, BDD_Phosphore_Olsen!G78, BDD_Phosphore_Dyer!G78))","v":20},{"$f":"IF(PK!$E$5=1, BDD_Phosphore_JH!I78, IF(PK!$E$5=2, BDD_Phosphore_Olsen!H78, BDD_Phosphore_Dyer!H78))","v":70},null,143,75]
[null,"Auvergne","Sologne",{"$f":"IF(PK!$E$5=1, BDD_Phosphore_JH!D79, IF(PK!$E$5=2, BDD_Phosphore_Olsen!C79, BDD_Phosphore_Dyer!C79))","v":50},{"$f":"IF(PK!$E$5=1, BDD_Phosphore_JH!E79, IF(PK!$E$5=2, BDD_Phosphore_Olsen!D79, BDD_Phosphore_Dyer!D79))","v":80},{"$f":"IF(PK!$E$5=1, BDD_Phosphore_JH!F79, IF(PK!$E$5=2, BDD_Phosphore_Olsen!E79, BDD_Phosphore_Dyer!E79))","v":50},{"$f":"IF(PK!$E$5=1, BDD_Phosphore_JH!G79, IF(PK!$E$5=2, BDD_Phosphore_Olsen!F79, BDD_Phosphore_Dyer!F79))","v":80},{"$f":"IF(PK!$E$5=1, BDD_Phosphore_JH!H79, IF(PK!$E$5=2, BDD_Phosphore_Olsen!G79, BDD_Phosphore_Dyer!G79))","v":20},{"$f":"IF(PK!$E$5=1, BDD_Phosphore_JH!I79, IF(PK!$E$5=2, BDD_Phosphore_Olsen!H79, BDD_Phosphore_Dyer!H79))","v":70},null,144,76]
[null,"Auvergne","Alluvions recentes (sableuses)",{"$f":"IF(PK!$E$5=1, BDD_Phosphore_JH!D80, IF(PK!$E$5=2, BDD_Phosphore_Olsen!C80, BDD_Phosphore_Dyer!C80))","v":50},{"$f":"IF(PK!$E$5=1, BDD_Phosphore_JH!E80, IF(PK!$E$5=2, BDD_Phosphore_Olsen!D80, BDD_Phosphore_Dyer!D80))","v":80},{"$f":"IF(PK!$E$5=1, BDD_Phosphore_JH!F80, IF(PK!$E$5=2, BDD_Phosphore_Olsen!E80, BDD_Phosphore_Dyer!E80))","v":50},{"$f":"IF(PK!$E$5=1, BDD_Phosphore_JH!G80, IF(PK!$E$5=2, BDD_Phosphore_Olsen!F80, BDD_Phosphore_Dyer!F80))","v":80},{"$f":"IF(PK!$E$5=1, BDD_Phosphore_JH!H80, IF(PK!$E$5=2, BDD_Phosphore_Olsen!G80, BDD_Phosphore_Dyer!G80))","v":20},{"$f":"IF(PK!$E$5=1, BDD_Phosphore_JH!I80, IF(PK!$E$5=2, BDD_Phosphore_Olsen!H80, BDD_Phosphore_Dyer!H80))","v":70},null,145,77]
[null,"Rhône Alpes Saône et Loire","Varenne",{"$f":"IF(PK!$E$5=1, BDD_Phosphore_JH!D81, IF(PK!$E$5=2, BDD_Phosphore_Olsen!C81, BDD_Phosphore_Dyer!C81))","v":50},{"$f":"IF(PK!$E$5=1, BDD_Phosphore_JH!E81, IF(PK!$E$5=2, BDD_Phosphore_Olsen!D81, BDD_Phosphore_Dyer!D81))","v":80},{"$f":"IF(PK!$E$5=1, BDD_Phosphore_JH!F81, IF(PK!$E$5=2, BDD_Phosphore_Olsen!E81, BDD_Phosphore_Dyer!E81))","v":50},{"$f":"IF(PK!$E$5=1, BDD_Phosphore_JH!G81, IF(PK!$E$5=2, BDD_Phosphore_Olsen!F81, BDD_Phosphore_Dyer!F81))","v":80},{"$f":"IF(PK!$E$5=1, BDD_Phosphore_JH!H81, IF(PK!$E$5=2, BDD_Phosphore_Olsen!G81, BDD_Phosphore_Dyer!G81))","v":20},{"$f":"IF(PK!$E$5=1, BDD_Phosphore_JH!I81, IF(PK!$E$5=2, BDD_Phosphore_Olsen!H81, BDD_Phosphore_Dyer!H81))","v":70},null,151,78]
[null,"Rhône Alpes Saône et Loire","Gravier, dilivium",{"$f":"IF(PK!$E$5=1, BDD_Phosphore_JH!D82, IF(PK!$E$5=2, BDD_Phosphore_Olsen!C82, BDD_Phosphore_Dyer!C82))","v":50},{"$f":"IF(PK!$E$5=1, BDD_Phosphore_JH!E82, IF(PK!$E$5=2, BDD_Phosphore_Olsen!D82, BDD_Phosphore_Dyer!D82))","v":80},{"$f":"IF(PK!$E$5=1, BDD_Phosphore_JH!F82, IF(PK!$E$5=2, BDD_Phosphore_Olsen!E82, BDD_Phosphore_Dyer!E82))","v":50},{"$f":"IF(PK!$E$5=1, BDD_Phosphore_JH!G82, IF(PK!$E$5=2, BDD_Phosphore_Olsen!F82, BDD_Phosphore_Dyer!F82))","v":80},{"$f":"IF(PK!$E$5=1, BDD_Phosphore_JH!H82, IF(PK!$E$5=2, BDD_Phosphore_Olsen!G82, BDD_Phosphore_Dyer!G82))","v":20},{"$f":"IF(PK!$E$5=1, BDD_Phosphore_JH!I82, IF(PK!$E$5=2, BDD_Phosphore_Olsen!H82, BDD_Phosphore_Dyer!H82))","v":70},null,152,79]
[null,"Rhône Alpes Saône et Loire","Limon blanc sain",{"$f":"IF(PK!$E$5=1, BDD_Phosphore_JH!D83, IF(PK!$E$5=2, BDD_Phosphore_Olsen!C83, BDD_Phosphore_Dyer!C83))","v":50},{"$f":"IF(PK!$E$5=1, BDD_Phosphore_JH!E83, IF(PK!$E$5=2, BDD_Phosphore_Olsen!D83, BDD_Phosphore_Dyer!D83))","v":80},{"$f":"IF(PK!$E$5=1, BDD_Phosphore_JH!F83, IF(PK!$E$5=2, BDD_Phosphore_Olsen!E83, BDD_Phosphore_Dyer!E83))","v":50},{"$f":"IF(PK!$E$5=1, BDD_Phosphore_JH!G83, IF(PK!$E$5=2, BDD_Phosphore_Olsen!F83, BDD_Phosphore_Dyer!F83))","v":80},{"$f":"IF(PK!$E$5=1, BDD_Phosphore_JH!H83, IF(PK!$E$5=2, BDD_Phosphore_Olsen!G83, BDD_Phosphore_Dyer!G83))","v":20},{"$f":"IF(PK!$E$5=1, BDD_Phosphore_JH!I83, IF(PK!$E$5=2, BDD_Phosphore_Olsen!H83, BDD_Phosphore_Dyer!H83))","v":70},null,153,80]
[null,"Rhône Alpes Saône et Loire","Limon blanc humide",{"$f":"IF(PK!$E$5=1, BDD_Phosphore_JH!D84, IF(PK!$E$5=2, BDD_Phosphore_Olsen!C84, BDD_Phosphore_Dyer!C84))","v":50},{"$f":"IF(PK!$E$5=1, BDD_Phosphore_JH!E84, IF(PK!$E$5=2, BDD_Phosphore_Olsen!D84, BDD_Phosphore_Dyer!D84))","v":80},{"$f":"IF(PK!$E$5=1, BDD_Phosphore_JH!F84, IF(PK!$E$5=2, BDD_Phosphore_Olsen!E84, BDD_Phosphore_Dyer!E84))","v":50},{"$f":"IF(PK!$E$5=1, BDD_Phosphore_JH!G84, IF(PK!$E$5=2, BDD_Phosphore_Olsen!F84, BDD_Phosphore_Dyer!F84))","v":80},{"$f":"IF(PK!$E$5=1, BDD_Phosphore_JH!H84, IF(PK!$E$5=2, BDD_Phosphore_Olsen!G84, BDD_Phosphore_Dyer!G84))","v":20},{"$f":"IF(PK!$E$5=1, BDD_Phosphore_JH!I84, IF(PK!$E$5=2, BDD_Phosphore_Olsen!H84, BDD_Phosphore_Dyer!H84))","v":70},null,154,81]
[null,"Rhône Alpes Saône et Loire","Limon argileux sain",{"$f":"IF(PK!$E$5=1, BDD_Phosphore_JH!D85, IF(PK!$E$5=2, BDD_Phosphore_Olsen!C85, BDD_Phosphore_Dyer!C85))","v":50},{"$f":"IF(PK!$E$5=1, BDD_Phosphore_JH!E85, IF(PK!$E$5=2, BDD_Phosphore_Olsen!D85, BDD_Phosphore_Dyer!D85))","v":80},{"$f":"IF(PK!$E$5=1, BDD_Phosphore_JH!F85, IF(PK!$E$5=2, BDD_Phosphore_Olsen!E85, BDD_Phosphore_Dyer!E85))","v":50},{"$f":"IF(PK!$E$5=1, BDD_Phosphore_JH!G85, IF(PK!$E$5=2, BDD_Phosphore_Olsen!F85, BDD_Phosphore_Dyer!F85))","v":80},{"$f":"IF(PK!$E$5=1, BDD_Phosphore_JH!H85, IF(PK!$E$5=2, BDD_Phosphore_Olsen!G85, BDD_Phosphore_Dyer!G85))","v":20},{"$f":"IF(PK!$E$5=1, BDD_Phosphore_JH!I85, IF(PK!$E$5=2, BDD_Phosphore_Olsen!H85, BDD_Phosphore_Dyer!H85))","v":70},null,155,82]
[null,"Rhône Alpes Saône et Loire","Limon argileux humide",{"$f":"IF(PK!$E$5=1, BDD_Phosphore_JH!D86, IF(PK!$E$5=2, BDD_Phosphore_Olsen!C86, BDD_Phosphore_Dyer!C86))","v":50},{"$f":"IF(PK!$E$5=1, BDD_Phosphore_JH!E86, IF(PK!$E$5=2, BDD_Phosphore_Olsen!D86, BDD_Phosphore_Dyer!D86))","v":80},{"$f":"IF(PK!$E$5=1, BDD_Phosphore_JH!F86, IF(PK!$E$5=2, BDD_Phosphore_Olsen!E86, BDD_Phosphore_Dyer!E86))","v":50},{"$f":"IF(PK!$E$5=1, BDD_Phosphore_JH!G86, IF(PK!$E$5=2, BDD_Phosphore_Olsen!F86, BDD_Phosphore_Dyer!F86))","v":80},{"$f":"IF(PK!$E$5=1, BDD_Phosphore_JH!H86, IF(PK!$E$5=2, BDD_Phosphore_Olsen!G86, BDD_Phosphore_Dyer!G86))","v":20},{"$f":"IF(PK!$E$5=1, BDD_Phosphore_JH!I86, IF(PK!$E$5=2, BDD_Phosphore_Olsen!H86, BDD_Phosphore_Dyer!H86))","v":70},null,156,83]
[null,"Rhône Alpes Saône et Loire","Argilo-calcaire profond",{"$f":"IF(PK!$E$5=1, BDD_Phosphore_JH!D87, IF(PK!$E$5=2, BDD_Phosphore_Olsen!C87, BDD_Phosphore_Dyer!C87))","v":60},{"$f":"IF(PK!$E$5=1, BDD_Phosphore_JH!E87, IF(PK!$E$5=2, BDD_Phosphore_Olsen!D87, BDD_Phosphore_Dyer!D87))","v":90},{"$f":"IF(PK!$E$5=1, BDD_Phosphore_JH!F87, IF(PK!$E$5=2, BDD_Phosphore_Olsen!E87, BDD_Phosphore_Dyer!E87))","v":60},{"$f":"IF(PK!$E$5=1, BDD_Phosphore_JH!G87, IF(PK!$E$5=2, BDD_Phosphore_Olsen!F87, BDD_Phosphore_Dyer!F87))","v":90},{"$f":"IF(PK!$E$5=1, BDD_Phosphore_JH!H87, IF(PK!$E$5=2, BDD_Phosphore_Olsen!G87, BDD_Phosphore_Dyer!G87))","v":30},{"$f":"IF(PK!$E$5=1, BDD_Phosphore_JH!I87, IF(PK!$E$5=2, BDD_Phosphore_Olsen!H87, BDD_Phosphore_Dyer!H87))","v":80},null,157,84]
[null,"Rhône Alpes Saône et Loire","Argilo-calcaire superficiel",{"$f":"IF(PK!$E$5=1, BDD_Phosphore_JH!D88, IF(PK!$E$5=2, BDD_Phosphore_Olsen!C88, BDD_Phosphore_Dyer!C88))","v":60},{"$f":"IF(PK!$E$5=1, BDD_Phosphore_JH!E88, IF(PK!$E$5=2, BDD_Phosphore_Olsen!D88, BDD_Phosphore_Dyer!D88))","v":90},{"$f":"IF(PK!$E$5=1, BDD_Phosphore_JH!F88, IF(PK!$E$5=2, BDD_Phosphore_Olsen!E88, BDD_Phosphore_Dyer!E88))","v":60},{"$f":"IF(PK!$E$5=1, BDD_Phosphore_JH!G88, IF(PK!$E$5=2, BDD_Phosphore_Olsen!F88, BDD_Phosphore_Dyer!F88))","v":90},{"$f":"IF(PK!$E$5=1, BDD_Phosphore_JH!H88, IF(PK!$E$5=2, BDD_Phosphore_Olsen!G88, BDD_Phosphore_Dyer!G88))","v":30},{"$f":"IF(PK!$E$5=1, BDD_Phosphore_JH!I88, IF(PK!$E$5=2, BDD_Phosphore_Olsen!H88, BDD_Phosphore_Dyer!H88))","v":80},null,158,85]
[null,"Sud Ouest","Sols acides limoneux ou argileux (boulbènes, alluvions,Ségala)",{"$f":"IF(PK!$E$5=1, BDD_Phosphore_JH!D89, IF(PK!$E$5=2, BDD_Phosphore_Olsen!C89, BDD_Phosphore_Dyer!C89))","v":40},{"$f":"IF(PK!$E$5=1, BDD_Phosphore_JH!E89, IF(PK!$E$5=2, BDD_Phosphore_Olsen!D89, BDD_Phosphore_Dyer!D89))","v":80},{"$f":"IF(PK!$E$5=1, BDD_Phosphore_JH!F89, IF(PK!$E$5=2, BDD_Phosphore_Olsen!E89, BDD_Phosphore_Dyer!E89))","v":30},{"$f":"IF(PK!$E$5=1, BDD_Phosphore_JH!G89, IF(PK!$E$5=2, BDD_Phosphore_Olsen!F89, BDD_Phosphore_Dyer!F89))","v":80},{"$f":"IF(PK!$E$5=1, BDD_Phosphore_JH!H89, IF(PK!$E$5=2, BDD_Phosphore_Olsen!G89, BDD_Phosphore_Dyer!G89))","v":20},{"$f":"IF(PK!$E$5=1, BDD_Phosphore_JH!I89, IF(PK!$E$5=2, BDD_Phosphore_Olsen!H89, BDD_Phosphore_Dyer!H89))","v":45},null,161,86]
[null,"Sud Ouest","Sols basiques ou argilo-calcaires (terreforts, alluvions)",{"$f":"IF(PK!$E$5=1, BDD_Phosphore_JH!D90, IF(PK!$E$5=2, BDD_Phosphore_Olsen!C90, BDD_Phosphore_Dyer!C90))","v":40},{"$f":"IF(PK!$E$5=1, BDD_Phosphore_JH!E90, IF(PK!$E$5=2, BDD_Phosphore_Olsen!D90, BDD_Phosphore_Dyer!D90))","v":80},{"$f":"IF(PK!$E$5=1, BDD_Phosphore_JH!F90, IF(PK!$E$5=2, BDD_Phosphore_Olsen!E90, BDD_Phosphore_Dyer!E90))","v":30},{"$f":"IF(PK!$E$5=1, BDD_Phosphore_JH!G90, IF(PK!$E$5=2, BDD_Phosphore_Olsen!F90, BDD_Phosphore_Dyer!F90))","v":80},{"$f":"IF(PK!$E$5=1, BDD_Phosphore_JH!H90, IF(PK!$E$5=2, BDD_Phosphore_Olsen!G90, BDD_Phosphore_Dyer!G90))","v":20},{"$f":"IF(PK!$E$5=1, BDD_Phosphore_JH!I90, IF(PK!$E$5=2, BDD_Phosphore_Olsen!H90, BDD_Phosphore_Dyer!H90))","v":45},null,162,87]

{"sheet":"BDD_Phosphore_JH","index":42,"n_rows":90,"n_cols":12,"rows_kept":90,"cut":false,"hidden":false,"merged":[[1,3,1,4],[1,5,1,6],[1,7,1,8]]}
[null,null,null,"Seuil P2O5 en mg/kg - Méthode Joret Hebert"]
[null,null,null,"Très exigeant",null,"Moyennement exigeant",null,"peu exigeant"]
[null,"Région","Type de sols","T renforcé","T impasse","T renforcé","T impasse","T renforcé","T impasse",null,"Code","Ligne"]
[null,"Nord Picardie","Limons battants",100,160,100,160,70,150,null,11,1]
[null,"Nord Picardie","Limon argileux",100,160,100,160,70,150,null,12,2]
[null,"Nord Picardie","Argiles",100,160,100,160,70,150,null,13,3]
[null,"Nord Picardie","Cranettes",280,400,250,300,200,260,null,14,4]
[null,"Champagne Ardenne","Craie",280,400,250,300,200,260,null,21,5]
[null,"Champagne Ardenne","Limon",100,160,100,160,70,150,null,22,6]
[null,"Champagne Ardenne","Limon argileux",100,160,100,160,70,150,null,23,7]
[null,"Champagne Ardenne","Argilo-calcaire superficiel",140,200,80,180,70,150,null,24,8]
[null,"Champagne Ardenne","Argilo-calcaire profond",120,180,80,120,50,120,null,25,9]
[null,"Champagne Ardenne","Sable",60,160,60,160,40,130,null,26,10]
[null,"Lorraine","Argilo-calcaire profond",120,180,80,120,50,120,null,31,11]
[null,"Lorraine","Argilo-calcaire superficiel",140,200,80,180,70,150,null,32,12]
[null,"Lorraine","Limons",100,160,100,160,70,150,null,33,13]
[null,"Lorraine","Limon argileux",100,160,100,160,70,150,null,34,14]
[null,"Lorraine","Argiles lourdes",100,160,100,160,70,150,null,35,15]
[null,"Alsace","Limons loess",100,160,100,160,70,150,null,41,16]
[null,"Alsace","Alluvions de l'Ill",100,160,100,160,70,150,null,42,17]
[null,"Alsace","Limons lehm",120,160,120,180,70,170,null,43,18]
[null,"Alsace","Hardt superficielle, Ried brun caillouteux",140,200,80,180,70,150,null,44,19]
[null,"Alsace","Hardt profonde, Ried brun profond, basse plaine rhénane",120,180,80,120,50,120,null,45,20]
[null,"Alsace","Argilo-calcaire profond Alsace bossue, basse plaine sous-vosgienne",120,180,80,120,50,120,null,46,21]
[null,"Alsace","Argilo-calcaire caillouteux Alsace bossue, basse plaine sous-vosgienne",140,200,80,180,70,150,null,47,22]
[null,"Franche Comté","Limon (A< 20%)",100,160,100,160,70,150,null,51,23]
[null,"Franche Comté","Limon argileux",100,160,100,160,70,150,null,52,24]
[null,"Franche Comté","Limon argileux superficiel de plateaux",110,160,110,170,70,160,null,53,25]
[null,"Franche Comté","Sols argileux de vallées",100,160,100,160,70,150,null,54,26]
[null,"Franche Comté","Sols argileux, calcaires de vallées",120,180,80,120,50,120,null,55,27]
[null,"Franche Comté","Limons hydromorphes",120,160,120,180,70,170,null,56,28]
[null,"Franche Comté","Argiles hydromorphes de vallées",120,160,120,180,70,170,null,57,29]
[null,"Bourgogne","Argilo-calcaire superficiel",140,200,80,180,70,150,null,61,30]
[null,"Bourgogne","Argilo-calcaire profond",120,180,80,120,50,120,null,62,31]
[null,"Bourgogne","Limons et argiles profonds",80,160,80,130,70,120,null,63,32]
[null,"Bourgogne","Limons battants",100,160,100,160,70,150,null,64,33]
[null,"Bourgogne","Sols sablo-graveleux",60,160,60,160,40,130,null,65,34]
[null,"Bourgogne","Alluvions argileuses",100,160,100,160,70,150,null,66,35]
[null,"Centre limousin","Argilo-calcaire superficiel caillouteux",140,200,80,180,70,150,null,71,36]
[null,"Centre limousin","Argilo-calcaire profond peu caillouteux",120,180,80,120,50,120,null,72,37]
[null,"Centre limousin","Limon argileux",80,160,80,130,70,120,null,73,38]
[null,"Centre limousin","Limon battant",100,160,100,160,70,150,null,74,39]
[null,"Centre limousin","Sable",60,160,60,160,40,130,null,75,40]
[null,"Centre limousin","Limon sableux",60,160,60,160,70,130,null,76,41]
[null,"Centre limousin","Limons sur argile à silex",90,210,90,140,50,130,null,77,42]
[null,"Centre limousin","Argile lourde",100,160,100,160,70,150,null,78,43]
[null,"Centre Bassin parisien","Limon battant",100,160,100,160,70,150,null,81,44]
[null,"Centre Bassin parisien","Limon de Beauce",100,160,100,160,70,150,null,82,45]
[null,"Centre Bassin parisien","Sable",60,160,60,160,40,130,null,83,46]
[null,"Centre Bassin parisien","Limon sableux",60,160,60,160,40,130,null,84,47]
[null,"Centre Bassin parisien","Argilo-calcaire superficiel caillouteux",140,200,80,180,70,150,null,85,48]
[null,"Centre Bassin parisien","Argilo-calcaire profond peu caillouteux",120,180,80,120,50,120,null,86,49]
[null,"Centre Bassin parisien","Argio-calcaire de Beauce",120,180,80,120,50,120,null,87,50]
[null,"Haute Normandie","Limon des plateaux",100,160,100,160,70,150,null,91,51]
[null,"Haute Normandie","Limon caillouteux sur argile à silex",120,180,120,180,90,170,null,92,52]
[null,"Haute Normandie","Argilo-calcaire superficiel sur craie",140,200,80,180,70,150,null,93,53]
[null,"Haute Normandie","Sable caillouteux non calcaire",80,200,80,180,40,150,null,94,54]
[null,"Basse Normandie","Limon",100,160,100,160,70,150,null,101,55]
[null,"Basse Normandie","Argilo-calcaire",140,200,80,180,70,150,null,102,56]
[null,"Basse Normandie","Sable",60,160,60,160,40,130,null,103,57]
[null,"Basse Normandie","Terres lourdes",140,160,80,180,70,150,null,104,58]
[null,"Bretagne pays de la Loire","Limon sain et Limon sableux",100,160,100,160,70,150,null,111,59]
[null,"Bretagne pays de la Loire","Limon caillouteux superficiel",120,180,120,180,90,170,null,112,60]
[null,"Bretagne pays de la Loire","Sable",60,160,60,160,40,130,null,113,61]
[null,"Bretagne pays de la Loire","Argilo-calcaire profond sur marne",120,180,80,120,50,120,null,114,62]
[null,"Bretagne pays de la Loire","Argilo-calcaire superficiel",140,200,80,180,70,150,null,115,63]
[null,"Poitou Charente","Terres de Groie",140,200,80,150,60,130,null,121,64]
[null,"Poitou Charente","Argilo-calcaire profond sur calcaire marneux",120,180,80,120,50,120,null,122,65]
[null,"Poitou Charente","Aubue lègère et champagne superficielle",280,300,200,250,100,220,null,123,66]
[null,"Poitou Charente","Aubue lourde et champagne profonde",280,400,250,300,200,260,null,124,67]
[null,"Poitou Charente","Limon, terres rouge, bomais, doucin limoneux",100,160,100,160,70,150,null,125,68]
[null,"Poitou Charente","Sol sableux",60,160,60,160,40,130,null,126,69]
[null,"Haute Marne","Limon",100,160,100,160,70,150,null,131,70]
[null,"Haute Marne","Sols superficiels du Barrois et autres sols argileux à 30% argile",120,180,80,150,50,130,null,132,71]
[null,"Haute Marne","Sols superficiels du Barrois et autres sols argileux à 40% argile",120,200,80,150,50,130,null,133,72]
[null,"Auvergne","Terre noire",120,180,80,150,50,130,null,141,73]
[null,"Auvergne","Argilo-calcaire",120,180,80,120,50,120,null,142,74]
[null,"Auvergne","Granitique",120,180,120,180,70,170,null,143,75]
[null,"Auvergne","Sologne",100,160,100,160,70,150,null,144,76]
[null,"Auvergne","Alluvions recentes (sableuses)",60,160,60,160,40,130,null,145,77]
[null,"Rhône Alpes Saône et Loire","Varenne",90,190,90,190,70,160,null,151,78]
[null,"Rhône Alpes Saône et Loire","Gravier, dilivium",110,170,110,170,80,160,null,152,79]
[null,"Rhône Alpes Saône et Loire","Limon blanc sain",100,160,100,160,70,150,null,153,80]
[null,"Rhône Alpes Saône et Loire","Limon blanc humide",120,180,120,180,90,170,null,154,81]
[null,"Rhône Alpes Saône et Loire","Limon argileux sain",100,160,100,160,70,150,null,155,82]
[null,"Rhône Alpes Saône et Loire","Limon argileux humide",120,180,120,180,90,170,null,156,83]
[null,"Rhône Alpes Saône et Loire","Argilo-calcaire profond",120,180,80,120,50,120,null,157,84]
[null,"Rhône Alpes Saône et Loire","Argilo-calcaire superficiel",140,200,80,180,70,150,null,158,85]
[null,"Sud Ouest","Sols acides limoneux ou argileux (boulbènes, alluvions,Ségala)",60,120,60,100,40,120,null,161,86]
[null,"Sud Ouest","Sols basiques ou argilo-calcaires (terreforts, alluvions)",60,120,60,100,40,100,null,162,87]

{"sheet":"BDD_Phosphore_Olsen","index":43,"n_rows":90,"n_cols":8,"rows_kept":90,"cut":false,"hidden":false,"merged":[[1,2,1,3],[1,4,1,5],[1,6,1,7]]}
[null,null,"Seuil P2O5 en mg/kg - Méthode Olsen"]
[null,null,"Forte exigence",null,"Moyenne exigence",null,"Faible exigence"]
["Région","Type de sols","T renforcé","T impasse","T renforcé","T impasse","T renforcé","T impasse"]
["Nord Picardie","Limons battants",50,80,50,80,20,70]
["Nord Picardie","Limon argileux",50,80,50,80,20,70]
["Nord Picardie","Argiles",50,80,50,80,20,70]
["Nord Picardie","Cranettes",145,210,130,150,60,135]
["Champagne Ardenne","Craie",145,210,130,150,60,135]
["Champagne Ardenne","Limon",50,80,50,80,20,70]
["Champagne Ardenne","Limon argileux",50,80,50,80,20,70]
["Champagne Ardenne","Argilo-calcaire superficiel",60,90,60,90,30,80]
["Champagne Ardenne","Argilo-calcaire profond",60,90,60,90,30,80]
["Champagne Ardenne","Sable",50,80,50,80,20,70]
["Lorraine","Argilo-calcaire profond",60,90,60,90,30,80]
["Lorraine","Argilo-calcaire superficiel",60,90,60,90,30,80]
["Lorraine","Limons",50,80,50,80,20,70]
["Lorraine","Limon argileux",50,80,50,80,20,70]
["Lorraine","Argiles lourdes",50,80,50,80,20,70]
["Alsace","Limons loess",50,80,50,80,20,70]
["Alsace","Alluvions de l'Ill",50,80,50,80,20,70]
["Alsace","Limons lehm",50,80,50,80,20,70]
["Alsace","Hardt superficielle, Ried brun caillouteux",60,90,60,90,30,80]
["Alsace","Hardt profonde, Ried brun profond, basse plaine rhénane",60,90,60,90,30,80]
["Alsace","Argilo-calcaire profond Alsace bossue, basse plaine sous-vosgienne",60,90,60,90,30,80]
["Alsace","Argilo-calcaire caillouteux Alsace bossue, basse plaine sous-vosgienne",60,90,60,90,30,80]
["Franche Comté","Limon (A< 20%)",50,80,50,80,20,70]
["Franche Comté","Limon argileux",50,80,50,80,20,70]
["Franche Comté","Limon argileux superficiel de plateaux",50,80,50,80,20,70]
["Franche Comté","Sols argileux de vallées",50,80,50,80,20,70]
["Franche Comté","Sols argileux, calcaires de vallées",60,90,60,90,30,80]
["Franche Comté","Limons hydromorphes",50,80,50,80,20,70]
["Franche Comté","Argiles hydromorphes de vallées",50,80,50,80,20,70]
["Bourgogne","Argilo-calcaire superficiel",60,90,60,90,30,80]
["Bourgogne","Argilo-calcaire profond",60,90,60,90,30,80]
["Bourgogne","Limons et argiles profonds",50,80,50,80,20,70]
["Bourgogne","Limons battants",50,80,50,80,20,70]
["Bourgogne","Sols sablo-graveleux",50,80,50,80,20,70]
["Bourgogne","Alluvions argileuses",50,80,50,80,20,70]
["Centre limousin","Argilo-calcaire superficiel caillouteux",60,90,60,90,30,80]
["Centre limousin","Argilo-calcaire profond peu caillouteux",60,90,60,90,30,80]
["Centre limousin","Limon argileux",50,80,50,80,20,70]
["Centre limousin","Limon battant",50,80,50,80,20,70]
["Centre limousin","Sable",50,80,50,80,20,70]
["Centre limousin","Limon sableux",50,80,50,80,20,70]
["Centre limousin","Limons sur argile à silex",50,80,50,80,20,70]
["Centre limousin","Argile lourde",50,80,50,80,20,70]
["Centre Bassin parisien","Limon battant",50,80,50,80,20,70]
["Centre Bassin parisien","Limon de Beauce",50,80,50,80,20,70]
["Centre Bassin parisien","Sable",50,80,50,80,20,70]
["Centre Bassin parisien","Limon sableux",50,80,50,80,20,70]
["Centre Bassin parisien","Argilo-calcaire superficiel caillouteux",60,90,60,90,30,80]
["Centre Bassin parisien","Argilo-calcaire profond peu caillouteux",60,90,60,90,30,80]
["Centre Bassin parisien","Argio-calcaire de Beauce",60,90,60,90,30,80]
["Haute Normandie","Limon des plateaux",50,80,50,80,20,70]
["Haute Normandie","Limon caillouteux sur argile à silex",50,80,50,80,20,70]
["Haute Normandie","Argilo-calcaire superficiel sur craie",60,100,60,90,30,80]
["Haute Normandie","Sable caillouteux non calcaire",50,80,50,80,20,70]
["Basse Normandie","Limon",50,80,50,80,20,70]
["Basse Normandie","Argilo-calcaire",60,90,60,90,30,80]
["Basse Normandie","Sable",50,80,50,80,20,70]
["Basse Normandie","Terres lourdes",50,80,50,80,20,70]
["Bretagne pays de la Loire","Limon sain et Limon sableux",50,80,50,80,20,70]
["Bretagne pays de la Loire","Limon caillouteux superficiel",50,80,50,80,20,70]
["Bretagne pays de la Loire","Sable",50,80,50,80,20,70]
["Bretagne pays de la Loire","Argilo-calcaire profond sur marne",60,90,60,90,30,80]
["Bretagne pays de la Loire","Argilo-calcaire superficiel",60,90,60,90,30,80]
["Poitou Charente","Terres de Groie",60,90,60,90,30,80]
["Poitou Charente","Argilo-calcaire profond sur calcaire marneux",60,90,60,90,30,80]
["Poitou Charente","Aubue lègère et champagne superficielle",145,210,130,150,60,135]
["Poitou Charente","Aubue lourde et champagne profonde",145,210,130,150,60,135]
["Poitou Charente","Limon, terres rouge, bomais, doucin limoneux",50,80,50,80,20,70]
["Poitou Charente","Sol sableux",50,80,50,80,20,70]
["Haute Marne","Limon",50,80,50,80,20,70]
["Haute Marne","Sols superficiels du Barrois et autres sols argileux à 30% argile",60,90,60,90,30,80]
["Haute Marne","Sols superficiels du Barrois et autres sols argileux à 40% argile",60,90,60,90,30,80]
["Auvergne","Terre noire",50,80,50,80,20,70]
["Auvergne","Argilo-calcaire",60,90,60,90,30,80]
["Auvergne","Granitique",50,80,50,80,20,70]
["Auvergne","Sologne",50,80,50,80,20,70]
["Auvergne","Alluvions recentes (sableuses)",50,80,50,80,20,70]
["Rhône Alpes Saône et Loire","Varenne",50,80,50,80,20,70]
["Rhône Alpes Saône et Loire","Gravier, dilivium",50,80,50,80,20,70]
["Rhône Alpes Saône et Loire","Limon blanc sain",50,80,50,80,20,70]
["Rhône Alpes Saône et Loire","Limon blanc humide",50,80,50,80,20,70]
["Rhône Alpes Saône et Loire","Limon argileux sain",50,80,50,80,20,70]
["Rhône Alpes Saône et Loire","Limon argileux humide",50,80,50,80,20,70]
["Rhône Alpes Saône et Loire","Argilo-calcaire profond",60,90,60,90,30,80]
["Rhône Alpes Saône et Loire","Argilo-calcaire superficiel",60,90,60,90,30,80]
["Sud Ouest","Sols acides limoneux ou argileux (boulbènes, alluvions,Ségala)",40,80,30,80,20,45]
["Sud Ouest","Sols basiques ou argilo-calcaires (terreforts, alluvions)",40,80,30,80,20,45]

{"sheet":"BDD_Phosphore_Dyer","index":44,"n_rows":90,"n_cols":8,"rows_kept":90,"cut":false,"hidden":false,"merged":[[1,2,1,3],[1,4,1,5],[1,6,1,7]]}
[null,null,"Seuil P2O5 en mg/kg - Méthode Dyer"]
[null,null,"Forte exigence",null,"Moyenne exigence",null,"Faible exigence"]
["Région","Type de sols","T renforcé","T impasse","T renforcé","T impasse","T renforcé","T impasse"]
["Nord Picardie","Limons battants",160,220,140,220,110,210]
["Nord Picardie","Limon argileux",160,220,140,220,110,210]
["Nord Picardie","Argiles",160,220,140,220,110,210]
["Nord Picardie","Cranettes"]
["Champagne Ardenne","Craie"]
["Champagne Ardenne","Limon",160,220,140,220,110,210]
["Champagne Ardenne","Limon argileux",160,220,140,220,110,210]
["Champagne Ardenne","Argilo-calcaire superficiel"]
["Champagne Ardenne","Argilo-calcaire profond"]
["Champagne Ardenne","Sable",100,280,100,280,70,200]
["Lorraine","Argilo-calcaire profond"]
["Lorraine","Argilo-calcaire superficiel"]
["Lorraine","Limons",160,220,140,220,110,210]
["Lorraine","Limon argileux",160,220,140,220,110,210]
["Lorraine","Argiles lourdes",160,220,140,220,110,210]
["Alsace","Limons loess",160,220,140,220,110,210]
["Alsace","Alluvions de l'Ill",160,220,140,220,110,210]
["Alsace","Limons lehm",160,220,140,220,110,210]
["Alsace","Hardt superficielle, Ried brun caillouteux"]
["Alsace","Hardt profonde, Ried brun profond, basse plaine rhénane"]
["Alsace","Argilo-calcaire profond Alsace bossue, basse plaine sous-vosgienne"]
["Alsace","Argilo-calcaire caillouteux Alsace bossue, basse plaine sous-vosgienne"]
["Franche Comté","Limon (A< 20%)",160,220,140,220,110,210]
["Franche Comté","Limon argileux",160,220,140,220,110,210]
["Franche Comté","Limon argileux superficiel de plateaux",160,220,140,220,110,210]
["Franche Comté","Sols argileux de vallées",160,220,140,220,110,210]
["Franche Comté","Sols argileux, calcaires de vallées"]
["Franche Comté","Limons hydromorphes",200,260,180,260,150,250]
["Franche Comté","Argiles hydromorphes de vallées",200,260,180,260,150,250]
["Bourgogne","Argilo-calcaire superficiel"]
["Bourgogne","Argilo-calcaire profond"]
["Bourgogne","Limons et argiles profonds",160,220,140,220,110,210]
["Bourgogne","Limons battants",160,220,140,220,110,210]
["Bourgogne","Sols sablo-graveleux",100,280,100,280,70,200]
["Bourgogne","Alluvions argileuses",160,220,140,220,110,210]
["Centre limousin","Argilo-calcaire superficiel caillouteux"]
["Centre limousin","Argilo-calcaire profond peu caillouteux"]
["Centre limousin","Limon argileux",160,220,140,220,110,210]
["Centre limousin","Limon battant",160,220,140,220,110,210]
["Centre limousin","Sable",100,280,100,280,70,200]
["Centre limousin","Limon sableux",160,220,140,220,110,210]
["Centre limousin","Limons sur argile à silex",160,220,140,220,110,210]
["Centre limousin","Argile lourde",160,220,140,220,110,210]
["Centre Bassin parisien","Limon battant",160,220,140,220,110,210]
["Centre Bassin parisien","Limon de Beauce",160,220,140,220,110,210]
["Centre Bassin parisien","Sable",100,280,100,280,70,200]
["Centre Bassin parisien","Limon sableux",160,220,140,220,110,210]
["Centre Bassin parisien","Argilo-calcaire superficiel caillouteux"]
["Centre Bassin parisien","Argilo-calcaire profond peu caillouteux"]
["Centre Bassin parisien","Argio-calcaire de Beauce"]
["Haute Normandie","Limon des plateaux",160,220,140,220,110,210]
["Haute Normandie","Limon caillouteux sur argile à silex",190,250,170,250,140,240]
["Haute Normandie","Argilo-calcaire superficiel sur craie"]
["Haute Normandie","Sable caillouteux non calcaire",130,300,130,310,60,230]
["Basse Normandie","Limon",160,220,140,220,110,210]
["Basse Normandie","Argilo-calcaire"]
["Basse Normandie","Sable",100,280,100,280,70,200]
["Basse Normandie","Terres lourdes",160,220,140,220,110,210]
["Bretagne pays de la Loire","Limon sain et Limon sableux",160,220,140,220,110,210]
["Bretagne pays de la Loire","Limon caillouteux superficiel",190,250,170,250,140,240]
["Bretagne pays de la Loire","Sable",100,280,100,280,70,200]
["Bretagne pays de la Loire","Argilo-calcaire profond sur marne"]
["Bretagne pays de la Loire","Argilo-calcaire superficiel"]
["Poitou Charente","Terres de Groie"]
["Poitou Charente","Argilo-calcaire profond sur calcaire marneux"]
["Poitou Charente","Aubue lègère et champagne superficielle"]
["Poitou Charente","Aubue lourde et champagne profonde"]
["Poitou Charente","Limon, terres rouge, bomais, doucin limoneux",160,220,140,220,110,200]
["Poitou Charente","Sol sableux",100,280,100,280,70,200]
["Haute Marne","Limon",160,220,140,220,110,210]
["Haute Marne","Sols superficiels du Barrois et autres sols argileux à 30% argile"]
["Haute Marne","Sols superficiels du Barrois et autres sols argileux à 40% argile"]
["Auvergne","Terre noire",160,220,140,220,110,210]
["Auvergne","Argilo-calcaire"]
["Auvergne","Granitique",180,250,180,250,110,230]
["Auvergne","Sologne",160,220,160,220,110,200]
["Auvergne","Alluvions recentes (sableuses)",100,280,100,220,70,160]
["Rhône Alpes Saône et Loire","Varenne",130,270,130,230,100,230]
["Rhône Alpes Saône et Loire","Gravier, dilivium",150,250,150,250,110,230]
["Rhône Alpes Saône et Loire","Limon blanc sain",160,220,140,220,110,210]
["Rhône Alpes Saône et Loire","Limon blanc humide",200,260,180,260,150,250]
["Rhône Alpes Saône et Loire","Limon argileux sain",160,220,140,220,110,210]
["Rhône Alpes Saône et Loire","Limon argileux humide",200,260,180,260,150,250]
["Rhône Alpes Saône et Loire","Argilo-calcaire profond"]
["Rhône Alpes Saône et Loire","Argilo-calcaire superficiel"]
["Sud Ouest","Sols acides limoneux ou argileux (boulbènes, alluvions,Ségala)",80,160,80,120,40,120]
["Sud Ouest","Sols basiques ou argilo-calcaires (terreforts, alluvions)",80,160,80,120,40,120]

{"sheet":"Exigence_PK","index":45,"n_rows":22,"n_cols":3,"rows_kept":22,"cut":false,"hidden":false,"merged":[[3,1,3,2]]}
[]
["NIVEAU D'EXIGENCE EN PHOSPHORE ET POTASSE DES DIFFERENTES CULTURES"]
[]
[null,"NIVEAU D'EXIGENCE"]
["CULTURES","PHOSPHORE","POTASSE"]
["Betterave","Très exigeante","Très exigeante"]
["Colza","Très exigeante","Moyennement exigeante"]
["Luzerne","Très exigeante","Moyennement exigeante"]
["Pomme de terre","Très exigeante","Très exigeante"]
["Blé/blé","Moyennement exigeante","Peu exigeante"]
["Blé dur","Moyennement exigeante","Peu exigeante"]
["Maïs ensilage","Moyennement exigeante","Moyennement exigeante"]
["Orge","Moyennement exigeante","Peu exigeante"]
["Pois","Moyennement exigeante","Moyennement exigeante"]
["Ray-grass","Moyennement exigeante","Moyennement exigeante"]
["Sorgho","Moyennement exigeante","Peu exigeante"]
["Avoine","Peu exigeante","Peu exigeante"]
["Blé tendre","Peu exigeante","Peu exigeante"]
["Maïs grain","Peu exigeante","Moyennement exigeante"]
["Seigle","Peu exigeante","Peu exigeante"]
["Soja","Peu exigeante","Moyennement exigeante"]
["Tournesol","Peu exigeante","Moyennement exigeante"]

{"sheet":"Feuil6","index":46,"n_rows":0,"n_cols":0,"rows_kept":0,"cut":false,"hidden":false,"merged":[]}

{"sheet":"Feuil1","index":47,"n_rows":70,"n_cols":21,"rows_kept":70,"cut":false,"hidden":false,"merged":[]}
[null,null,"Culture","Numero ligne",{"$f":"'Chaulage (2)'!D17","v":6}]
[null,null,null,null,{"$f":"'Chaulage (2)'!D18","v":1}]
[null,null,null,null,{"$f":"'Chaulage (2)'!D19","v":1}]
[null,null,null,null,{"$f":"'Chaulage (2)'!D20","v":1}]
[null,null,null,null,{"$f":"'Chaulage (2)'!D21","v":1}]
[null,null,null,null,{"$f":"'Chaulage (2)'!D22","v":1}]
[null,null,null,null,{"$f":"'Chaulage (2)'!D23","v":1}]
[null,null,null,null,{"$f":"'Chaulage (2)'!D24","v":1}]
[null,null,null,null,{"$f":"'Chaulage (2)'!D25","v":1}]
[null,null,null,null,{"$f":"'Chaulage (2)'!D26","v":1}]
[]
["pH parcelle",{"$f":"Chaulage!D7","v":6.4},null,"Numero colonne",{"$f":"IF(B27=TRUE, 1,IF(C27=TRUE,2,IF(D27=TRUE,3, IF(E27=TRUE, 4, IF(F27=TRUE, 5, 6)))))","v":4}]
[]
["Type de sol","Sol très acide","Sol acide","Sol peu acide","Sol peu acide","Sol neutre","Sol basique"]
["Ca/CEC","< 40%","40 à 60%","60 à 75%","75 à 90%","90 à 140%","> 140%"]
["Ph eau","< 5.4","5.4 - 5.8","5.8 - 6.2","6.2 - 6.5","6.5 - 7.2","> 7.2"]
["min",0,5.4,5.8,6.2,6.5,7.2]
["max",5.4,5.8,6.2,6.5,7.2,13]
[]
["Prairies permanentes","Redressement","Entretien","Impasse","Impasse","Impasse","Impasse"]
["Prairies temporaires","Redressement","Redressement","Entretien","Impasse","Impasse","Impasse"]
["Maïs / Betterave / PdT","Redressement","Redressement","Entretien","Impasse","Impasse","Impasse"]
["Céréales","Redressement","Redressement","Entretien","Impasse","Impasse","Impasse"]
["Oléoprotéagineux","Redressement","Redressement","Entretien","Impasse","Impasse","Impasse"]
["Orge","Redressement","Redressement","Entretien","Entretien","Impasse","Impasse"]
["Luzerne","Redressement","Redressement","Entretien","Entretien","Impasse","Impasse"]
[null,{"$f":"AND($B$12>=B17,$B$12<=B18)","v":false},{"$f":"AND($B$12>=C17,$B$12<C18)","v":false},{"$f":"AND($B$12>=D17,$B$12<D18)","v":false},{"$f":"AND($B$12>=E17,$B$12<E18)","v":true},{"$f":"AND($B$12>=F17,$B$12<F18)","v":false},{"$f":"AND($B$12>=G17,$B$12<G18)","v":false}]
[]
[]
["CEC",1,2,3,4,5,6,7,8,9,10,11,12,13,14,15,16,17,18,19,20]
["Entretien",{"$f":"C31-20","v":220},{"$f":"D31-20","v":240},{"$f":"E31-20","v":260},{"$f":"F31-20","v":280},{"$f":"G31-20","v":300},320,340,360,{"$f":"I31+20","v":380},{"$f":"J31+20","v":400},{"$f":"K31+20","v":420},440,460,480,500,520,540,560,580,600]
[5]
[5.5,{"$f":"C33-60","v":460},{"$f":"D33-60","v":520},{"$f":"E33-60","v":580},{"$f":"F33-60","v":640},700,760,{"$f":"G33+60","v":820},{"$f":"H33+60","v":880},{"$f":"I33+60","v":940},1000,1060,1120,1180,1240,1300,1360,1420,1480,1540,1600]
[6,{"$f":"C34-80","v":580},{"$f":"D34-80","v":660},{"$f":"E34-80","v":740},{"$f":"F34-80","v":820},{"$f":"G34-80","v":900},980,{"$f":"G34+80","v":1060},{"$f":"H34+80","v":1140},{"$f":"I34+80","v":1220},1300,1380,1460,1540,1620,1700,1780,1860,1940,2020,2100]
[6.5,{"$f":"C35-100","v":700},{"$f":"D35-100","v":800},{"$f":"E35-100","v":900},{"$f":"F35-100","v":1000},{"$f":"G35-100","v":1100},1200,{"$f":"G35+100","v":1300},{"$f":"H35+100","v":1400},1500,1600,1700,1800,1900,2000,2100,2200,2300,2400,2500,2600]
[7,{"$f":"B35+B38","v":820},{"$f":"C35+C38","v":940},1060,1180,1300,1420,1540,1660,1780,1900,2020,2140,2260,2380,2500,2620,2740,2860,2980,3100]
[]
[null,{"$f":"B34-B33","v":120},{"$f":"C34-C33","v":140},{"$f":"D34-D33","v":160},{"$f":"E34-E33","v":180},200,220,240,260,280,300,320,340,360,380,400,420,440,460,480,500]
[]
[]
[]
["CEC",5]
["pH actuel",5]
["pH souhaité",5.5]
["Ecart",{"$f":"B44-B43","v":0.5}]
[null,{"$f":"100/5","v":20},null,{"$f":"(12*(B45*10)*B42)+400","v":700},null,null,"Entretien","y=20x+200"]
[null,null,null,null,null,null,5.5,"y=60x+400"]
[null,null,null,null,null,null,6,"y=80x+500"]
[null,null,null,null,null,null,6.5,"y=100x+600"]
[null,null,null,null,null,null,7,"y=120x+700"]
[]
[]
[null,"pH optimal"]
[]
["Prairies permanentes",5.6]
["Prairies temporaires",6]
["Maïs",6]
["Céréales",6]
["Oléoprotéagineux",6]
["Orge",6]
["Luzerne",6.5]
[]
[]
[]
[]
[]
[5.5,"Action rapide"]
[6,"Action moyenne à rapide"]
[6.5,"Action moyenne à lente"]
[7,"Action moyenne à lente"]

{"sheet":"Ref_tab_graph","index":48,"n_rows":26,"n_cols":10,"rows_kept":26,"cut":false,"hidden":false,"merged":[]}
[]
[]
[]
[]
[]
[]
[4]
[4,"Valeur Indice de battance",null,{"$f":"Granulo!D12","v":1.2954545454545454},null,null,null,"Valeur sensibilité maladie et prise en masse",null,{"$f":"Granulo!J12","v":0}]
[4,null,"x","y",null,null,null,null,"x","y"]
[4,null,{"$f":"IF(D8<1.3, 1.3, IF(D8>2.1, 2.1, D8))","v":1.3},0,null,null,null,null,{"$f":"pH!E6","v":6.4},0]
[4,null,{"$f":"C10","v":1.3},8,null,null,null,null,{"$f":"I10","v":6.4},8]
[4]
[4]
[4,"Valeur MO",2.2000000000000002,null,"Case graph MO/Argile",null,{"$f":"IF(C18<=20, 1, IF(C18<=30, 2, IF(C18<=40, 3, IF(C18>40, 4))))","v":2},null,"x","y"]
[null,null,null,null,null,null,null,null,{"$f":"G14","v":2},0]
[null,null,null,null,null,null,null,null,{"$f":"I15","v":2},3]
[null,null,"x","y"]
[null,"Valeur argile",{"$f":"Saisie!D9","v":25},0]
[null,null,{"$f":"C18","v":25},8]
[]
[]
[null,null,{"$f":"Saisie!D25","v":"Année N3"},{"$f":"Saisie!E25","v":"Année N2"},{"$f":"Saisie!F25","v":"Année N1"}]
[null,"Rapport MO/Argile",{"$f":"(Saisie!D26/Saisie!$D$9)*100","v":12},{"$f":"(Saisie!E26/Saisie!$D$9)*100","v":12},{"$f":"(Saisie!F26/Saisie!$D$9)*100","v":12}]
[]
[null,"CEC",{"$f":"Saisie!L8","v":0},0]
[null,null,{"$f":"C25","v":0},8]

{"sheet":"BDD_parcelles","index":49,"n_rows":8,"n_cols":2,"rows_kept":8,"cut":false,"hidden":false,"merged":[]}
[]
[]
[]
[]
[]
[null,"Nouvelle parcelle"]
[]
[null,"Les longues raies"]

{"sheet":"Feuil2","index":50,"n_rows":8,"n_cols":2,"rows_kept":8,"cut":false,"hidden":false,"merged":[]}
[]
[]
[]
[]
[]
[]
["Argile",{"$f":"Granulo!D7","v":25}]
["Limon",{"$f":"SUM(Granulo!D8:D9)","v":65}]

{"sheet":"Feuil3","index":51,"n_rows":14,"n_cols":5,"rows_kept":14,"cut":false,"hidden":false,"merged":[]}
[]
[]
[null,null,null,"x","y"]
[null,null,null,{"$f":"pH!E6","v":6.4},0]
[null,null,null,{"$f":"D4","v":6.4},8]
[]
[4,5.5]
[4,{"$f":"B7+1","v":6.5}]
[4,{"$f":"B8+1","v":7.5}]
[4,8.5]
[4,9.5]
[4,10.5]
[4,11.5]
[4,12.5]

{"sheet":"Feuil5","index":52,"n_rows":11,"n_cols":4,"rows_kept":11,"cut":false,"hidden":false,"merged":[]}
[]
[]
[]
[]
[]
[]
[]
[]
[null,null,"Fertilité physique",33]
[null,null,"Fertilité chimique",33]
[null,null,"Fertilité biologique",33]

{"sheet":"Feuil4","index":53,"n_rows":0,"n_cols":0,"rows_kept":0,"cut":false,"hidden":false,"merged":[]}